{"text_format":"1","workbook":"xlsx","n_sheets":5,"sheets":["Muni","Instructions","CURRENT MAYORS LIST ","Key Inputs","MUNICIPAL CONTACT LIST UPDATE "],"not_rendered":{"charts":0,"images":2,"macros":0,"external_links":0,"defined_names":15,"comments":0,"pivot_tables":0},"unopened":[],"bounds":{"document_bytes":16777216,"sheet_cells":100000,"rows_first":2000,"rows_last":500,"rows_between":2000,"halvings":0,"cell_chars":16384,"cell_head_chars":4096},"cells_cut":0,"cells_raw":0,"read":"whole","date_system":"1900"}

{"sheet":"Muni","index":0,"n_rows":586,"n_cols":14,"rows_kept":586,"cut":false,"hidden":true,"merged":[]}
["MUNICIPALITY NAME","MUNICIPALITY NAME","CODE","COUNTY",2022,2023,2024,"3-YEAR AVERAGE","SCHOOL ","UTILITY",null,"SCHOOL %",null,"Regional School Name"]
["Aberdeen Township",{"$f":"A2&\", \"&D2&\" County\"","v":"Aberdeen Township, Monmouth County"},"1330","Monmouth",2850322221,3125890785,3454220882,{"$f":"AVERAGE(E2:G2)","v":3143477962.6666665}]
["Absecon City",{"$f":"A3&\", \"&D3&\" County\"","v":"Absecon City, Atlantic County"},"0101","Atlantic",857513986,948766396,1059538473,{"$f":"AVERAGE(E3:G3)","v":955272951.66666663},null,null,null,0,null,"Black Horse Pike Regional School District"]
["Alexandria Township","Alexandria Township, Hunterdon County","1001","Hunterdon",886478833,963637307,1023378027,957831389,"Type I","Arena",null,2.5000000000000001E-2,null,"Bordentown Regional School District"]
["Allamuchy Township","Allamuchy Township, Warren County","2101","Warren",844022228,908686619,1004087945,918932264,"Type II","Affordable Housing",null,0.03,null,"Bridgewater-Raritan Regional School District"]
["Allendale Borough","Allendale Borough, Bergen County","0201","Bergen",2075748594,2210697687,2448582994,2245009758.3333335,null,"Airport",null,3.5000000000000003E-2,null,"Buena Regional School District"]
["Allenhurst Borough","Allenhurst Borough, Monmouth County","1301","Monmouth",976186662,1461222836,1462314264,1299907920.6666667,null,"Beach",null,0.04,null,"Caldwell-West Caldwell Consolidated School District"]
["Allentown Borough","Allentown Borough, Monmouth County","1302","Monmouth",199377689,247591026,290113947,245694220.66666666,null,"Electric",null,null,null,"Carlstadt-East Rutherford Regional High School"]
["Alloway Township","Alloway Township, Salem County","1701","Salem",331411333,389360960,406222772,375665021.66666669,null,"Golf Course",null,null,null,"Central Regional School District"]
["Alpha Borough","Alpha Borough, Warren County","2102","Warren",242982939,275308421,315051334,277780898,null,"Harbor",null,null,null,"Chatham School District"]
["Alpine Borough","Alpine Borough, Bergen County","0202","Bergen",1880436604,2083185419,2091566133,2018396052,null,"Ice Rink",null,null,null,"Chester Township Consolidated School District"]
["Andover Borough","Andover Borough, Sussex County","1901","Sussex",83005193,83403009,94112207,86840136.333333328,null,"Marina",null,null,null,"Clearview Regional School District"]
["Andover Township","Andover Township, Sussex County","1902","Sussex",869957194,918694059,1022235610,936962287.66666663,null,"Parking ",null,null,null,"Clinton-Glen Gardner School District"]
["Asbury Park City","Asbury Park City, Monmouth County","1303","Monmouth",2483123847,2800143553,3212152473,2831806624.3333335,null,"Recreation",null,null,null,"Cumberland Regional High School"]
["Atlantic City","Atlantic City, Atlantic County","0102","Atlantic",3186835403,3448065018,3702839432,3445913284.3333335,null,"Sewer",null,null,null,"Delaware Valley Regional High School"]
["Atlantic County",{"$f":"A16","v":"Atlantic County"},"0100","Atlantic",39369894998,45466690306,50966763923,45267783075.666664,null,"Solid Waste",null,null,null,"Delsea Regional School District"]
["Atlantic Highlands Borough","Atlantic Highlands Borough, Monmouth County","1304","Monmouth",1083114471,1178354088,1273730593,1178399717.3333333,null,"Swimming Pool",null,null,null,"East Windsor Regional School District"]
["Audubon Borough","Audubon Borough, Camden County","0401","Camden",871758655,978049415,1055827842,968545304,null,"Water",null,null,null,"Eastern Camden County Regional High School"]
["Audubon Park Borough","Audubon Park Borough, Camden County","0402","Camden",20722795,20722795,20722795,20722795,null,"Water & Sewer",null,null,null,"Flemington-Raritan Regional School District"]
["Avalon Borough","Avalon Borough, Cape May County","0501","Cape May",14004552620,15944352184,17323253528,15757386110.666666,null,"Other",null,null,null,"Freehold Regional High School District"]
["Avon-by-the-Sea Borough","Avon-by-the-Sea Borough, Monmouth County","1305","Monmouth",1457074761,1538744186,1799980029,1598599658.6666667,null,null,null,null,null,"Gateway Regional School District"]
["Barnegat Light Borough","Barnegat Light Borough, Ocean County","1501","Ocean",1330053342,1717464338,1979872907,1675796862.3333333,null,null,null,null,null,"Great Meadows Regional School District"]
["Barnegat Township","Barnegat Township, Ocean County","1533","Ocean",3476713249,4055988867,4514819713,4015840609.6666665,null,null,null,null,null,"Greater Egg Harbor Regional High School"]
["Barrington Borough","Barrington Borough, Camden County","0403","Camden",645158362,739497459,816895837,733850552.66666663,null,null,null,null,null,"Hanover Park Regional High School District"]
["Bass River Township","Bass River Township, Burlington County","0301","Burlington",201767045,225787922,246997741,224850902.66666666,null,null,null,null,null,"Henry Hudson Regional High School"]
["Bay Head Borough","Bay Head Borough, Ocean County","1502","Ocean",2183708948,2457873223,2859005640,2500195937,null,null,null,null,null,"High Point Regional High School"]
["Bayonne City","Bayonne City, Hudson County","0901","Hudson",9054404667,10189024075,10833452449,10025627063.666666,null,null,null,null,null,"Hopewell Valley Regional School District"]
["Beach Haven Borough","Beach Haven Borough, Ocean County","1503","Ocean",3143620523,3691558778,4064535847,3633238382.6666665,null,null,null,null,null,"Hunterdon Central Regional High School"]
["Beachwood Borough","Beachwood Borough, Ocean County","1504","Ocean",1176326812,1337524365,1476397187,1330082788,null,null,null,null,null,"Kingsway Regional School District"]
["Bedminster Township","Bedminster Township, Somerset County","1801","Somerset",2619810530,2677135694,2733574308,2676840177.3333335,null,null,null,null,null,"Kittatinny Regional High School"]
["Belleville Township","Belleville Township, Essex County","0701","Essex",3767732740,4193145253,4763242036,4241373343,null,null,null,null,null,"Lakeland Regional High School"]
["Bellmawr Borough","Bellmawr Borough, Camden County","0404","Camden",888341649,1016548427,1093710823,999533633,null,null,null,null,null,"Lenape Regional High School District"]
["Belmar Borough","Belmar Borough, Monmouth County","1306","Monmouth",2360426956,2593724280,2920742698,2624964644.6666665,null,null,null,null,null,"Lenape Valley Regional High School"]
["Belvidere Town","Belvidere Town, Warren County","2103","Warren",235502827,232850755,276130030,248161204,null,null,null,null,null,"Long Beach Island Consolidated School District"]
["Bergen County",{"$f":"A35","v":"Bergen County"},"0200","Bergen",209970578578,226848381422,244730595430,227183185143.33334,null,null,null,null,null,"Lower Cape May Regional High School"]
["Bergenfield Borough","Bergenfield Borough, Bergen County","0203","Bergen",3777567913,4090610419,4644599932,4170926088,null,null,null,null,null,"Mainland Regional High School"]
["Berkeley Heights Township","Berkeley Heights Township, Union County","2001","Union",3694801857,3986580542,4416365516,4032582638.3333335,null,null,null,null,null,"Manalapan-Englishtown Regional School District"]
["Berkeley Township","Berkeley Township, Ocean County","1505","Ocean",7578702079,8530244253,9321660273,8476868868.333333,null,null,null,null,null,"Matawan-Aberdeen Regional School District"]
["Berlin Borough","Berlin Borough, Camden County","0405","Camden",897129078,994312789,1106959840,999467235.66666663,null,null,null,null,null,"Monmouth Regional High School District"]
["Berlin Township","Berlin Township, Camden County","0406","Camden",787725316,883385665,999120762,890077247.66666663,null,null,null,null,null,"Montgomery Township School District"]
["Bernards Township","Bernards Township, Somerset County","1802","Somerset",7719623229,8106165936,8987168496,8270985887,null,null,null,null,null,"Morris Hills Regional School District"]
["Bernardsville Borough","Bernardsville Borough, Somerset County","1803","Somerset",2373089707,2492803825,2673605337,2513166289.6666665,null,null,null,null,null,"Morris Regional School District"]
["Bethlehem Township","Bethlehem Township, Hunterdon County","1002","Hunterdon",670818909,734739111,771491820,725683280,null,null,null,null,null,"New Hanover Consolidated School District"]
["Beverly City","Beverly City, Burlington County","0302","Burlington",148433721,162041012,191818704,167431145.66666666,null,null,null,null,null,"North Hunterdon Regional High School"]
["Blairstown Township","Blairstown Township, Warren County","2104","Warren",857181243,961040808,1022147488,946789846.33333337,null,null,null,null,null,"North Warren Regional School District"]
["Bloomfield Township","Bloomfield Township, Essex County","0702","Essex",6171437304,6871381125,7676477513,6906431980.666667,null,null,null,null,null,"Northern Burlington County Regional School District"]
["Bloomingdale Borough","Bloomingdale Borough, Passaic County","1601","Passaic",1061427576,1168897016,1231240675,1153855089,null,null,null,null,null,"Northern Highlands Regional High School"]
["Bloomsbury Borough","Bloomsbury Borough, Hunterdon County","1003","Hunterdon",110197152,119859250,134959218,121671873.33333333,null,null,null,null,null,"Northern Valley Regional High School"]
["Bogota Borough","Bogota Borough, Bergen County","0204","Bergen",1006723497,1080136333,1259146116,1115335315.3333333,null,null,null,null,null,"Ocean Township Consolidated School District"]
["Boonton Town","Boonton Town, Morris County","1401","Morris",1427416850,1522262969,1626029994,1525236604.3333333,null,null,null,null,null,"Pascack Valley Regional High School"]
["Boonton Township","Boonton Township, Morris County","1402","Morris",1045930997,1084469393,1123625515,1084675301.6666667,null,null,null,null,null,"Passaic County Manchester Regional High School"]
["Bordentown City","Bordentown City, Burlington County","0303","Burlington",424447636,476574659,532796716,477939670.33333331,null,null,null,null,null,"Passaic Valley Regional High School"]
["Bordentown Township","Bordentown Township, Burlington County","0304","Burlington",1733071385,2079807658,2214803718,2009227587,null,null,null,null,null,"Penns Grove-Carneys Point Regional School District"]
["Bound Brook Borough","Bound Brook Borough, Somerset County","1804","Somerset",1063530794,1168381736,1275972393,1169294974.3333333,null,null,null,null,null,"Pinelands Regional School Distrct"]
["Bradley Beach Borough","Bradley Beach Borough, Monmouth County","1307","Monmouth",1902491377,2119677824,2330816023,2117661741.3333333,null,null,null,null,null,"Ramapo Indian Hills Regional High School"]
["Branchburg Township","Branchburg Township, Somerset County","1805","Somerset",4223944552,4239021623,4700796858,4387921011,null,null,null,null,null,"Rancocas Valley Regional High School"]
["Branchville Borough","Branchville Borough, Sussex County","1903","Sussex",142151764,148681381,156956197,149263114,null,null,null,null,null,"Red Bank Regional High School"]
["Brick Township","Brick Township, Ocean County","1506","Ocean",14412265880,16132824304,17870579588,16138556590.666666,null,null,null,null,null,"River Dell Regional School District"]
["Bridgeton City","Bridgeton City, Cumberland County","0601","Cumberland",605482544,697739822,767782186,690334850.66666663,null,null,null,null,null,"Rumson-Fair Haven Regional High School"]
["Bridgewater Township","Bridgewater Township, Somerset County","1806","Somerset",11069312621,11053771638,12110063913,11411049390.666666,null,null,null,null,null,"Sandyston-Walpack Consolidated School District"]
["Brielle Borough","Brielle Borough, Monmouth County","1308","Monmouth",2130638124,2295564906,2490323456,2305508828.6666665,null,null,null,null,null,"Scotch Plains-Fanwood Regional School District"]
["Brigantine City","Brigantine City, Atlantic County","0103","Atlantic",4627787141,5471013223,6290058665,5462953009.666667,null,null,null,null,null,"Shore Regional High School"]
["Brooklawn Borough","Brooklawn Borough, Camden County","0407","Camden",151200779,160453622,185932264,165862221.66666666,null,null,null,null,null,"Somerset Hills Regional School District"]
["Buena Borough","Buena Borough, Atlantic County","0104","Atlantic",323368923,338398603,366000877,342589467.66666669,null,null,null,null,null,"South Hunterdon Regional School District"]
["Buena Vista Township","Buena Vista Township, Atlantic County","0105","Atlantic",687486042,789443221,893600730,790176664.33333337,null,null,null,null,null,"South Orange-Maplewood Consolidated School District"]
["Burlington City","Burlington City, Burlington County","0305","Burlington",758885355,793930242,900162584,817659393.66666663,null,null,null,null,null,"Southern Regional School District"]
["Burlington County",{"$f":"A67","v":"Burlington County"},"0300","Burlington",57127482908,63683279578,70348911191,{"$f":"AVERAGE(E67:G67)","v":63719891225.666664},null,null,null,null,null,"Spotswood-Helmetta Consolidated School District"]
["Burlington Township",{"$f":"A68&\", \"&D68&\" County\"","v":"Burlington Township, Burlington County"},"0306","Burlington",3128363852,3489804622,3698860649,3439009707.6666665,null,null,null,null,null,"Sterling High School"]
["Butler Borough","Butler Borough, Morris County","1403","Morris",1192740368,1291226850,1412028759,1298665325.6666667,null,null,null,null,null,"Sussex-Wantage Regional School Distrct"]
["Byram Township","Byram Township, Sussex County","1904","Sussex",1183622861,1286876250,1442348511,1304282540.6666667,null,null,null,null,null,"Swedesboro-Woolwich Consolidated School District"]
["Caldwell Borough","Caldwell Borough, Essex County","0703","Essex",1343058649,1423615175,1514927142,1427200322,null,null,null,null,null,"Tinton Falls School District"]
["Califon Borough","Califon Borough, Hunterdon County","1004","Hunterdon",171387207,180957862,199646463,183997177.33333334,null,null,null,null,null,"Toms River Regional School District"]
["Camden City","Camden City, Camden County","0408","Camden",2052938017,2259409836,2597514395,2303287416,null,null,null,null,null,"Upper Freehold Regional School District"]
["Camden County",{"$f":"A74","v":"Camden County"},"0400","Camden",47431609946,53053211756,58416778243,52967199981.666664,null,null,null,null,null,"Wallkill Valley Regional High School"]
["Cape May City","Cape May City, Cape May County","0502","Cape May",4378643600,4773553004,5582839985,4911678863,null,null,null,null,null,"Warren Hills Regional School District"]
["Cape May County",{"$f":"A76","v":"Cape May County"},"0500","Cape May",76162736537,86606142936,96029950746,86266276739.666672,null,null,null,null,null,"Watchung Hills Regional High School"]
["Cape May Point Borough","Cape May Point Borough, Cape May County","0503","Cape May",699587776,789960849,903464898,797671174.33333337,null,null,null,null,null,"West Essex Regional School District"]
["Carlstadt Borough","Carlstadt Borough, Bergen County","0205","Bergen",2813928643,3275361005,3425367067,3171552238.3333335,null,null,null,null,null,"West Morris Regional High School District"]
["Carneys Point Township","Carneys Point Township, Salem County","1713","Salem",780458534,915131679,976934855,890841689.33333337,null,null,null,null,null,"West Windsor-Plainsboro Regional School District"]
["Carteret Borough","Carteret Borough, Middlesex County","1201","Middlesex",3547417272,3795328475,4409759591,3917501779.3333335,null,null,null,null,null,"Westwood Regional School District"]
["Cedar Grove Township","Cedar Grove Township, Essex County","0704","Essex",2657620616,2807894626,3018736139,2828083793.6666665,null,null,null,null,null,"Woodstown-Pilesgrove Regional School District"]
["Chatham Borough","Chatham Borough, Morris County","1404","Morris",2875548452,3163864151,3437204647,3158872416.6666665]
["Chatham Township","Chatham Township, Morris County","1405","Morris",4086904522,4443871977,4792635696,4441137398.333333]
["Cherry Hill Township","Cherry Hill Township, Camden County","0409","Camden",10624165627,12398913655,13351620736,12124900006]
["Chesilhurst Borough","Chesilhurst Borough, Camden County","0410","Camden",102275751,111521158,123622531,112473146.66666667]
["Chester Borough","Chester Borough, Morris County","1406","Morris",436300822,468024010,550234539,484853123.66666669]
["Chester Township","Chester Township, Morris County","1407","Morris",2015694740,2149044151,2295589072,2153442654.3333335]
["Chesterfield Township","Chesterfield Township, Burlington County","0307","Burlington",1004896673,1110530771,1242501976,1119309806.6666667]
["Cinnaminson Township","Cinnaminson Township, Burlington County","0308","Burlington",2270771213,2451410291,2806809471,2509663658.3333335]
["Clark Township","Clark Township, Union County","2002","Union",3351679345,3613517045,3902262009,3622486133]
["Clayton Borough","Clayton Borough, Gloucester County","0801","Gloucester",621124408,714788369,794209275,710040684]
["Clementon Borough","Clementon Borough, Camden County","0411","Camden",308976244,339999643,379722091,342899326]
["Cliffside Park Borough","Cliffside Park Borough, Bergen County","0206","Bergen",3894436085,4184585494,4454710634,4177910737.6666665]
["Clifton City","Clifton City, Passaic County","1602","Passaic",12708234847,13903318841,14888942920,13833498869.333334]
["Clinton Town","Clinton Town, Hunterdon County","1005","Hunterdon",460622796,486821483,524955541,490799940]
["Clinton Township","Clinton Township, Hunterdon County","1006","Hunterdon",2412609080,2522802317,2669497831,2534969742.6666665]
["Closter Borough","Closter Borough, Bergen County","0207","Bergen",2578912797,2889785706,3103792686,2857497063]
["Collingswood Borough","Collingswood Borough, Camden County","0412","Camden",1376948030,1506270157,1693660277,1525626154.6666667]
["Colts Neck Township","Colts Neck Township, Monmouth County","1309","Monmouth",3538289485,3861160004,4183856336,3861101941.6666665]
["Commercial Township","Commercial Township, Cumberland County","0602","Cumberland",279337832,292945969,343901889,305395230]
["Corbin City","Corbin City, Atlantic County","0106","Atlantic",61468788,76293205,84721192,74161061.666666672]
["Cranbury Township","Cranbury Township, Middlesex County","1202","Middlesex",2143541042,2361768135,2480055472,2328454883]
["Cranford Township","Cranford Township, Union County","2003","Union",5176117447,5338289348,5796867147,5437091314]
["Cresskill Borough","Cresskill Borough, Bergen County","0208","Bergen",2698366212,3085229805,3392125714,3058573910.3333335]
["Cumberland County",{"$f":"A105","v":"Cumberland County"},"0600","Cumberland",10468902929,11375390254,12455766844,11433353342.333334]
["Deal Borough","Deal Borough, Monmouth County","1310","Monmouth",3856077700,4425971258,5270210985,4517419981]
["Deerfield Township","Deerfield Township, Cumberland County","0603","Cumberland",239496648,268784679,293915062,267398796.33333334]
["Delanco Township","Delanco Township, Burlington County","0309","Burlington",526998353,612147602,692733529,610626494.66666663]
["Delaware Township","Delaware Township, Hunterdon County","1007","Hunterdon",1027924713,1091507234,1202897387,1107443111.3333333]
["Delran Township","Delran Township, Burlington County","0310","Burlington",1952619216,2140620361,2404415684,2165885087]
["Demarest Borough","Demarest Borough, Bergen County","0209","Bergen",1764073944,1991512536,2159431748,1971672742.6666667]
["Dennis Township","Dennis Township, Cape May County","0504","Cape May",1144679944,1194542557,1394241931,1244488144]
["Denville Township","Denville Township, Morris County","1408","Morris",3753403293,4176428147,4436329291,4122053577]
["Deptford Township","Deptford Township, Gloucester County","0802","Gloucester",3480005483,3839093607,4161033016,3826710702]
["Dover Town","Dover Town, Morris County","1409","Morris",1655879588,1773345469,1903239948,1777488335]
["Downe Township","Downe Township, Cumberland County","0604","Cumberland",153253163,175269641,187878098,172133634]
["Dumont Borough","Dumont Borough, Bergen County","0210","Bergen",2562851234,2699257789,3009698560,2757269194.3333335]
["Dunellen Borough","Dunellen Borough, Middlesex County","1203","Middlesex",847014639,898876382,1009337352,918409457.66666663]
["Eagleswood Township","Eagleswood Township, Ocean County","1508","Ocean",288418682,313762636,354250258,318810525.33333331]
["East Amwell Township","East Amwell Township, Hunterdon County","1008","Hunterdon",857823319,929273842,989926561,925674574]
["East Brunswick Township","East Brunswick Township, Middlesex County","1204","Middlesex",8625315659,9423430713,10228404408,9425716926.666666]
["East Greenwich Township","East Greenwich Township, Gloucester County","0803","Gloucester",1545546296,1701321710,1900721084,1715863030]
["East Hanover Township","East Hanover Township, Morris County","1410","Morris",3518596714,3928770212,4260656537,3902674487.6666665]
["East Newark Borough","East Newark Borough, Hudson County","0902","Hudson",247552218,269681642,294081922,270438594]
["East Orange City","East Orange City, Essex County","0705","Essex",4988695994,5569702547,5516844950,5358414497]
["East Rutherford Borough","East Rutherford Borough, Bergen County","0212","Bergen",2614492164,2919057917,3012307051,2848619044]
["East Windsor Township","East Windsor Township, Mercer County","1101","Mercer",3571086108,4136956012,4435112691,4047718270.3333335]
["Eastampton Township","Eastampton Township, Burlington County","0311","Burlington",656491383,753327822,934675805,781498336.66666663]
["Eatontown Borough","Eatontown Borough, Monmouth County","1311","Monmouth",3301396672,3470507206,3286285020,3352729632.6666665]
["Edgewater Borough","Edgewater Borough, Bergen County","0213","Bergen",4029455922,4526305849,4753649917,4436470562.666667]
["Edgewater Park Township",{"$f":"A131&\", \"&D131&\" County\"","v":"Edgewater Park Township, Burlington County"},"0312","Burlington",712203548,863425598,960738364,{"$f":"AVERAGE(E131:G131)","v":845455836.66666663}]
["Edison Township","Edison Township, Middlesex County","1205","Middlesex",19261135029,20214871436,21121959282,20199321915.666668]
["Egg Harbor City","Egg Harbor City, Atlantic County","0107","Atlantic",254884561,312127975,360987357,309333297.66666669]
["Egg Harbor Township","Egg Harbor Township, Atlantic County","0108","Atlantic",5081708795,5752822407,6189084492,5674538564.666667]
["Elizabeth City","Elizabeth City, Union County","2004","Union",12157693108,13381468661,15027347740,13522169836.333334]
["Elk Township","Elk Township, Gloucester County","0804","Gloucester",474382607,539086768,606674727,540048034]
["Elmer Borough","Elmer Borough, Salem County","1702","Salem",122526743,135096460,143104905,133576036]
["Elmwood Park Borough","Elmwood Park Borough, Bergen County","0211","Bergen",2683573512,2845270836,3231520728,2920121692]
["Elsinboro Township","Elsinboro Township, Salem County","1703","Salem",113749458,129550006,141733570,128344344.66666667]
["Emerson Borough","Emerson Borough, Bergen County","0214","Bergen",1512844503,1612848348,1717422876,1614371909]
["Englewood City","Englewood City, Bergen County","0215","Bergen",5930371563,6347412816,6718299189,6332027856]
["Englewood Cliffs Borough","Englewood Cliffs Borough, Bergen County","0216","Bergen",3895115495,3990262873,4136659844,4007346070.6666665]
["Englishtown Borough","Englishtown Borough, Monmouth County","1312","Monmouth",317035903,349323685,393889211,353416266.33333331]
["Essex County",{"$f":"A144","v":"Essex County"},"0700","Essex",106390647088,123386100965,137206848844,122327865632.33333]
["Essex Fells Borough","Essex Fells Borough, Essex County","0706","Essex",814155909,806530708,928995098,849893905]
["Estell Manor City","Estell Manor City, Atlantic County","0109","Atlantic",202680573,226780903,246056925,225172800.33333334]
["Evesham Township","Evesham Township, Burlington County","0313","Burlington",6487111047,7113434233,7990382787,7196976022.333333]
["Ewing Township","Ewing Township, Mercer County","1102","Mercer",3814358847,4663047544,4979701568,4485702653]
["Fair Haven Borough","Fair Haven Borough, Monmouth County","1313","Monmouth",2382405571,2530009229,2753215206,2555210002]
["Fair Lawn Borough","Fair Lawn Borough, Bergen County","0217","Bergen",6173269385,6785784240,7251802052,6736951892.333333]
["Fairfield Township (Cumberland)","Fairfield Township (Cumberland), Cumberland County","0605","Cumberland",319115935,339377288,362677659,340390294]
["Fairfield Township (Essex)","Fairfield Township (Essex), Essex County","0707","Essex",3791394080,4073199516,4041014316,3968535970.6666665]
["Fairview Borough","Fairview Borough, Bergen County","0218","Bergen",1729461478,2005716536,2082642192,1939273402]
["Fanwood Borough","Fanwood Borough, Union County","2005","Union",1455076896,1558034877,1765601025,1592904266]
["Far Hills Borough","Far Hills Borough, Somerset County","1807","Somerset",436111448,430974809,468853872,445313376.33333331]
["Farmingdale Borough","Farmingdale Borough, Monmouth County","1314","Monmouth",205477655,239025721,275584505,240029293.66666666]
["Fieldsboro Borough","Fieldsboro Borough, Burlington County","0314","Burlington",61086057,71603647,71342709,68010804.333333328]
["Flemington Borough","Flemington Borough, Hunterdon County","1009","Hunterdon",495928762,531454564,564823260,530735528.66666669]
["Florence Township","Florence Township, Burlington County","0315","Burlington",1398712681,1541480120,1548771666,1496321489]
["Florham Park Borough","Florham Park Borough, Morris County","1411","Morris",3851290705,4518849829,5127585383,4499241972.333333]
["Folsom Borough","Folsom Borough, Atlantic County","0110","Atlantic",200804528,223381576,252013137,225399747]
["Fort Lee Borough","Fort Lee Borough, Bergen County","0219","Bergen",7230135145,9135096063,9936766355,8767332521]
["Frankford Township","Frankford Township, Sussex County","1905","Sussex",915135857,1007380475,1057691185,993402505.66666663]
["Franklin Borough","Franklin Borough, Sussex County","1906","Sussex",539168794,566942654,663564470,589891972.66666663]
["Franklin Lakes Borough","Franklin Lakes Borough, Bergen County","0220","Bergen",4857264574,5512561920,6174942566,5514923020]
["Franklin Township (Gloucester)","Franklin Township (Gloucester), Gloucester County","0805","Gloucester",1645017544,1852696189,2012378430,1836697387.6666667]
["Franklin Township (Hunterdon)","Franklin Township (Hunterdon), Hunterdon County","1010","Hunterdon",573010081,603970195,617699944,598226740]
["Franklin Township (Somerset)","Franklin Township (Somerset), Somerset County","1808","Somerset",13418238386,14340058308,15191389763,14316562152.333334]
["Franklin Township (Warren)","Franklin Township (Warren), Warren County","2105","Warren",492234006,526525203,552550273,523769827.33333331]
["Fredon Township","Fredon Township, Sussex County","1907","Sussex",491630018,552959344,596796129,547128497]
["Freehold Borough","Freehold Borough, Monmouth County","1315","Monmouth",1389546789,1450135512,1572760716,1470814339]
["Freehold Township","Freehold Township, Monmouth County","1316","Monmouth",8361314337,9489611917,9685268921,9178731725]
["Frelinghuysen Township","Frelinghuysen Township, Warren County","2106","Warren",331783941,361086072,373769171,355546394.66666669]
["Frenchtown Borough","Frenchtown Borough, Hunterdon County","1011","Hunterdon",199642878,220283498,250443931,223456769]
["Galloway Township","Galloway Township, Atlantic County","0111","Atlantic",3597061147,4048520318,4537166018,4060915827.6666665]
["Garfield City","Garfield City, Bergen County","0221","Bergen",3274976501,3540981030,3824931898,3546963143]
["Garwood Borough","Garwood Borough, Union County","2006","Union",857015268,915512592,1033506667,935344842.33333337]
["Gibbsboro Borough","Gibbsboro Borough, Camden County","0413","Camden",273305827,287713981,303523384,288181064]
["Glassboro Borough","Glassboro Borough, Gloucester County","0806","Gloucester",1580321467,1799968519,2085543150,1821944378.6666667]
["Glen Gardner Borough","Glen Gardner Borough, Hunterdon County","1012","Hunterdon",193970925,208533278,235993212,212832471.66666666]
["Glen Ridge Borough","Glen Ridge Borough, Essex County","0708","Essex",2263259850,2454486652,2677425509,2465057337]
["Glen Rock Borough","Glen Rock Borough, Bergen County","0222","Bergen",2909801829,3155657099,3435721151,3167060026.3333335]
["Gloucester City","Gloucester City, Camden County","0414","Camden",652705893,724169949,844685340,740520394]
["Gloucester County",{"$f":"A184","v":"Gloucester County"},"0800","Gloucester",33944924694,38066589418,42255109559,38088874557]
["Gloucester Township","Gloucester Township, Camden County","0415","Camden",5641114325,6482939895,7062943710,6395665976.666667]
["Green Brook Township","Green Brook Township, Somerset County","1809","Somerset",1681019259,1794752284,1908132482,1794634675]
["Green Township","Green Township, Sussex County","1908","Sussex",570685161,618050314,690878986,626538153.66666663]
["Greenwich Township (Cumberland)","Greenwich Township (Cumberland), Cumberland County","0606","Cumberland",82359471,91351701,96807499,90172890.333333328]
["Greenwich Township (Gloucester)","Greenwich Township (Gloucester), Gloucester County","0807","Gloucester",795892149,923351547,1044780288,921341328]
["Greenwich Township (Warren)","Greenwich Township (Warren), Warren County","2107","Warren",836209827,911698568,936292004,894733466.33333337]
["Guttenberg Town","Guttenberg Town, Hudson County","0903","Hudson",1217693978,1343018654,1338780817,1299831149.6666667]
["Hackensack City","Hackensack City, Bergen County","0223","Bergen",7120307060,7568298135,8239423844,7642676346.333333]
["Hackettstown Town","Hackettstown Town, Warren County","2108","Warren",1144747290,1211468145,1332433557,1229549664]
["Haddon Heights Borough","Haddon Heights Borough, Camden County","0418","Camden",910106399,958490377,994479208,954358661.33333337]
["Haddon Township",{"$f":"A195&\", \"&D195&\" County\"","v":"Haddon Township, Camden County"},"0416","Camden",1715110655,1880026434,2106314868,{"$f":"AVERAGE(E195:G195)","v":1900483985.6666667}]
["Haddonfield Borough","Haddonfield Borough, Camden County","0417","Camden",2725318967,2905040264,3103340093,2911233108]
["Hainesport Township","Hainesport Township, Burlington County","0316","Burlington",967999379,1109082196,1211689239,1096256938]
["Haledon Borough","Haledon Borough, Passaic County","1603","Passaic",845135279,914863801,984933190,914977423.33333337]
["Hamburg Borough","Hamburg Borough, Sussex County","1909","Sussex",332920058,370948815,445803102,383223991.66666669]
["Hamilton Township (Atlantic)","Hamilton Township (Atlantic), Atlantic County","0112","Atlantic",2682437039,2967046714,3297613039,2982365597.3333335]
["Hamilton Township (Mercer)","Hamilton Township (Mercer), Mercer County","1103","Mercer",10477696786,11742782499,13553567270,11924682185]
["Hammonton Town","Hammonton Town, Atlantic County","0113","Atlantic",1612862376,1735450321,1923877579,1757396758.6666667]
["Hampton Borough","Hampton Borough, Hunterdon County","1013","Hunterdon",127730634,140532953,141000692,136421426.33333334]
["Hampton Township","Hampton Township, Sussex County","1910","Sussex",796381327,893331081,989322539,893011649]
["Hanover Township","Hanover Township, Morris County","1412","Morris",5061375099,5170066301,5126130859,5119190753]
["Harding Township","Harding Township, Morris County","1413","Morris",2335628114,2456028908,2626101129,2472586050.3333335]
["Hardwick Township","Hardwick Township, Warren County","2109","Warren",223711174,238286937,268923898,243640669.66666666]
["Hardyston Township","Hardyston Township, Sussex County","1911","Sussex",1320151563,1518441308,1819866064,1552819645]
["Harmony Township","Harmony Township, Warren County","2110","Warren",676232595,781330570,787662723,748408629.33333337]
["Harrington Park Borough","Harrington Park Borough, Bergen County","0224","Bergen",1187498864,1276498309,1354612057,1272869743.3333333]
["Harrison Town","Harrison Town, Hudson County","0904","Hudson",1719994005,1888421138,2115485289,1907966810.6666667]
["Harrison Township","Harrison Township, Gloucester County","0808","Gloucester",1935756672,2164718288,2403142439,2167872466.3333335]
["Harvey Cedars Borough","Harvey Cedars Borough, Ocean County","1509","Ocean",1701650039,2089669293,2277472457,2022930596.3333333]
["Hasbrouck Heights Borough","Hasbrouck Heights Borough, Bergen County","0225","Bergen",2251437928,2267389568,2550875817,2356567771]
["Haworth Borough","Haworth Borough, Bergen County","0226","Bergen",1030004668,1112773371,1268927876,1137235305]
["Hawthorne Borough","Hawthorne Borough, Passaic County","1604","Passaic",3046865685,3303081625,3593935056,3314627455.3333335]
["Hazlet Township","Hazlet Township, Monmouth County","1339","Monmouth",3276110212,3556931385,3803490299,3545510632]
["Helmetta Borough","Helmetta Borough, Middlesex County","1206","Middlesex",266300500,286358456,321582604,291413853.33333331]
["High Bridge Borough","High Bridge Borough, Hunterdon County","1014","Hunterdon",417874514,477683797,517179425,470912578.66666669]
["Highland Park Borough","Highland Park Borough, Middlesex County","1207","Middlesex",1584606028,1903907398,2080547305,1856353577]
["Highlands Borough","Highlands Borough, Monmouth County","1317","Monmouth",928818467,1016423398,1175135298,1040125721]
["Hightstown Borough","Hightstown Borough, Mercer County","1104","Mercer",534602123,576643697,659530592,590258804]
["Hillsborough Township","Hillsborough Township, Somerset County","1810","Somerset",7919752941,8700602898,9647532665,8755962834.666666]
["Hillsdale Borough","Hillsdale Borough, Bergen County","0227","Bergen",2100603918,2250707439,2474544903,2275285420]
["Hillside Township","Hillside Township, Union County","2007","Union",2608314484,2918210255,3525784776,3017436505]
["Hi-Nella Borough","Hi-Nella Borough, Camden County","0419","Camden",44666432,52334477,60205148,52402019]
["Hoboken City","Hoboken City, Hudson County","0905","Hudson",18026624469,18974088091,20234123243,19078278601]
["Ho-Ho-Kus Borough","Ho-Ho-Kus Borough, Bergen County","0228","Bergen",1485128992,1608475282,1760844239,1618149504.3333333]
["Holland Township","Holland Township, Hunterdon County","1015","Hunterdon",803041655,885348761,980045459,889478625]
["Holmdel Township","Holmdel Township, Monmouth County","1318","Monmouth",5049791427,5362208028,5862469285,5424822913.333333]
["Hopatcong Borough","Hopatcong Borough, Sussex County","1912","Sussex",2035541601,2277945457,2615945870,2309810976]
["Hope Township","Hope Township, Warren County","2111","Warren",297701311,323617582,344122517,321813803.33333331]
["Hopewell Borough","Hopewell Borough, Mercer County","1105","Mercer",372210305,396764948,435817434,401597562.33333331]
["Hopewell Township (Cumberland)","Hopewell Township (Cumberland), Cumberland County","0607","Cumberland",376956672,434167020,452810512,421311401.33333331]
["Hopewell Township (Mercer)","Hopewell Township (Mercer), Mercer County","1106","Mercer",4576404661,4840208822,5317946548,4911520010.333333]
["Howell Township","Howell Township, Monmouth County","1319","Monmouth",9441290247,10631507171,11634858401,10569218606.333334]
["Hudson County",{"$f":"A237","v":"Hudson County"},"0900","Hudson",114006702257,119003664649,125180776525,119397047810.33333]
["Hunterdon County","Hunterdon County","1000","Hunterdon",25059697208,27006086439,29223049599,27096277748.666668]
["Independence Township","Independence Township, Warren County","2112","Warren",694053471,743652590,787447831,741717964]
["Interlaken Borough","Interlaken Borough, Monmouth County","1320","Monmouth",441561784,485904486,542463470,489976580]
["Irvington Township","Irvington Township, Essex County","0709","Essex",2979884209,3518380775,4288256344,3595507109.3333335]
["Island Heights Borough","Island Heights Borough, Ocean County","1510","Ocean",480514921,515341093,580155951,525337321.66666669]
["Jackson Township","Jackson Township, Ocean County","1511","Ocean",9994548881,11648195013,12852454028,11498399307.333334]
["Jamesburg Borough","Jamesburg Borough, Middlesex County","1208","Middlesex",527295555,574301671,637712137,579769787.66666663]
["Jefferson Township","Jefferson Township, Morris County","1414","Morris",3092881918,3312187203,3568669991,3324579704]
["Jersey City","Jersey City, Hudson County","0906","Hudson",49317588976,50716365939,49713888513,49915947809.333336]
["Keansburg Borough","Keansburg Borough, Monmouth County","1321","Monmouth",840918218,901561950,1043390716,928623628]
["Kearny Town","Kearny Town, Hudson County","0907","Hudson",5623201448,5894295408,6247705218,5921734024.666667]
["Kenilworth Borough","Kenilworth Borough, Union County","2008","Union",2135177411,2459328641,2559108960,2384538337.3333335]
["Keyport Borough","Keyport Borough, Monmouth County","1322","Monmouth",1022346480,1056898246,1167318681,1082187802.3333333]
["Kingwood Township","Kingwood Township, Hunterdon County","1016","Hunterdon",741206190,785780157,860651918,795879421.66666663]
["Kinnelon Borough","Kinnelon Borough, Morris County","1415","Morris",2250977666,2465467211,2614185171,2443543349.3333335]
["Knowlton Township","Knowlton Township, Warren County","2113","Warren",387242598,434300890,475204620,432249369.33333331]
["Lacey Township","Lacey Township, Ocean County","1512","Ocean",5152074026,5694850504,6217818827,5688247785.666667]
["Lafayette Township","Lafayette Township, Sussex County","1913","Sussex",397258259,451639069,496171986,448356438]
["Lake Como Borough","Lake Como Borough, Monmouth County","1347","Monmouth",564339644,701133606,747477109,670983453]
["Lakehurst Borough","Lakehurst Borough, Ocean County","1513","Ocean",201387006,229065485,257726632,229393041]
["Lakewood Township","Lakewood Township, Ocean County","1514","Ocean",15137720062,17930720731,19807315743,17625252178.666668]
["Lambertville City",{"$f":"A259&\", \"&D259&\" County\"","v":"Lambertville City, Hunterdon County"},"1017","Hunterdon",954871366,1032423314,1104279376,{"$f":"AVERAGE(E259:G259)","v":1030524685.3333334}]
["Laurel Springs Borough","Laurel Springs Borough, Camden County","0420","Camden",137938427,156149325,176694813,156927521.66666666]
["Lavallette Borough","Lavallette Borough, Ocean County","1515","Ocean",3154351398,3520053355,3982668412,3552357721.6666665]
["Lawnside Borough","Lawnside Borough, Camden County","0421","Camden",224444218,280790394,338130067,281121559.66666669]
["Lawrence Township (Cumberland)","Lawrence Township (Cumberland), Cumberland County","0608","Cumberland",246493476,257566076,279020816,261026789.33333334]
["Lawrence Township (Mercer)","Lawrence Township (Mercer), Mercer County","1107","Mercer",5484374254,5698762095,6258412397,5813849582]
["Lebanon Borough","Lebanon Borough, Hunterdon County","1018","Hunterdon",291020644,321762838,335352597,316045359.66666669]
["Lebanon Township","Lebanon Township, Hunterdon County","1019","Hunterdon",1096830979,1150249618,1256439423,1167840006.6666667]
["Leonia Borough","Leonia Borough, Bergen County","0229","Bergen",1745191092,1963261364,2040182399,1916211618.3333333]
["Liberty Township","Liberty Township, Warren County","2114","Warren",342962209,387908523,432467425,387779385.66666669]
["Lincoln Park Borough","Lincoln Park Borough, Morris County","1416","Morris",1646722215,1777004181,2036345295,1820023897]
["Linden City","Linden City, Union County","2009","Union",7767533087,8705415642,9864080128,8779009619]
["Lindenwold Borough","Lindenwold Borough, Camden County","0422","Camden",723589629,829099474,923074949,825254684]
["Linwood City","Linwood City, Atlantic County","0114","Atlantic",1056474526,1212070697,1346191626,1204912283]
["Little Egg Harbor Township","Little Egg Harbor Township, Ocean County","1516","Ocean",3245768387,3684666819,4108341585,3679592263.6666665]
["Little Falls Township","Little Falls Township, Passaic County","1605","Passaic",1949689100,2183619587,2465932359,2199747015.3333335]
["Little Ferry Borough","Little Ferry Borough, Bergen County","0230","Bergen",1527378577,1610581338,1747829341,1628596418.6666667]
["Little Silver Borough","Little Silver Borough, Monmouth County","1323","Monmouth",1979195144,2149745456,2490124732,2206355110.6666665]
["Livingston Township","Livingston Township, Essex County","0710","Essex",9566836317,10355437193,11607225832,10509833114]
["Loch Arbour Village","Loch Arbour Village, Monmouth County","1324","Monmouth",205980751,206193748,266618246,226264248.33333334]
["Lodi Borough","Lodi Borough, Bergen County","0231","Bergen",2923920623,3319991406,3545418188,3263110072.3333335]
["Logan Township","Logan Township, Gloucester County","0809","Gloucester",2002841253,2419521706,2873054269,2431805742.6666665]
["Long Beach Township","Long Beach Township, Ocean County","1517","Ocean",12943154803,14348225992,14928257958,14073212917.666666]
["Long Branch City","Long Branch City, Monmouth County","1325","Monmouth",7266915461,8274581634,9666184248,8402560447.666667]
["Long Hill Township","Long Hill Township, Morris County","1430","Morris",1936262198,2026012156,2125543205,2029272519.6666667]
["Longport Borough","Longport Borough, Atlantic County","0115","Atlantic",2424072811,2905002256,3126886010,2818653692.3333335]
["Lopatcong Township","Lopatcong Township, Warren County","2115","Warren",1092211835,1164586387,1263698199,1173498807]
["Lower Alloways Creek Township","Lower Alloways Creek Township, Salem County","1704","Salem",318027466,350330145,428421778,365593129.66666669]
["Lower Township","Lower Township, Cape May County","0505","Cape May",5674043899,6439424494,7417933029,6510467140.666667]
["Lumberton Township","Lumberton Township, Burlington County","0317","Burlington",1601419708,1857661475,2036342798,1831807993.6666667]
["Lyndhurst Township","Lyndhurst Township, Bergen County","0232","Bergen",4116367423,4480526641,5086094034,4560996032.666667]
["Madison Borough","Madison Borough, Morris County","1417","Morris",4412921256,5045953885,5363781863,4940885668]
["Magnolia Borough","Magnolia Borough, Camden County","0423","Camden",348667893,392400709,446657071,395908557.66666669]
["Mahwah Township","Mahwah Township, Bergen County","0233","Bergen",7392443261,7995616512,8056800834,7814953535.666667]
["Manalapan Township","Manalapan Township, Monmouth County","1326","Monmouth",8899367619,9473641875,10498367855,9623792449.666666]
["Manasquan Borough","Manasquan Borough, Monmouth County","1327","Monmouth",3051133074,3419683380,3724950009,3398588821]
["Manchester Township","Manchester Township, Ocean County","1518","Ocean",5684986572,6560361620,7085311388,6443553193.333333]
["Mannington Township","Mannington Township, Salem County","1705","Salem",182523014,190165059,207941190,193543087.66666666]
["Mansfield Township (Burlington)","Mansfield Township (Burlington), Burlington County","0318","Burlington",1359135577,1427069562,1476733940,1420979693]
["Mansfield Township (Warren)","Mansfield Township (Warren), Warren County","2116","Warren",910853136,962266534,1015446999,962855556.33333337]
["Mantoloking Borough","Mantoloking Borough, Ocean County","1519","Ocean",2113882123,2425789110,2679243995,2406305076]
["Mantua Township","Mantua Township, Gloucester County","0810","Gloucester",1918370794,2089998121,2197491265,2068620060]
["Manville Borough","Manville Borough, Somerset County","1811","Somerset",1104875422,1251849398,1370180308,1242301709.3333333]
["Maple Shade Township","Maple Shade Township, Burlington County","0319","Burlington",1648113878,1934021264,2159543058,1913892733.3333333]
["Maplewood Township","Maplewood Township, Essex County","0711","Essex",4984226701,5300639805,6102576870,5462481125.333333]
["Margate City","Margate City, Atlantic County","0116","Atlantic",5648623042,6774522786,7839564078,6754236635.333333]
["Marlboro Township","Marlboro Township, Monmouth County","1328","Monmouth",9492389912,10327572109,11201792342,10340584787.666666]
["Matawan Borough","Matawan Borough, Monmouth County","1329","Monmouth",1394376388,1467943052,1597673016,1486664152]
["Maurice River Township","Maurice River Township, Cumberland County","0609","Cumberland",323915213,329584304,334426752,329308756.33333331]
["Maywood Borough","Maywood Borough, Bergen County","0234","Bergen",1873193820,1894906862,2078955592,1949018758]
["Medford Lakes Borough","Medford Lakes Borough, Burlington County","0321","Burlington",611396640,676684502,743134014,677071718.66666663]
["Medford Township","Medford Township, Burlington County","0320","Burlington",4096331160,4645339259,5118078883,4619916434]
["Mendham Borough","Mendham Borough, Morris County","1418","Morris",1420959847,1536565684,1600615677,1519380402.6666667]
["Mendham Township","Mendham Township, Morris County","1419","Morris",2084590216,2235807170,2508752086,2276383157.3333335]
["Mercer County",{"$f":"A313","v":"Mercer County"},"1100","Mercer",52390650162,58197916266,64157777240,58248781222.666664]
["Merchantville Borough","Merchantville Borough, Camden County","0424","Camden",307494839,341004085,372744179,340414367.66666669]
["Metuchen Borough","Metuchen Borough, Middlesex County","1210","Middlesex",2992709264,3088546989,3339883069,3140379774]
["Middle Township","Middle Township, Cape May County","0506","Cape May",3420424567,3860734256,4330190498,3870449773.6666665]
["Middlesex Borough","Middlesex Borough, Middlesex County","1211","Middlesex",2077941507,2324028172,2450877880,2284282519.6666665]
["Middlesex County",{"$f":"A318","v":"Middlesex County"},"1200","Middlesex",134441727583,144193601653,156773766092,145136365109.33334]
["Middletown Township","Middletown Township, Monmouth County","1331","Monmouth",13750270540,15200679253,16930603609,15293851134]
["Midland Park Borough","Midland Park Borough, Bergen County","0235","Bergen",1413789659,1523448242,1683259494,1540165798.3333333]
["Milford Borough","Milford Borough, Hunterdon County","1020","Hunterdon",139224421,137237129,150766254,142409268]
["Millburn Township","Millburn Township, Essex County","0712","Essex",10780489785,12154716960,12710485956,11881897567]
["Millstone Borough",{"$f":"A323&\", \"&D323&\" County\"","v":"Millstone Borough, Somerset County"},"1812","Somerset",64619006,70690946,76605187,{"$f":"AVERAGE(E323:G323)","v":70638379.666666672}]
["Millstone Township","Millstone Township, Monmouth County","1332","Monmouth",2347221230,2611732057,3132268995,2697074094]
["Milltown Borough","Milltown Borough, Middlesex County","1212","Middlesex",1132980617,1192310382,1232694652,1185995217]
["Millville City","Millville City, Cumberland County","0610","Cumberland",1986283613,2219982528,2444746029,2217004056.6666665]
["Mine Hill Township","Mine Hill Township, Morris County","1420","Morris",560524738,616842163,671950701,616439200.66666663]
["Monmouth Beach Borough","Monmouth Beach Borough, Monmouth County","1333","Monmouth",2024270650,2243620308,2334059456,2200650138]
["Monmouth County",{"$f":"A329","v":"Monmouth County"},"1300","Monmouth",165078093951,182398930719,199899074117,182458699595.66666]
["Monroe Township (Gloucester)","Monroe Township (Gloucester), Gloucester County","0811","Gloucester",3538277615,3919980362,4330193524,3929483833.6666665]
["Monroe Township (Middlesex)","Monroe Township (Middlesex), Middlesex County","1213","Middlesex",11773670615,13723329943,15162474406,13553158321.333334]
["Montague Township","Montague Township, Sussex County","1914","Sussex",437384041,464540527,530390407,477438325]
["Montclair Township","Montclair Township, Essex County","0713","Essex",9824992825,10710573269,11659067458,10731544517.333334]
["Montgomery Township","Montgomery Township, Somerset County","1813","Somerset",5497603203,6189267022,6742639608,6143169944.333333]
["Montvale Borough","Montvale Borough, Bergen County","0236","Bergen",2532396557,2742289459,2874802214,2716496076.6666665]
["Montville Township","Montville Township, Morris County","1421","Morris",5358717409,5727921695,6301365462,5796001522]
["Moonachie Borough","Moonachie Borough, Bergen County","0237","Bergen",1067964804,1257720184,1273177482,1199620823.3333333]
["Moorestown Township","Moorestown Township, Burlington County","0322","Burlington",5347392242,5906461873,6247481828,5833778647.666667]
["Morris County",{"$f":"A339","v":"Morris County"},"1400","Morris",106640527243,115736016092,125439232437,115938591924]
["Morris Plains Borough","Morris Plains Borough, Morris County","1423","Morris",1630596028,1796673532,1955786465,1794352008.3333333]
["Morris Township","Morris Township, Morris County","1422","Morris",6050563204,6480606258,6883823876,6471664446]
["Morristown Town","Morristown Town, Morris County","1424","Morris",2942210914,4142265118,4975595736,4020023922.6666665]
["Mount Arlington Borough","Mount Arlington Borough, Morris County","1426","Morris",932301344,1091292301,1217343896,1080312513.6666667]
["Mount Ephraim Borough","Mount Ephraim Borough, Camden County","0425","Camden",368552272,408105017,446504074,407720454.33333331]
["Mount Holly Township","Mount Holly Township, Burlington County","0323","Burlington",775742885,891746060,993438201,886975715.33333337]
["Mount Laurel Township","Mount Laurel Township, Burlington County","0324","Burlington",7340517893,7952598774,9089754533,8127623733.333333]
["Mount Olive Township","Mount Olive Township, Morris County","1427","Morris",3989680267,4433092187,4757517539,4393429997.666667]
["Mountain Lakes Borough","Mountain Lakes Borough, Morris County","1425","Morris",1432291858,1593272327,1804326236,1609963473.6666667]
["Mountainside Borough","Mountainside Borough, Union County","2010","Union",2160396347,2415187420,2547904870,2374496212.3333335]
["Mullica Township","Mullica Township, Atlantic County","0117","Atlantic",612471784,659972744,771542614,681329047.33333337]
["National Park Borough","National Park Borough, Gloucester County","0812","Gloucester",191564127,220444323,248934409,220314286.33333334]
["Neptune City Borough","Neptune City Borough, Monmouth County","1335","Monmouth",834815487,880241906,947684987,887580793.33333337]
["Neptune Township","Neptune Township, Monmouth County","1334","Monmouth",5342239591,6151246298,6684805298,6059430395.666667]
["Netcong Borough","Netcong Borough, Morris County","1428","Morris",330933278,347522320,387006173,355153923.66666669]
["New Brunswick City","New Brunswick City, Middlesex County","1214","Middlesex",3991047400,4292931120,4572228648,4285402389.3333335]
["New Hanover Township","New Hanover Township, Burlington County","0325","Burlington",114882227,124449961,129345772,122892653.33333333]
["New Milford Borough","New Milford Borough, Bergen County","0238","Bergen",2474406955,2603817532,2899328522,2659184336.3333335]
["New Providence Borough","New Providence Borough, Union County","2011","Union",3356498489,3535070241,3776377330,3555982020]
["Newark City","Newark City, Essex County","0714","Essex",15179496273,23690475816,28414030930,22428001006.333332]
["Newfield Borough","Newfield Borough, Gloucester County","0813","Gloucester",166719965,187889814,206307105,186972294.66666666]
["Newton Town","Newton Town, Sussex County","1915","Sussex",786408691,881096984,1019353977,895619884]
["North Arlington Borough","North Arlington Borough, Bergen County","0239","Bergen",2467128926,2630303358,2708280968,2601904417.3333335]
["North Bergen Township","North Bergen Township, Hudson County","0908","Hudson",9778338869,10111142587,10547071183,10145517546.333334]
["North Brunswick Township","North Brunswick Township, Middlesex County","1215","Middlesex",6239961303,6333547230,7112424764,6561977765.666667]
["North Caldwell Borough","North Caldwell Borough, Essex County","0715","Essex",2159840123,2330556113,2487569361,2325988532.3333335]
["North Haledon Borough","North Haledon Borough, Passaic County","1606","Passaic",1531773610,1706450659,1855557276,1697927181.6666667]
["North Hanover Township","North Hanover Township, Burlington County","0326","Burlington",467507571,550673680,618956787,545712679.33333337]
["North Plainfield Borough","North Plainfield Borough, Somerset County","1814","Somerset",2224575447,2363282744,2637267269,2408375153.3333335]
["North Wildwood City","North Wildwood City, Cape May County","0507","Cape May",3798490805,4359284298,4863888769,4340554624]
["Northfield City","Northfield City, Atlantic County","0118","Atlantic",994308440,1079823741,1260257875,1111463352]
["Northvale Borough","Northvale Borough, Bergen County","0240","Bergen",1076892287,1124461905,1293907737,1165087309.6666667]
["Norwood Borough","Norwood Borough, Bergen County","0241","Bergen",1427450948,1515017975,1743363457,1561944126.6666667]
["Nutley Township","Nutley Township, Essex County","0716","Essex",4689778849,5129597625,5555435143,5124937205.666667]
["Oakland Borough","Oakland Borough, Bergen County","0242","Bergen",3350320366,3317563500,3485842340,3384575402]
["Oaklyn Borough","Oaklyn Borough, Camden County","0426","Camden",343365883,376228406,436146964,385247084.33333331]
["Ocean City","Ocean City, Cape May County","0508","Cape May",18280874535,21169343729,23121323620,20857180628]
["Ocean County",{"$f":"A377","v":"Ocean County"},"1500","Ocean",140305357835,159573283478,174565245449,158147962254]
["Ocean Gate Borough","Ocean Gate Borough, Ocean County","1521","Ocean",336968643,389416695,466073748,397486362]
["Ocean Township (Monmouth)","Ocean Township (Monmouth), Monmouth County","1337","Monmouth",7870682534,8520078993,9443102492,8611288006.333334]
["Ocean Township (Ocean)","Ocean Township (Ocean), Ocean County","1520","Ocean",1841387026,2095332869,2307793416,2081504437]
["Oceanport Borough","Oceanport Borough, Monmouth County","1338","Monmouth",1717269327,1880987117,2075808625,1891355023]
["Ogdensburg Borough","Ogdensburg Borough, Sussex County","1916","Sussex",240029147,265560498,299573602,268387749]
["Old Bridge Township","Old Bridge Township, Middlesex County","1209","Middlesex",10089726346,10812011048,12175641697,11025793030.333334]
["Old Tappan Borough","Old Tappan Borough, Bergen County","0243","Bergen",1939812472,2124750786,2363052265,2142538507.6666667]
["Oldmans Township","Oldmans Township, Salem County","1706","Salem",288776955,326256303,338896755,317976671]
["Oradell Borough","Oradell Borough, Bergen County","0244","Bergen",2027185310,2165122968,2444756798,2212355025.3333335]
["Orange City",{"$f":"A387&\", \"&D387&\" County\"","v":"Orange City, Essex County"},"0717","Essex",2069622141,2253798526,2575938987,{"$f":"AVERAGE(E387:G387)","v":2299786551.3333335}]
["Oxford Township","Oxford Township, Warren County","2117","Warren",225977344,258092544,278324348,254131412]
["Palisades Park Borough","Palisades Park Borough, Bergen County","0245","Bergen",3974619484,4189837209,4462559334,4209005342.3333335]
["Palmyra Borough","Palmyra Borough, Burlington County","0327","Burlington",631591016,717508595,798465810,715855140.33333337]
["Paramus Borough","Paramus Borough, Bergen County","0246","Bergen",12780494320,12652175281,13784548871,13072406157.333334]
["Park Ridge Borough","Park Ridge Borough, Bergen County","0247","Bergen",2116936445,2235385954,2374565660,2242296019.6666665]
["Parsippany-Troy Hills Township","Parsippany-Troy Hills Township, Morris County","1429","Morris",9506339416,9647024554,10286209668,9813191212.666666]
["Passaic City","Passaic City, Passaic County","1607","Passaic",4965833418,5349962230,5828610055,5381468567.666667]
["Passaic County",{"$f":"A395","v":"Passaic County"},"1600","Passaic",63220495622,71025234104,76814596886,70353442204]
["Paterson City","Paterson City, Passaic County","1608","Passaic",10218987117,11838765611,13264751769,11774168165.666666]
["Paulsboro Borough","Paulsboro Borough, Gloucester County","0814","Gloucester",388796260,430939058,511607922,443781080]
["Peapack-Gladstone Borough","Peapack-Gladstone Borough, Somerset County","1815","Somerset",800081626,861801277,872192871,844691924.66666663]
["Pemberton Borough","Pemberton Borough, Burlington County","0328","Burlington",125992719,138436321,145816306,136748448.66666666]
["Pemberton Township","Pemberton Township, Burlington County","0329","Burlington",1817263865,2035879793,2258172649,2037105435.6666667]
["Pennington Borough","Pennington Borough, Mercer County","1108","Mercer",612650035,671217086,719540301,667802474]
["Penns Grove Borough","Penns Grove Borough, Salem County","1707","Salem",159144331,187260246,203361564,183255380.33333334]
["Pennsauken Township","Pennsauken Township, Camden County","0427","Camden",3300533305,3358367211,3891332459,3516744325]
["Pennsville Township","Pennsville Township, Salem County","1708","Salem",1103487225,1212798673,1316335868,1210873922]
["Pequannock Township","Pequannock Township, Morris County","1431","Morris",3175207262,3360772428,3661954512,3399311400.6666665]
["Perth Amboy City","Perth Amboy City, Middlesex County","1216","Middlesex",4152063962,4418182910,4772616612,4447621161.333333]
["Phillipsburg Town","Phillipsburg Town, Warren County","2119","Warren",899030588,986194371,1111257813,998827590.66666663]
["Pilesgrove Township","Pilesgrove Township, Salem County","1709","Salem",556371166,595792017,675643938,609269040.33333337]
["Pine Beach Borough","Pine Beach Borough, Ocean County","1522","Ocean",380858008,425423414,455124069,420468497]
["Pine Hill Borough","Pine Hill Borough, Camden County","0428","Camden",613197536,689795338,798774396,700589090]
["Piscataway Township","Piscataway Township, Middlesex County","1217","Middlesex",10611760999,11298706681,11887127948,11265865209.333334]
["Pitman Borough","Pitman Borough, Gloucester County","0815","Gloucester",787083823,892778419,1006632562,895498268]
["Pittsgrove Township","Pittsgrove Township, Salem County","1710","Salem",723271203,854731941,908501558,828834900.66666663]
["Plainfield City","Plainfield City, Union County","2012","Union",3787962519,4045032392,4382823668,4071939526.3333335]
["Plainsboro Township","Plainsboro Township, Middlesex County","1218","Middlesex",4826280374,4997715524,5390446747,5071480881.666667]
["Pleasantville City","Pleasantville City, Atlantic County","0119","Atlantic",910873220,1170596476,1260840790,1114103495.3333333]
["Plumsted Township","Plumsted Township, Ocean County","1523","Ocean",1086028306,1170199642,1266777617,1174335188.3333333]
["Pohatcong Township","Pohatcong Township, Warren County","2120","Warren",448502415,456016870,521373321,475297535.33333331]
["Point Pleasant Beach Borough","Point Pleasant Beach Borough, Ocean County","1525","Ocean",2744747053,3119621560,3404092565,3089487059.3333335]
["Point Pleasant Borough","Point Pleasant Borough, Ocean County","1524","Ocean",4548876921,5126927441,5715025611,5130276657.666667]
["Pompton Lakes Borough","Pompton Lakes Borough, Passaic County","1609","Passaic",1536011616,1721713541,1922468365,1726731174]
["Port Republic City","Port Republic City, Atlantic County","0120","Atlantic",161263671,182715668,220855972,188278437]
["Princeton","Princeton, Mercer County","1114","Mercer",9341543866,10086302159,10727963759,10051936594.666666]
["Prospect Park Borough","Prospect Park Borough, Passaic County","1610","Passaic",447630498,496416036,559404564,501150366]
["Quinton Township","Quinton Township, Salem County","1711","Salem",222653129,254354208,259360591,245455976]
["Rahway City","Rahway City, Union County","2013","Union",3524352770,3957799096,4360158418,3947436761.3333335]
["Ramsey Borough","Ramsey Borough, Bergen County","0248","Bergen",4114942977,4397812882,4930471211,4481075690]
["Randolph Township","Randolph Township, Morris County","1432","Morris",4971315939,5238182090,5689278302,5299592110.333333]
["Raritan Borough","Raritan Borough, Somerset County","1816","Somerset",1606038729,1689763324,1806047103,1700616385.3333333]
["Raritan Township","Raritan Township, Hunterdon County","1021","Hunterdon",5153325874,5699953621,6124484615,5659254703.333333]
["Readington Township","Readington Township, Hunterdon County","1022","Hunterdon",3755486842,4011431760,4590818957,4119245853]
["Red Bank Borough","Red Bank Borough, Monmouth County","1340","Monmouth",2840349390,3152835530,3346112973,3113099297.6666665]
["Ridgefield Borough","Ridgefield Borough, Bergen County","0249","Bergen",2300420925,2684051634,2624669030,2536380529.6666665]
["Ridgefield Park Village","Ridgefield Park Village, Bergen County","0250","Bergen",1878856389,2003431271,2137300035,2006529231.6666667]
["Ridgewood Village","Ridgewood Village, Bergen County","0251","Bergen",7749485941,8368388622,8799972993,8305949185.333333]
["Ringwood Borough","Ringwood Borough, Passaic County","1611","Passaic",2014926505,2196532921,2356403469,2189287631.6666665]
["River Edge Borough","River Edge Borough, Bergen County","0252","Bergen",2113434986,2307487618,2463707769,2294876791]
["River Vale Township","River Vale Township, Bergen County","0253","Bergen",2327511040,2505303630,2777365516,2536726728.6666665]
["Riverdale Borough","Riverdale Borough, Morris County","1433","Morris",1041202900,1028677039,1090377023,1053418987.3333334]
["Riverside Township","Riverside Township, Burlington County","0330","Burlington",537281605,603648787,689294015,610074802.33333337]
["Riverton Borough","Riverton Borough, Burlington County","0331","Burlington",324375618,353236077,387194414,354935369.66666669]
["Robbinsville Township","Robbinsville Township, Mercer County","1112","Mercer",3251870593,3632526548,3984966045,3623121062]
["Rochelle Park Township","Rochelle Park Township, Bergen County","0254","Bergen",1141465517,1224147606,1399724505,1255112542.6666667]
["Rockaway Borough","Rockaway Borough, Morris County","1434","Morris",909832050,987190684,1037449180,978157304.66666663]
["Rockaway Township","Rockaway Township, Morris County","1435","Morris",5202925713,5666278351,6287813282,5719005782]
["Rockleigh Borough","Rockleigh Borough, Bergen County","0255","Bergen",234376225,229027505,211457666,224953798.66666666]
["Rocky Hill Borough","Rocky Hill Borough, Somerset County","1817","Somerset",137353979,162845455,173149543,157782992.33333334]
["Roosevelt Borough","Roosevelt Borough, Monmouth County","1341","Monmouth",104916237,109263120,128266940,114148765.66666667]
["Roseland Borough","Roseland Borough, Essex County","0718","Essex",1864419851,1945111935,2147576589,1985702791.6666667]
["Roselle Borough","Roselle Borough, Union County","2014","Union",1921901874,2271165531,2592460752,{"$f":"AVERAGE(E450:G450)","v":2261842719}]
["Roselle Park Borough",{"$f":"A451&\", \"&D451&\" County\"","v":"Roselle Park Borough, Union County"},"2015","Union",1609775216,1743012428,1875021933,1742603192.3333333]
["Roxbury Township","Roxbury Township, Morris County","1436","Morris",4273443174,4543566496,4971767106,4596258925.333333]
["Rumson Borough","Rumson Borough, Monmouth County","1342","Monmouth",4768493083,5101869964,5641064938,5170475995]
["Runnemede Borough","Runnemede Borough, Camden County","0430","Camden",658540562,738803933,843932554,747092349.66666663]
["Rutherford Borough","Rutherford Borough, Bergen County","0256","Bergen",3519445090,3697458446,3775617541,3664173692.3333335]
["Saddle Brook Township","Saddle Brook Township, Bergen County","0257","Bergen",3014850062,3083846565,3613615589,3237437405.3333335]
["Saddle River Borough","Saddle River Borough, Bergen County","0258","Bergen",2521162082,2528771166,2668320791,2572751346.3333335]
["Salem City","Salem City, Salem County","1712","Salem",164007487,181659685,215713124,187126765.33333334]
["Salem County",{"$f":"A459","v":"Salem County"},"1700","Salem",5744667585,6471410840,7044583694,6420220706.333333]
["Sandyston Township","Sandyston Township, Sussex County","1917","Sussex",319287067,325946692,371322819,338852192.66666669]
["Sayreville Borough","Sayreville Borough, Middlesex County","1219","Middlesex",5918156559,6545133891,7017551418,6493613956]
["Scotch Plains Township","Scotch Plains Township, Union County","2016","Union",5061659034,5478807364,5965552282,5502006226.666667]
["Sea Bright Borough","Sea Bright Borough, Monmouth County","1343","Monmouth",1142031070,1349964058,1429408738,1307134622]
["Sea Girt Borough","Sea Girt Borough, Monmouth County","1344","Monmouth",3105515248,3771298664,3891169171,3589327694.3333335]
["Sea Isle City","Sea Isle City, Cape May County","0509","Cape May",8074767121,9162207853,9965156475,9067377149.666666]
["Seaside Heights Borough","Seaside Heights Borough, Ocean County","1526","Ocean",931471403,1118833088,1312513672,1120939387.6666667]
["Seaside Park Borough","Seaside Park Borough, Ocean County","1527","Ocean",1493981970,1680635355,1878639129,1684418818]
["Secaucus Town","Secaucus Town, Hudson County","0909","Hudson",5869292895,5732062889,7820007755,6473787846.333333]
["Shamong Township","Shamong Township, Burlington County","0332","Burlington",864501832,964584111,1073708091,967598011.33333337]
["Shiloh Borough","Shiloh Borough, Cumberland County","0611","Cumberland",37880112,38491794,39111283,38494396.333333336]
["Ship Bottom Borough","Ship Bottom Borough, Ocean County","1528","Ocean",2010978630,2335093537,2568807101,2304959756]
["Shrewsbury Borough","Shrewsbury Borough, Monmouth County","1345","Monmouth",1490635267,1567298629,1638501042,1565478312.6666667]
["Shrewsbury Township","Shrewsbury Township, Monmouth County","1346","Monmouth",66127687,97708095,105341260,89725680.666666672]
["Somerdale Borough","Somerdale Borough, Camden County","0431","Camden",460748741,520252833,566211864,515737812.66666669]
["Somers Point City","Somers Point City, Atlantic County","0121","Atlantic",1452757789,1691607496,1833241069,1659202118]
["Somerset County",{"$f":"A476","v":"Somerset County"},"1800","Somerset",72831712317,76950693613,83286098306,77689501412]
["Somerville Borough","Somerville Borough, Somerset County","1818","Somerset",1531746679,1657602527,1821391900,1670247035.3333333]
["South Amboy City","South Amboy City, Middlesex County","1220","Middlesex",1177785677,1297821278,1401735519,1292447491.3333333]
["South Bound Brook Borough","South Bound Brook Borough, Somerset County","1819","Somerset",433032060,487243588,521696400,480657349.33333331]
["South Brunswick","South Brunswick, Middlesex County","1221","Middlesex",11038755167,11397123094,12137515115,11524464458.666666]
["South Hackensack Township","South Hackensack Township, Bergen County","0259","Bergen",835612049,1067082767,1074802395,992499070.33333337]
["South Harrison Township","South Harrison Township, Gloucester County","0816","Gloucester",526208826,599561744,662464798,596078456]
["South Orange Village","South Orange Village, Essex County","0719","Essex",3673031384,4108238254,4544608357,4108625998.3333335]
["South Plainfield Borough","South Plainfield Borough, Middlesex County","1222","Middlesex",4476818015,5000144250,5420738898,4965900387.666667]
["South River Borough","South River Borough, Middlesex County","1223","Middlesex",1847517212,2008559868,2250349319,2035475466.3333333]
["South Toms River Borough","South Toms River Borough, Ocean County","1529","Ocean",301255719,345245793,381119233,342540248.33333331]
["Southampton Township","Southampton Township, Burlington County","0333","Burlington",1477544045,1625782616,1766853307,1623393322.6666667]
["Sparta Township","Sparta Township, Sussex County","1918","Sussex",3921517215,4340243186,4803779338,4355179913]
["Spotswood Borough","Spotswood Borough, Middlesex County","1224","Middlesex",1026866073,1107829113,1238104463,1124266549.6666667]
["Spring Lake Borough","Spring Lake Borough, Monmouth County","1348","Monmouth",6059020002,6633935811,7034617300,6575857704.333333]
["Spring Lake Heights Borough","Spring Lake Heights Borough, Monmouth County","1349","Monmouth",1663392473,1833106430,2059583715,1852027539.3333333]
["Springfield Township (Burlington)","Springfield Township (Burlington), Burlington County","0334","Burlington",533016547,571159200,623131424,575769057]
["Springfield Township (Union)","Springfield Township (Union), Union County","2017","Union",4069058734,4168151762,4263959320,4167056605.3333335]
["Stafford Township","Stafford Township, Ocean County","1530","Ocean",6500351678,7257276083,8021874754,7259834171.666667]
["Stanhope Borough","Stanhope Borough, Sussex County","1919","Sussex",389388670,429747905,474547385,431227986.66666669]
["Stillwater Township","Stillwater Township, Sussex County","1920","Sussex",570059532,624009930,680071975,624713812.33333337]
["Stockton Borough","Stockton Borough, Hunterdon County","1023","Hunterdon",107108349,107948595,121999370,112352104.66666667]
["Stone Harbor Borough","Stone Harbor Borough, Cape May County","0510","Cape May",7469753377,8512160211,9503892308,8495268632]
["Stow Creek Township","Stow Creek Township, Cumberland County","0612","Cumberland",140963196,130282930,124107936,131784687.33333333]
["Stratford Borough","Stratford Borough, Camden County","0432","Camden",521437700,603042193,678564887,601014926.66666663]
["Summit City","Summit City, Union County","2018","Union",8512942632,9146400280,10135820381,9265054431]
["Surf City Borough","Surf City Borough, Ocean County","1531","Ocean",2639665651,3095431763,3370195905,3035097773]
["Sussex Borough","Sussex Borough, Sussex County","1921","Sussex",152086983,155767340,175207875,161020732.66666666]
["Sussex County",{"$f":"A504","v":"Sussex County"},"1900","Sussex",21040542687,23209515116,25946576523,23398878108.666668]
["Swedesboro Borough","Swedesboro Borough, Gloucester County","0817","Gloucester",225569173,248529564,281415079,251837938.66666666]
["Tabernacle Township","Tabernacle Township, Burlington County","0335","Burlington",911048755,1039000440,1134191551,1028080248.6666666]
["Tavistock Borough","Tavistock Borough, Camden County","0433","Camden",17987216,21274399,21274399,20178671.333333332]
["Teaneck Township","Teaneck Township, Bergen County","0260","Bergen",7160393703,7870232279,8685293803,7905306595]
["Tenafly Borough","Tenafly Borough, Bergen County","0261","Bergen",5020987561,5341547729,5813818842,5392118044]
["Teterboro Borough","Teterboro Borough, Bergen County","0262","Bergen",638567627,652248260,634980185,641932024]
["Tewksbury Township","Tewksbury Township, Hunterdon County","1024","Hunterdon",1787195058,1908165054,2015313241,1903557784.3333333]
["Tinton Falls Borough","Tinton Falls Borough, Monmouth County","1336","Monmouth",4599502527,4884688378,5381582856,4955257920.333333]
["Toms River Township","Toms River Township, Ocean County","1507","Ocean",21532768510,23878634654,25480158813,23630520659]
["Totowa Borough","Totowa Borough, Passaic County","1612","Passaic",3481152946,4052156550,4808942133,{"$f":"AVERAGE(E514:G514)","v":4114083876.3333335}]
["Trenton City",{"$f":"A515&\", \"&D515&\" County\"","v":"Trenton City, Mercer County"},"1111","Mercer",2943628535,3370920631,3669688026,3328079064]
["Tuckerton Borough","Tuckerton Borough, Ocean County","1532","Ocean",556170584,651031805,719161427,642121272]
["Union Beach Borough","Union Beach Borough, Monmouth County","1350","Monmouth",852759368,911634699,1036811959,933735342]
["Union City","Union City, Hudson County","0910","Hudson",5226734235,5556195223,6664873214,5815934224]
["Union County",{"$f":"A519","v":"Union County"},"2000","Union",92105091244,99497384403,109183224578,100261900075]
["Union Township (Hunterdon)","Union Township (Hunterdon), Hunterdon County","1025","Hunterdon",984354310,1072460206,1159267367,1072027294.3333334]
["Union Township (Union)","Union Township (Union), Union County","2019","Union",9714217757,9941899135,10589606339,10081907743.666666]
["Upper Deerfield Township","Upper Deerfield Township, Cumberland County","0613","Cumberland",799529192,846817316,853778835,833375114.33333337]
["Upper Freehold Township","Upper Freehold Township, Monmouth County","1351","Monmouth",1658067620,1792477741,1910797848,1787114403]
["Upper Pittsgrove Township","Upper Pittsgrove Township, Salem County","1714","Salem",365187225,408067983,439469422,404241543.33333331]
["Upper Saddle River Borough","Upper Saddle River Borough, Bergen County","0263","Bergen",2996103396,3331549179,3530407509,3286020028]
["Upper Township","Upper Township, Cape May County","0511","Cape May",2568921406,2802224517,3059589904,2810245275.6666665]
["Ventnor City","Ventnor City, Atlantic County","0122","Atlantic",2530859879,3221654938,3836367538,3196294118.3333335]
["Vernon Township","Vernon Township, Sussex County","1922","Sussex",3102733768,3461856281,3837262480,3467284176.3333335]
["Verona Township","Verona Township, Essex County","0720","Essex",2994050019,3144211425,3418707936,3185656460]
["Victory Gardens Borough","Victory Gardens Borough, Morris County","1437","Morris",97854520,105393998,116577818,106608778.66666667]
["Vineland City","Vineland City, Cumberland County","0614","Cumberland",4877835862,5253029186,5874802288,5335222445.333333]
["Voorhees Township","Voorhees Township, Camden County","0434","Camden",4177960969,4522120794,4883507440,4527863067.666667]
["Waldwick Borough","Waldwick Borough, Bergen County","0264","Bergen",1941935438,2100886250,2334605157,2125808948.3333333]
["Wall Township","Wall Township, Monmouth County","1352","Monmouth",8085722368,9130053187,9969133951,9061636502]
["Wallington Borough","Wallington Borough, Bergen County","0265","Bergen",1394475680,1502424525,1638563714,1511821306.3333333]
["Walpack Township","Walpack Township, Sussex County","1923","Sussex",2614503,2614503,5980224,3736410]
["Wanaque Borough","Wanaque Borough, Passaic County","1613","Passaic",1628099679,1744881764,1913816015,1762265819.3333333]
["Wantage Township","Wantage Township, Sussex County","1924","Sussex",1441423420,1562838054,1657393585,1553885019.6666667]
["Warren County",{"$f":"A539","v":"Warren County"},"2100","Warren",13320024215,14494727658,15671113533,14495288468.666666]
["Warren Township","Warren Township, Somerset County","1820","Somerset",4922792553,5132803038,5439164585,5164920058.666667]
["Washington Borough (Warren)","Washington Borough (Warren), Warren County","2121","Warren",555195820,657767753,725629185,646197586]
["Washington Township (Bergen)","Washington Township (Bergen), Bergen County","0266","Bergen",2092991404,2226910814,2421314513,2247072243.6666665]
["Washington Township (Burlington)","Washington Township (Burlington), Burlington County","0336","Burlington",114513452,139476842,123635285,125875193]
["Washington Township (Gloucester)","Washington Township (Gloucester), Gloucester County","0818","Gloucester",6007867625,6489082177,7170596387,6555848729.666667]
["Washington Township (Morris)","Washington Township (Morris), Morris County","1438","Morris",3247787610,3486343391,3789898741,3508009914]
["Washington Township (Warren)","Washington Township (Warren), Warren County","2122","Warren",903720312,975989266,1047326272,975678616.66666663]
["Watchung Borough","Watchung Borough, Somerset County","1821","Somerset",1984560146,2079875543,2128673445,2064369711.3333333]
["Waterford Township","Waterford Township, Camden County","0435","Camden",981614339,1074526005,1182764755,1079635033]
["Wayne Township","Wayne Township, Passaic County","1614","Passaic",11762768271,13937161435,13935298460,13211742722]
["Weehawken Township","Weehawken Township, Hudson County","0911","Hudson",4152201161,4232634244,4760762053,4381865819.333333]
["Wenonah Borough","Wenonah Borough, Gloucester County","0819","Gloucester",261860695,299954401,322377188,294730761.33333331]
["West Amwell Township","West Amwell Township, Hunterdon County","1026","Hunterdon",640011717,681268695,679737710,667006040.66666663]
["West Caldwell Township","West Caldwell Township, Essex County","0721","Essex",2787372203,2949081689,3073539015,2936664302.3333335]
["West Cape May Borough","West Cape May Borough, Cape May County","0512","Cape May",906443424,1065355506,1118879941,1030226290.3333334]
["West Deptford Township","West Deptford Township, Gloucester County","0820","Gloucester",2802217205,3246324572,3509082269,3185874682]
["West Long Branch Borough","West Long Branch Borough, Monmouth County","1353","Monmouth",2105957204,2365622941,2700568992,2390716379]
["West Milford Township","West Milford Township, Passaic County","1615","Passaic",3837074979,4182032386,4635742645,4218283336.6666665]
["West New York Town","West New York Town, Hudson County","0912","Hudson",3773075336,4096734759,4610544869,4160118321.3333335]
["West Orange Township","West Orange Township, Essex County","0722","Essex",7039551266,7595325978,8484167363,7706348202.333333]
["West Wildwood Borough","West Wildwood Borough, Cape May County","0513","Cape May",324993891,405706191,457794488,396164856.66666669]
["West Windsor Township","West Windsor Township, Mercer County","1113","Mercer",7410224049,8381784225,9415530609,8402512961]
["Westampton Township","Westampton Township, Burlington County","0337","Burlington",1377494331,1500716500,1712048540,1530086457]
["Westfield Town","Westfield Town, Union County","2020","Union",9166366819,9901951001,10786065167,9951460995.666666]
["Westville Borough","Westville Borough, Gloucester County","0821","Gloucester",302066261,346534848,397595206,348732105]
["Westwood Borough","Westwood Borough, Bergen County","0267","Bergen",2273571277,2390940986,2661591403,2442034555.3333335]
["Weymouth Township","Weymouth Township, Atlantic County","0123","Atlantic",201290534,230613624,267458435,233120864.33333334]
["Wharton Borough","Wharton Borough, Morris County","1439","Morris",884774039,897849303,1017906064,933509802]
["White Township","White Township, Warren County","2123","Warren",677965106,736052250,799766580,737927978.66666663]
["Wildwood City","Wildwood City, Cape May County","0514","Cape May",2136230921,2385131255,2783918125,2435093433.6666665]
["Wildwood Crest Borough","Wildwood Crest Borough, Cape May County","0515","Cape May",3099392017,3549553035,3985314787,3544753279.6666665]
["Willingboro Township","Willingboro Township, Burlington County","0338","Burlington",2388461441,2769200087,3111219291,2756293606.3333335]
["Winfield Township","Winfield Township, Union County","2021","Union",16550150,16550150,16550150,16550150]
["Winslow Township","Winslow Township, Camden County","0436","Camden",3470222580,3946828109,4384207188,3933752625.6666665]
["Woodbine Borough","Woodbine Borough, Cape May County","0516","Cape May",180936634,192608997,218268460,197271363.66666666]
["Woodbridge Township","Woodbridge Township, Middlesex County","1225","Middlesex",14265060769,14896837494,16921996786,15361298349.666666]
["Woodbury City","Woodbury City, Gloucester County","0822","Gloucester",747476901,849009296,934974509,843820235.33333337]
["Woodbury Heights Borough","Woodbury Heights Borough, Gloucester County","0823","Gloucester",313191500,345070938,376012872,344758436.66666669]
["Woodcliff Lake Borough","Woodcliff Lake Borough, Bergen County","0268","Bergen",2489864721,2614786633,2765178576,{"$f":"AVERAGE(E578:G578)","v":2623276643.3333335}]
["Woodland Park Borough",{"$f":"A579&\", \"&D579&\" County\"","v":"Woodland Park Borough, Passaic County"},"1616","Passaic",2184884496,2325380101,2568617935,2359627510.6666665]
["Woodland Township","Woodland Township, Burlington County","0339","Burlington",174454484,192156219,190792401,185801034.66666666]
["Woodlynne Borough","Woodlynne Borough, Camden County","0437","Camden",85645036,94623533,125454240,101907603]
["Wood-Ridge Borough","Wood-Ridge Borough, Bergen County","0269","Bergen",1822769425,1980949454,2156326339,1986681739.3333333]
["Woodstown Borough","Woodstown Borough, Salem County","1715","Salem",313072316,340855475,382941804,345623198.33333331]
["Woolwich Township","Woolwich Township, Gloucester County","0824","Gloucester",1686766045,1945945078,2217887786,1950199636.3333333]
["Wrightstown Borough","Wrightstown Borough, Burlington County","0340","Burlington",53644873,70778824,72076951,65500216]
["Wyckoff Township","Wyckoff Township, Bergen County","0270","Bergen",5090672710,5340857301,5749848679,5393792896.666667]

{"sheet":"Instructions","index":1,"n_rows":13,"n_cols":2,"rows_kept":13,"cut":false,"hidden":false,"merged":[]}
[null,"Mayors and Municipal Contact List Update Form"]
[null,"Instruction Manual"]
["a)","This workbook shall be used for completing the Mayors and Municipal Contact List Update form."]
["b)","Begin by navigating to the \"CURRENT MAYORS LIST\" tab."]
["c)","Find your municipality in the MUNI NAME column using \"Find and Replace\" (CTRL + F)."]
["d)","Review the current contact information for the Mayor."]
["e)","Navigate to the \"Key Inputs\" tab."]
["f)","Select the Municipality by clicking on the arrow on the right side and typing in the entity name. This will populate the entity name and county. This will fill in the MUNI CODE and MUNI NAME columns on the \"MUNICIPAL CONTACT LIST UPDATE\" tab."]
["g)","Navigate to the \"MUNICIPAL CONTACT LIST UPDATE\" tab."]
["h)","Fill in all relevant columns starting with FIRST NAME for each title listed in the TITLE column."]
["i)","Make note of the MUNI CODE for your municipality."]
["j)","Save as <MUNICODE>_contactlist_YEAR with YEAR as a 4-digit number."]
["k)","Return document via email to: egg@dca.nj.gov."]

{"sheet":"CURRENT MAYORS LIST ","index":2,"n_rows":565,"n_cols":17,"rows_kept":565,"cut":false,"hidden":false,"merged":[]}
["MUNI CODE","MUNI NAME","COUNTY","ADDRESS 1","ADDRESS 2","CITY","STATE","ZIP","PHONE","FAX","MAYOR NAME","TERM START","TERM END","FORM","TERM LEGNTH","EMAIL","SOCIAL MEDIA HANDLE"]
[101,"Absecon City","Atlantic","Absecon Municipal Complex","500 Mill Road","Absecon","NJ",8201,"(609) 641-0663","(609) 645-5098","Thomas Marrone",null,"2025-12-31","MAYOR-COUNCIL",3,"tmarrone@abseconnj.org"]
[102,"Atlantic City","Atlantic","City Hall","1301 Bacharach Boulevard","Atlantic City","NJ",8401,"(609) 347-5300","(609) 437-5638","Marty Small, Sr.",null,"2025-12-31",null,null,"msmall@acnj.gov"]
[103,"Brigantine City","Atlantic","1417 West Brigantine Avenue",null,"Brigantine","NJ","08203-2147","(609) 266-7600",null,"Vince Sera ",null,"2026-12-31",null,null,"vsera@brigantinebeachnj.com"]
[104,"Buena Borough","Atlantic","616 Central Avenue",null,"Minotola","NJ",8341,"(856) 697-9393",null,"Joseph Baruffi","2024-01-01","2027-12-31",null,"4 year","joseph.baruffi@buenaboro.org"]
[105,"Buena Vista Township","Atlantic","890 Harding Highway","Post Office Box 605","Buena","NJ",8310,"(856) 697-2100","(856) 697-8353","William Ruggieri",null,"2025-12-31",null,null,"wruggieri@buenavistanj.com"]
[106,"Corbin City","Atlantic","316 Route 50",null,"Corbin City","NJ",8270,"(609) 701-0200","(609) 628-3017","Robert Schulte ",null,"2026-12-31","Mayor-Council",null,"mayorschulte@corbincitynj.com "]
[107,"Egg Harbor City","Atlantic","500 London Avenue",null,"Egg Harbor City","NJ","08215-1599","(609) 965-4683","(609) 965-6698","Lisa Jiampetti",null,"2028-12-31",null,null," jiams208@comcast.net"]
[108,"Egg Harbor Township","Atlantic","3515 Bargaintown Road",null,"Egg Harbor Township","NJ","08234-8321","(609) 926-4088",null,"Laura Pfrommer",null,"2025-12-31",null,null,"LPfrommer@ehtgov.org"]
[109,"Estell Manor City","Atlantic","148 Cumberland Avenue",null,"Estell Manor","NJ",8319,"(609) 476-2692",null,"Elizabeth Owen",null,"2025-12-31",null,null,"eowen@estellmanor.org"]
[110,"Folsom Borough","Atlantic","1700 Twelfth Street",null,"Folsom","NJ","08037-9141","(609) 561-3178",null,"Glenn Smith",null,"2027-12-31",null,null,"gsmith@folsomborough.com"]
[111,"Galloway Township","Atlantic","300 East Jimmie Leeds Road",null,"Galloway","NJ",8205,"(609) 652-3700","(609) 652-1967","Anthony Coppola, Jr.",null,"2027-12-31",null,null,"acoppola@gtnj.org"]
[112,"Hamilton Township","Atlantic","6101 Thirteenth Street",null,"Mays Landing","NJ","08330-1859","(609) 625-1511",null,"Art Schenker",null,"2025-12-31",null,null,"mayor@hamiltonatlnj.gov"]
[113,"Hammonton Town","Atlantic","100 Central Avenue",null,"Hammonton","NJ",8037,"(609) 567-4300",null,"Stephen DiDonato",null,"2025-12-31",null,null,"sdidonato@townofhammonton.org"]
[114,"Linwood City","Atlantic","400 Poplar Avenue",null,"Linwood","NJ",8221,"(609) 927-4108",null,"Darren Matik",null,"2027-12-31",null,null,"dmatik@linwoodcity.org"]
[115,"Longport Borough","Atlantic","2305 Atlantic Avenue",null,"Longport","NJ",8403,"(609) 823-7514",null,"Patrick Armstrong ",null,"2029-01-14",null,null,"clerk@longport-nj.us"]
[116,"Margate City","Atlantic","One South Washington Avenue",null,"Margate","NJ","08402-2301","(609) 822-2605",null,"Michael Collins ",null,"2027-05-09",null,4,"mcollins@margate-nj.com"]
[117,"Mullica Township","Atlantic","4528 White Horse Pike","Post Office Box 317","Elwood","NJ",8217,"(609) 561-0064","(609) 561-3031","DeAnna DeMarco",null,"2025-12-31",null,null,"ddemarco@mullicatownship.org"]
[118,"Northfield City","Atlantic","1600 Shore Road",null,"Northfield","NJ","08225-2201","(609) 641-2832",null,"Erland Chau",null,"2027-12-31",null,null,"echau@cityofnorthfield.org"]
[119,"Pleasantville City","Atlantic","18 North 1st Street",null,"Pleasantville","NJ","08232-2604","(609) 484-3600",null,"Judy M. Ward",null,"2025-12-31",null,null,"mayorward@pleasantvillenj.us"]
[120,"Port Republic City","Atlantic","143 Main Street",null,"Port Republic","NJ",8241,"(609) 652-1501",null,"Monica \"Niki\" Giberson",null,"2025-12-31",null,null,"mayor@portrepublicnj.org"]
[121,"Somers Point City","Atlantic","City Hall","One West New Jersey Avenue","Somers Point","NJ",8244,"(609) 927-9088",null,"Dennis Tapp",null,"2026-12-31",null,null,"dtapp@spgov.org"]
[122,"Ventnor City","Atlantic","City Hall","6201 Atlantic Avenue","Ventnor","NJ","08406-2734","(609) 823-7900",null,"H. Timothy Kriebel",null,"2028-05-14",null,null,"tkriebel@ventnorcity.org"]
[123,"Weymouth Township","Atlantic","45 South Jersey Avenue",null,"Dorothy","NJ",8317,"(609) 476-2633","(609) 476-4466","Kenneth R. Haeser",null,"2025-12-31",null,null,"mayor@weymouthnj.org"]
[201,"Allendale Borough","Bergen","500 West Crescent Avenue",null,"Allendale","NJ",7401,"(201) 818-4400",null,"Amy Wilczynski",null,"2026-12-31",null,"4 year","AmyWilczynski@allendalenj.gov"]
[202,"Alpine Borough","Bergen","100 Church Street","Post Office Box 1095","Alpine","NJ","07620-1095","(201) 784-2900","(201) 784-1407","Paul H. Tomasko",null,"2026-12-31","Mayor/Council","4 year","swehmann@alpinenj.org; "]
[203,"Bergenfield Borough","Bergen","198 North Washington Avenue",null,"Bergenfield","NJ",7621,"(201) 387-4055","(201) 385-7689","Arvin Amatorio","2024-01-01","2027-12-31",null,4,"AAmatorio@bergenfieldnj.gov"]
[204,"Bogota Borough","Bergen","375 Larch Avenue",null,"Bogota","NJ","07603-1099","(201) 342-1736",null,"Daniele Fede ",null,"2027-12-31",null,"4 year","mayorfede@bogotaonline.org"]
[205,"Carlstadt Borough","Bergen","500 Madison Street",null,"Carlstadt","NJ",7072,"(201) 939-2850",null,"Robert Zimmermann",null,"2027-12-31",null,null,"robert.zimmermann@verizon.net"]
[206,"Cliffside Park Borough","Bergen","525 Palisade Avenue",null,"Cliffside Park","NJ",7010,"(201) 945-3456",null,"Thomas.Calabrese",null,"2026-12-31",null,null,"Tcalabrese@cliffsideparknj.gov"]
[207,"Closter Borough","Bergen","295 Closter Dock Road",null,"Closter","NJ","07624-2645","(201) 784-0600","(201) 784-9727","John C. Glidden, Jr.",null,"2026-12-31",null,null,"mayor@closternj.us"]
[208,"Cresskill Borough","Bergen","67 Union Avenue",null,"Cresskill","NJ",7626,"(201) 569-5400","(201) 569-3714","Benedict Romeo",null,"2025-12-31",null,null,"bnasuto.boro@cresskillboro.org"]
[209,"Demarest Borough","Bergen","118 Serpentine Road",null,"Demarest","NJ",7627,"(201) 768-0167",null,"Brian Bernstein",null,"2026-12-31",null,null,"mayor@demarestnj.gov"]
[210,"Dumont Borough","Bergen","50 Washington Avenue",null,"Dumont","NJ",7628,"(201) 387-5022",null,"John W. Russell III",null,"2027-12-31",null,null,"jrussell@dumontboro.org"]
[211,"Elmwood Park Borough","Bergen","182 Market Street",null,"Elmwood Park","NJ","07407-1407","(201) 796-1457",null,"Robert Colletti",null,"2027-12-31",null,"4 year","RColleti@elmwoodparknj.us"]
[212,"East Rutherford Borough","Bergen","One Everett Place",null,"East Rutherford","NJ","07073-1701","(201) 933-3444",null,"Jeffrey J. Lahullier",null,"2027-12-31",null,null,"mayorlahullier@eastrutherfordnj.net"]
[213,"Edgewater Borough","Bergen","916 River Road",null,"Edgewater","NJ",7020,"(201) 943-1700",null,"Michael McPartland",null,"2027-12-31",null,null,"mayorMcpartland@edgewaternj.org"]
[214,"Emerson Borough","Bergen","Municipal Place",null,"Emerson","NJ","07630-1891","(201) 262-6086",null,"Danielle DiPaola",null,"2026-12-31",null,null,"Mayor@emersonnj.org"]
[215,"Englewood City","Bergen","2-10 North Van Brunt Street",null,"Englewood","NJ",7631,"(201) 871-6636","(201) 567-3678","Michael Wildes",null,"2025-12-31",null,null,"MayorWildes@cityofenglewood.org "]
[216,"Englewood Cliffs Borough","Bergen","482 Hudson Terrace",null,"Englewood Cliffs","NJ","07632-2911","(201) 569-5252",null,"Mark Park",null,"2027-12-31",null,null,"mpark@englewoodcliffsnj.org"]
[217,"Fair Lawn Borough","Bergen","8-01 Fair Lawn Avenue","P.O. Box 376","Fair Lawn","NJ",7410,"(201) 794-5340","(201) 475-1581","Gail Rottenstrich",null,"2025-12-31",null,null,"mayor@fairlawn.org; grottenstrich@fairlawn.org"]
[218,"Fairview Borough","Bergen","59 Anderson Avenue",null,"Fairview","NJ",7022,"(201) 943-3300",null,"Violetta Berisha",null,"2027-12-31",null,null,"vberisha@fairviewborough.com"]
[219,"Fort Lee Borough","Bergen","309 Main Street",null,"Fort Lee","NJ","07024-4705","(201) 592-3546",null,"Mark J. Sokolich",null,"2027-12-31","Mayor/Council","4 yr Mayor/3 yr Council","mayor@fortleenj.org"]
[220,"Franklin Lakes Borough","Bergen","480 DeKorte Drive",null,"Franklin Lakes","NJ",7417,"(201) 891-4000",null,"Charles J. X. Kahwaty",null,"2026-12-31",null,null,"mayor@franklinlakes.org"]
[221,"Garfield City","Bergen","City Hall","111 Outwater Lane","Garfield","NJ","07026-2621","(973) 340-2000","(973) 253-7965","Everett E. Garnto, Jr.",null,"2028-12-31",null,null,"egarnto@garfieldnj.org"]
[222,"Glen Rock Borough","Bergen","Municipal Building","One Harding Plaza","Glen Rock","NJ",7452,"(201) 670-3956",null,"Kristine Morieko",null,"2025-12-31","Mayor & Council","4 & 3","kmorieko@glenrocknj.net"]
[223,"Hackensack City","Bergen","65 Central Avenue",null,"Hackensack","NJ","07601-4202","(201) 646-3940","(201) 646-8059","John P. Labrosse, Jr.",null,"2025-06-30",null,null,"jlabrosse@hackensack.org; dkarlsson@hackensack.org"]
[224,"Harrington Park Borough","Bergen","85 Harriot Avenue",null,"Harrington Park","NJ","07640-1500","(201) 768-1700",null,"Joon L. Chung",null,"2027-12-31",null,null,"clerk@harringtonparknj.gov"]
[225,"Hasbrouck Heights Borough","Bergen","218-222 Boulevard",null,"Hasbrouck Heights","NJ","07604-1920","(201) 288-0195",null,"Ronald Kistner",null,"2027-12-31",null,null,"mayorkistner@hasbrouck-heightsnj.org"]
[226,"Haworth Borough","Bergen","300 Haworth Avenue",null,"Haworth","NJ",7641,"(201) 384-4785",null,"Heather Wasser",null,"2026-12-31",null,"4 year","wasser@haworthnj.org"]
[227,"Hillsdale Borough","Bergen","380 Hillsdale Avenue",null,"Hillsdale","NJ",7642,"(201) 666-4800","(201) 358-5002","Michael Sheinfiled",null,"2027-12-31",null,null,"mayor@hillsdalenj.org; msheinfield@hillsdalenj.org"]
[228,"Ho-Ho-Kus Borough","Bergen","333 Warren Avenue",null,"Ho-Ho-Kus","NJ","07423-1594","(201) 652-4400",null,"Thomas W. Randall",null,"2027-12-31",null,null,"rrslaw@aol.com"]
[229,"Leonia Borough","Bergen","312 Broad Avenue",null,"Leonia","NJ",7605,"(201) 592-5780 x227","(201) 592-5746","William Ziegler",null,"2027-12-31","MAYOR-COUNCIL","4 & 3","wziegler@leonianj.gov"]
[230,"Little Ferry Borough","Bergen","215-217 Liberty Street",null,"Little Ferry","NJ",7643,"(201) 641-9234",null,"Mauro Raguseo",null,"2027-12-31",null,null,"mayor@littleferrynj.org"]
[231,"Lodi Borough","Bergen","One Memorial Drive",null,"Lodi","NJ","07644-1632","(973) 365-4005",null,"Scott A. Luna",null,"2027-06-30",null,null,"sluna@lodi-nj.org"]
[232,"Lyndhurst Township","Bergen","367 Valley Brook Avenue",null,"Lyndhurst","NJ","07071-1810","(201) 804-2457","(201) 804-4758","Robert B. Giangeruso",null,"2025-05-20",null,null,"angelaw@lyndhurstnj.org; rgiangeruso@lyndhurstnj.org "]
[233,"Mahwah Township","Bergen","475 Corporate Drive",null,"Mahwah","NJ",7430,"(201) 529-5757",null,"James Wysocki",null,"2028-12-31","4 year",null,"jwysocki@mahwahtwp.org"]
[234,"Maywood Borough","Bergen","15 Park Avenue",null,"Maywood","NJ","07607-2015","(201) 845-2900","(201) 909-0673","Richard Bolan",null,"2027-12-31","Mayor-Council","4 year","rbolan@maywoodboro.org"]
[235,"Midland Park Borough","Bergen","280 Godwin Avenue",null,"Midland Park","NJ",7432,"(201) 445-5720","(551) 600-8296","Harry Shortway Jr",null,"2027-12-31",null,null,"hshortway@midlandparknj.org"]
[236,"Montvale Borough","Bergen","12 DePiero Drive",null,"Montvale","NJ","07645-1847","(201) 391-5700","(201) 391-9317","Michael N. Ghassali",null,"2027-12-31",null,"4 year","mghassali@montvaleboro.org"]
[237,"Moonachie Borough","Bergen","70 Moonachie Road",null,"Moonachie","NJ",7074,"(201) 641-9117","(201) 641-9542","Dennis Vaccaro",null,"2026-12-31",null,"4 year","dvaccaro@moonachie.us"]
[238,"New Milford Borough","Bergen","930 River Road",null,"New Milford","NJ","07646-3043","(201) 967-5044",null,"Michael Putrino",null,"2026-12-31",null,"4 year","mputrino@newmilfordboro.com"]
[239,"North Arlington Borough","Bergen","214 Ridge Road",null,"North Arlington","NJ","07031-6036","(201) 991-6060",null,"Daniel H. Pronti",null,"2026-12-31",null,"4 year","dpronti@northarlington.org "]
[240,"Northvale Borough","Bergen","116 Paris Avenue",null,"Northvale","NJ",7647,"(201) 767-3330",null,"Joseph E. McGuire",null,"2026-12-31",null,null,"jmcguire@northvalenj.org"]
[241,"Norwood Borough","Bergen","455 Broadway",null,"Norwood","NJ",7648,"(201) 767-7200",null,"James P Barsa",null,"2025-12-31",null,null,"jbarsa@norwoodboro.org"]
[242,"Oakland Borough","Bergen","One Municipal Plaza",null,"Oakland","NJ","07436-1827","(201) 337-8111",null,"Eric Kulmala",null,"2027-12-31",null,null,"mayorkulmala@oakland-nj.org"]
[243,"Old Tappan Borough","Bergen","227 Old Tappan Road",null,"Old Tappan","NJ",7675,"(201) 664-1849",null,"Thomas Gallagher",null,"2027-12-31",null,null,"mayor@oldtappan.net"]
[244,"Oradell Borough","Bergen","355 Kinderkamack Road",null,"Oradell","NJ",7649,"(201) 261-8200",null,"James Koth",null,"2027-12-31",null,null,"jkoth@oradell.org"]
[245,"Palisades Park Borough","Bergen","275 Broad Avenue",null,"Palisades Park","NJ",7650,"(201) 585-4100",null,"Chong Paul Kim",null,"2026-12-31",null,null,"mayorkim@palisadesparknj.us"]
[246,"Paramus Borough","Bergen","1 Jockish Square","Borough Hall","Paramus","NJ","07652-2728","(201) 265-2100","(201) 265-0086","Christopher Di Piazza",null,"2026-12-31",null,null,"cdipiazza@paramusborough.org"]
[247,"Park Ridge Borough","Bergen","55 Park Avenue",null,"Park Ridge","NJ",7656,"(201) 573-1800",null,"Keith Misciagna",null,"2025-12-31",null,null,"kmisciagna@parkridgeboro.com"]
[248,"Ramsey Borough","Bergen","33 North Central Avenue",null,"Ramsey","NJ","07446-1807","(201) 825-3400",null,"Deirdre A. Dillon",null,"2026-12-31",null,null,"ddillon@ramseynj.com"]
[249,"Ridgefield Borough","Bergen","700 Shaler Boulevard",null,"Ridgefield","NJ",7657,"(201) 943-5215","(201) 943-1112","Hugo Jimenez",null,"2028-12-31",null,null,"hjimenez@ridgefieldboro.com"]
[250,"Ridgefield Park Village","Bergen","234 Main Street",null,"Ridgefield Park","NJ","07660-2500","(201) 641-4950",null,"Adam MacNeill",null,"2028-05-23",null,null,"mayor@ridgefieldpark.org"]
[251,"Ridgewood Village","Bergen","131 North Maple Avenue",null,"Ridgewood","NJ","07450-3236","(201) 670-5500","(201) 670-7305","Paul Vagianos",null,"2026-12-31",null,null,"pvagianos@ridgewoodnj.net"]
[252,"River Edge Borough","Bergen","705 Kinderkamack Road",null,"River Vale","NJ",7661,"(201) 599-6300",null,"Thomas Papaleo",null,"2027-12-31",null,null,"tpapaleo@riveredgenj.org"]
[253,"River Vale Township","Bergen","406 Rivervale Road",null,"River Vale","NJ",7675,"(201) 664-2346",null,"Mark Bromberg",null,"2026-12-31",null,null,"mbromberg@rivervalenj.org"]
[254,"Rochelle Park Township","Bergen","151 West Passaic Street",null,"Rochelle Park","NJ","07662-3105","(201) 587-7730",null,"Teresa Judge Cravello",null,"2025-12-31",null,null,"tcravello@rochelleparknj.gov"]
[255,"Rockleigh Borough","Bergen","26 Rockleigh Road",null,"Rockleigh","NJ","07647-2706","(201) 768-4217",null,"James G. Pontone",null,"2026-12-31",null,null,"mayor@rockleighnj.org"]
[256,"Rutherford Borough","Bergen","176 Park Avenue",null,"Rutherford","NJ","07070-2310","(201) 460-3000",null,"Frank Nunziato",null,"2027-12-31",null,"4 YEAR","fnunziato@rutherfordboronj.com"]
[257,"Saddle Brook Township","Bergen","55 Mayhill Street",null,"Saddle Brook","NJ",7663,"(201) 587-2903",null,"Robert D. White",null,"2026-12-31",null,"4 year","mayorwhite@saddlebrooknj.gov"]
[258,"Saddle River Borough","Bergen","100 East Allendale Road",null,"Saddle River","NJ","07458-3040","(201) 327-2609",null,"Albert J. Kurpis",null,"2027-12-31",null,null,"drkurpis@saddleriver.org"]
[259,"South Hackensack Township","Bergen","227 Phillips Avenue",null,"South Hackensack","NJ",7606,"(201) 440-1815",null,"Gary Brugger",null,"2025-12-31",null,null,"gbrugger@southhackensacknj.org"]
[260,"Teaneck Township","Bergen","818 Teaneck Road",null,"Teaneck","NJ","07666-4599","(201) 837-1600","(201) 837-1222","Mark Schwartz",null,"2026-12-31",null,null,"mschwartz@teanecknj.gov; admin@teanecknjgov.org "]
[261,"Tenafly Borough","Bergen","100 Riveredge Road",null,"Tenafly","NJ","07670-2016","(201) 568-6100",null,"Mark Zinna",null,"2027-12-31",null,null,"mzinna@tenafly.net"]
[262,"Teterboro Borough","Bergen","510 Route 46 West",null,"Teterboro","NJ",7608,"(201) 288-1200",null,"John P. Watt",null,"2026-06-30",null,null,"nsaros@teterboronj.org"]
[263,"Upper Saddle River Borough","Bergen","376 West Saddle River Road",null,"Upper Saddle River","NJ",7458,"(201) 327-2196",null,"Arman Fardanesh",null,"2027-12-31","Borough","4 year","afardanesh@usrtoday.org"]
[264,"Waldwick Borough","Bergen","63 Franklin Turnpike",null,"Waldwick","NJ",7463,"(201) 652-5300","(201) 652-5483","Thomas A. Giordano",null,"2027-12-31",null,"4 year","tgiordano@waldwicknj.org"]
[265,"Wallington Borough","Bergen","24 Union Boulevard",null,"Wallington","NJ",7057,"(973) 777-0318",null,"Melissa Dabal",null,"2027-12-31",null,null,"mdabal@wallingtonnj.org"]
[266,"Washington Township","Bergen","350 Hudson Avenue",null,"Washington Township","NJ","07675-4731","(201) 664-4404",null,"Peter Calamari",null,"2025-12-31",null,null,"mayor@twpofwashington.us"]
[267,"Westwood Borough","Bergen","101 Washington Avenue",null,"Westwood","NJ",7675,"(201) 664-7100",null,"Ray Arroyo",null,"2027-12-31",null,null,"rarroyo@westwoodnj.gov"]
[268,"Woodcliff Lake Borough","Bergen","188 Pascack Road",null,"Woodcliff Lake","NJ","07677-7921","(201) 391-4977","(201) 391-8830","Carlos Rendo",null,"2027-12-31",null,"4 year","mayorrendo@wclnj.com"]
[269,"Wood-Ridge Borough","Bergen","85 Humboldt Street",null,"Wood-Ridge","NJ","07075-2344","(201) 939-0202",null,"Paul A. Sarlo",null,"2028-12-31",null,null,"psarlo@njwoodridge.org"]
[270,"Wyckoff Township","Bergen","Memorial Town Hall","Scott Plaza","Wyckoff","NJ",7481,"(201) 891-7000",null,"Rudolf E. Boonstra",null,"2025-12-31",null,null,"rboonstra@wyckoffnj.gov"]
[301,"Bass River Township","Burlington","Post Office Box 307",null,"New Gretna","NJ",8224,"(609) 296-3337",null,"William Adams ",null,"2028-05-31","Non Partisan",null,"bassriverclerk@comcast.net"]
[302,"Beverly City","Burlington","446 Broad Street",null,"Beverly","NJ","08010-1546","(609) 387-1881","(609) 387-3558","Randy H. Miller",null,"2027-12-31",null,null,"rmiller@thecityofbeverly.com"]
[303,"Bordentown City","Burlington","City Hall","324 Farnworth Avenue","Bordentown","NJ",8505,"(609) 298-0604",null,"Jennifer L. Sciortino",null,"2025-05-13",null,null,"jsciortino@cityofbordentown.com"]
[304,"Bordentown Township","Burlington","One Municipal Drive",null,"Bordentown","NJ",8505,"(609) 298-2800",null,"Eric Holliday",null,"2027-12-31",null,null,"e.holiday@bordentowntwp.org"]
[305,"Burlington City","Burlington","525 High Street",null,"Burlington","NJ","08016-4503","(609) 386-0200","(609) 386-0214","Barry Conaway","2024-12-31","2027-12-31","Mayor Council","4 Year","bconaway@burlingtonnj.us"]
[306,"Burlington Township","Burlington","851 Old York Road",null,"Burlington Township","NJ",8016,"(609) 239-5834",null,"E. L. Pete Green",null,"2026-12-31",null,null,"jbotlinger@twp.burlington.nj.us"]
[307,"Chesterfield Township","Burlington","295 Bordentown-Chesterfield Road",null,"Chesterfield","NJ",8515,"(609) 298-2311",null,"Shreekant Dhopte",null,"2025-12-31",null,null,"sdhopte@chesterfieldtwp.com"]
[308,"Cinnaminson Township","Burlington","1621 Riverton Road","Post Office Box 2100","Cinnaminson","NJ",8077,"(856) 829-6000",null,"Stephanie Kravil",null,"2025-12-31",null,null,"skravil@cinnaminsonnj.org"]
[309,"Delanco Township","Burlington","770 Coopertown Road",null,"Delanco","NJ",8075,"(856) 461-0561",null,"Carolyn M. Suess",null,"2025-12-31",null,null,"csuess@delancotownship.com"]
[310,"Delran Township","Burlington","900 Chester Avenue",null,"Delran","NJ",8075,"(856) 461-7734","(856) 764-1494","Barnes Hutchins",null,"2025-12-31",null,null,"mayor@delrantownship.org"]
[311,"Eastampton Township","Burlington","12 Manor House Court",null,"Eastampton","NJ","08060-4379","(609) 267-5723",null,"Ricardo Rodriguez",null,"2025-12-31",null,null,"rrodriguez@eastampton.com"]
[312,"Edgewater Park Township","Burlington","400 Delanco Road",null,"Edgewater Park","NJ",8010,"(609) 877-2050",null,"Kevin Johnson",null,"2026-12-31",null,null,"kjohnson@edgewaterpark-nj.com"]
[313,"Evesham Township","Burlington","984 Tuckerton Road",null,"Marlton","NJ","08053-2652","(856) 983-2900",null,"Jaclyn Veasy",null,"2025-12-31",null,null," veasyj@evesham-nj.gov"]
[314,"Fieldsboro Borough","Burlington","204 Washington Street",null,"Fieldsboro","NJ","08505-1100","(609) 298-6344",null,"David R. Hansell",null,"2025-12-31",null,null,"mayor.fieldsboro@gmail.com"]
[315,"Florence Township","Burlington","711 Broad Street",null,"Florence","NJ","08518-2310","(609) 499-2525",null,"Kristan I. Marter",null,"2027-12-31",null,"4 year","mayor@florence-nj.gov"]
[316,"Hainesport Township","Burlington","One Hainesport Centre","Post Office Box 477","Hainesport","NJ",8036,"(609) 267-2730",null,"Leila Gilmore",null,"2025-12-31",null,null,"lgilmore@hainesporttownship.com"]
[317,"Lumberton Township","Burlington","35 Municipal Drive",null,"Lumberton","NJ","08048-4516","(609) 267-3217","609-267-5566","Gina LaPlaca",null,"2025-12-31",null,null,"glaplaca@lumbertontwp.com"]
[318,"Mansfield Township","Burlington","3135 Route 206 South Suite 1 ",null,"Columbus","NJ",8022,"(609) 298-0542",null,"Brian Sisz",null,"2025-12-31",null,null,"bsisz@mansfieldtwp.com"]
[319,"Maple Shade Township","Burlington","200 Stiles Avenue",null,"Maple Shade","NJ",8052,"(856) 779-9610","(856) 779-2524","Heather Talarico",null,"2028-12-31",null,null,"htalarico@mapleshade.com"]
[320,"Medford Township","Burlington","49 Union Street",null,"Medford","NJ","08055-2411","(609) 654-2608","(609) 953-4087","Erik Rebstock",null,"2025-12-31",null,null,"erebstock@medfordtownship.com"]
[321,"Medford Lakes Borough","Burlington","1 Cabin Circle",null,"Medford Lakes","NJ","08055-2750","(609) 654-8898","(609) 654-1816","William R. Fields",null,"2028-06-30",null,null,"fields@medfordlakes.com"]
[322,"Moorestown Township","Burlington","111 West Second Street",null,"Moorestown","NJ","08057-2480","(856) 914-3001","(856) 914-3066","Quinton Law",null,"2026-12-31",null,null,"qlaw@moorestown.nj.us"]
[323,"Mount Holly Township","Burlington","23 Washington Street","Post Office Box 411","Mount Holly","NJ",8060,"(609) 845-1102","(609) 267-8155","Chris Banks",null,"2025-12-31",null,null,"cbanks@twp.mountholly.nj.us"]
[324,"Mount Laurel Township","Burlington","100 Mount Laurel Road",null,"Mount Laurel","NJ",8054,"(856) 234-0001",null,"Stephen Steglik",null,"2026-12-31",null,"4 year","ssteglik@mountlaurel.com"]
[325,"New Hanover Township","Burlington","Post Office Box 159",null,"Cookstown","NJ",8511,"(609) 758-2172",null,"Paul D. Peteria",null,"2026-12-31",null,null,"mayor@newhanovertwp.com; clerk@newhanovertwp.com "]
[326,"North Hanover Township","Burlington","41 Schoolhouse Road",null,"Jacobstown","NJ","08562-2106","(609) 758-2522",null,"Ronald DeBaecke",null,"2025-12-31",null,null,"rdebaecke@northhanovertwp.com"]
[327,"Palmyra Borough","Burlington","20 West Broad Street",null,"Palmyra","NJ",8065,"(856) 829-6100","(856) 692-3058","Gina Ragomo Tait",null,"2027-12-31",null,null,"gtait@boroughofpalmyra.com"]
[328,"Pemberton Borough","Burlington","50 Egbert Street","Post Office Box 261","Pemberton","NJ","08068-0261","(609) 894-8222",null,"Bonnie Haines",null,"2027-12-31",null,null,"bhaines@pemberton.comcastbiz.net"]
[329,"Pemberton Township","Burlington","500 Pemberton-Browns Mills Rd.",null,"Pemberton","NJ","08068-1539","(609) 894-3304","(609) 894-2703","Jack K. Tompkins",null,"2026-12-31",null,null,"mayor@pemberton-twp.com"]
[330,"Riverside Township","Burlington","237 S. Pavilion Avenue","Post Office Box 188","Riverside","NJ",8075,"(856) 461-1460","(856) 461-5878","Gary Haman",null,"2025-12-31",null,null,"ghaman@riversidetwp.org"]
[331,"Riverton Borough","Burlington","505A Howard Street",null,"Riverton","NJ",8077,"(856) 829-0120",null,"James Quinn",null,"2027-12-31",null,null,"jquinn@riverton-nj.com"]
[332,"Shamong Township","Burlington","105 Willow Grove Road",null,"Shamong","NJ",8088,"(609) 268-2377","(609) 268-2701","Michael DiCroce",null,"2025-12-31",null,null,"mdicroce@shamong.net"]
[333,"Southampton Township","Burlington","5 Retreat Road",null,"Southampton","NJ","08088-3514","(609) 859-2736",null,"Michael Mikulski",null,"2025-12-31",null,null,"khoffman@southamptonnj.org"]
[334,"Springfield Township","Burlington","Post Office Box 119"," 2159 Jacksonville- Jobstown Road","Jobstown","NJ",8041,"(609) 723-2464",null,"David Frank",null,"2025-12-31",null,null,"dfrank@springfieldtownshipnj.org"]
[335,"Tabernacle Township","Burlington","163 Carranza Road",null,"Tabernacle","NJ",8088,"(609) 268-1220",null,"Joseph Barton",null,"2025-12-31",null,null,"Jbarton@townshipoftabernacle-nj.gov"]
[336,"Washington Township","Burlington","1018 River Road",null,"Egg Harbor","NJ","08215-4707","(609) 965-3242","(609)965-3242","Daniel James",null,"2025-12-31",null,null,"djames@wtbcnj.org"]
[337,"Westampton Township","Burlington","710 Rancocas Road",null,"Westampton","NJ","08060-5642","(609) 267-1891",null,"Sandy Henley",null,"2026-12-31",null,null,"shenley@westampton.com"]
[338,"Willingboro Township","Burlington","1 Re. Dr. Martin Luther King Jr. Drive","Municipal Complex","Willingboro","NJ",8046,"(609) 877-2200",null,"Samantha Whitfield",null,"2025-12-31",null,null,"swhitfield@willingboronj.gov"]
[339,"Woodland Township","Burlington","3943 Route 563","Post Office Box 388","Chatsworth","NJ",8019,"(609) 726-1700",null,"William Degroff",null,"2026-12-31",null,null,"wdegroff@woodlandtownship.org"]
[340,"Wrightstown Borough","Burlington","21 Saylors Pond Road",null,"Wrightstown","NJ",8562,"(609) 723-4450","(609) 723-7137","Donald Cottrell",null,"2025-12-31",null,null,"mayor@wrightstownborough.com"]
[401,"Audubon Borough","Camden","Municipal Complex","606 West Nicholson Road","Audubon","NJ",8106,"(856) 547-0711",null,"Rob Jakubowski",null,"2025-05-11",null,null,"r.jakubowski@audubonnj.com"]
[402,"Audubon Park Borough","Camden","20 Road C",null,"Audubon Park","NJ",8106,"(856) 547-5236",null,"Lawrence E. Pennock",null,"2026-12-31",null,null,"audubonparkmayor@gmail.com"]
[403,"Barrington Borough","Camden","229 Trenton Avenue",null,"Barrington","NJ",8007,"(856) 547-8585",null,"Kyle Hanson ",null,"2027-12-31","Mayor/Council","4yr/3yr","mayor@barringtonboro.com"]
[404,"Bellmawr Borough","Camden","21 East Browning Road","Post Office 368","Bellmawr","NJ","08099-0368","(856) 933-1313","(856) 931-2368","Charles J. Sauter, III",null,"2026-12-31",null,"4 year","Mayor-sauter@bellmawr.com"]
[405,"Berlin Borough","Camden","59 South White Horse Pike",null,"Berlin","NJ",8009,"(856) 767-7777","ext. 311","Rick Miller",null,"2027-12-31",null,null,"mayormiller@berlinnj.org"]
[406,"Berlin Township","Camden","135 Route 73 South",null,"West Berlin","NJ","08091-3754","(856) 767-1854",null,"Phyllis A. Magazzu",null,"2025-12-31",null,null,"mayormagazzu@berlintwp.com"]
[407,"Brooklawn Borough","Camden","301 Christiana Street",null,"Brooklawn","NJ",8030,"(856) 456-0750",null,"Gerry Grandstrom",null,"2026-12-31",null,null,"ggrandstrom@brooklawn-nj.com"]
[408,"Camden City","Camden","City Hall","520 Market Street","Camden","NJ","08101-5120","(856) 757-7200","(856) 757-7389","Victor Carstarphen",null,"2025-12-31",null,null,"vicarsta@ci.camden.nj.us"]
[409,"Cherry Hill Township","Camden","820 Mercer Street",null,"Cherry Hill","NJ","08002-2638","(856) 488-7878",null,"David Fisher",null,"2027-12-31",null,null,"DFleisher@CHNJ.gov"]
[410,"Chesilhurst Borough","Camden","201 Grant Avenue",null,"Chesilhurst","NJ",8089,"(856) 767-4153","(856) 753-1696","Jamila Odom-Bremmer",null,"2025-12-31",null,null,"jbremmer@chesilhurstboro.org"]
[411,"Clementon Borough","Camden","101 Gibbsboro Road",null,"Clementon","NJ",8021,"(856) 783-0284",null,"Thomas J. Weaver",null,"2027-12-31",null,null,"t.weaver@clementon-nj.com"]
[412,"Collingswood Borough","Camden","678 Haddon Avenue",null,"Collingswood","NJ",8108,"(856) 854-0720","(856) 854-0632","M. James Maley, Jr.",null,"2025-05-13",null,null,"jmaley@collingswood.com"]
[413,"Gibbsboro Borough","Camden","49 Kirkwood Road",null,"Gibbsboro","NJ","08026-1432","(856) 783-6655","(856) 782-8694","Edward G. Campbell, III",null,"2027-12-31",null,null,"mayor@gibbsborotownhall.com"]
[414,"Gloucester City","Camden","Municipal Building","512 Monmouth Street","Gloucester City","NJ",8030,"(856) 456-0205","(856) 456-8030","Dayl R. Baile",null,"2026-12-31",null,null,"mayorbaile@cityofgloucester.org"]
[415,"Gloucester Township","Camden","P.O. Box 8",null,"Blackwood","NJ",8012,"(856) 228-4000","(856) 374-5721","David R. Mayer",null,"2025-12-31",null,null,"Mayor@glotwp.com"]
[416,"Haddon Township","Camden","135 Haddon Avenue",null,"Westmont","NJ",8108,"(856) 854-1176","(856) 854-9561","Randall W. Teague",null,"2027-05-11",null,"4 year","mayorteague@haddontwp.com"]
[417,"Haddonfield Borough","Camden","242 Kings Highway East","P.O. Box 23005","Haddonfield","NJ",8033,"(856) 429-4700","(856) 795-1445","Colleen Bianco Bezich",null,"2025-05-20",null,null," cbbezich@haddonfield-nj.gov"]
[418,"Haddon Heights Borough","Camden","625 Station Avenue",null,"Haddon Heights","NJ",8035,"(856) 547-7164",null,"Zachary Houck",null,"2027-12-31",null,"4 year","mayor@haddonhts.com"]
[419,"Hi-Nella Borough","Camden","100 Wykagyl Road",null,"Hi-Nella","NJ",8083,"(856) 784-6237",null,"Michael Segeren",null,"2025-12-31",null,null,"msegeren@hinellaboro.org"]
[420,"Laurel Springs Borough","Camden","135 Broadway",null,"Laurel Springs","NJ","08021-2006","(856) 784-0500","(856) 784-5880","Thomas A.  Barbera",null,"2027-12-31",null,null,"dawn@laurelsprings-nj.com"]
[421,"Lawnside Borough","Camden","4 East Douglas Avenue",null,"Lawnside","NJ","08045-1597","(856) 573-6200","(856) 546-3232","Mary Ann Wardlow",null,"2026-12-31",null,null,"mayorwardlow@lawnside.net"]
[422,"Lindenwold Borough","Camden","15 North White Horse Pike",null,"Lindenwold","NJ",8021,"(856) 783-2121",null,"Richard E. Roach",null,"2025-12-31",null,null,"rroach@lindenwold.net"]
[423,"Magnolia Borough","Camden","438 West Evesham Avenue",null,"Magnolia","NJ",8049,"(856) 783-1520","(856) 627-7294","Bettyann Cowling-Carson",null,"2025-12-31",null,null,"baccarson@magnolia-nj.org"]
[424,"Merchantville Borough","Camden","One West Maple Avenue",null,"Merchantville","NJ",8109,"(856) 662-2474","(856) 662-0461","Edward  F. Brennan",null,"2026-12-31",null,null,"mayor@merchantvillenj.gov"]
[425,"Mount Ephraim Borough","Camden","121 South Black Horse Pike",null,"Mount Ephraim","NJ","08059-1721","(856) 931-1546",null,"Sue Carney",null,"2026-12-31",null,4,"scarney@mountephraim-nj.com"]
[426,"Oaklyn Borough","Camden","500 White Horse Pike",null,"Oaklyn","NJ",8107,"(856) 858-2457",null,"Greg Brandley",null,"2027-12-31",null,null,"g.brandley@oaklyn-nj.net"]
[427,"Pennsauken Township","Camden","5605 North Crescent Boulevard",null,"Pennsauken","NJ",8110,"(856) 665-1000",null,"Nicole Roberts",null,"2025-12-31",null,null,"nroberts@pennsauken.gov"]
[428,"Pine Hill Borough","Camden","45 West 7th Avenue",null,"Pine Hill","NJ","08021-6399","(856) 783-7400",null,"Christopher Green",null,"2027-12-31",null,"4 year","cgreen@pinehillboronj.com"]
[430,"Runnemede Borough","Camden","24 North Black Horse Pike",null,"Runnemede","NJ",8078,"(856) 939-5196",null,"Nick Kappatos",null,"2026-12-31",null,"4 year","nkappatos@runnemedenj.org"]
[431,"Somerdale Borough","Camden","105 Kennedy Boulevard",null,"Somerdale","NJ","08083-1018","(856) 783-6320","(856) 783-6863","George Badey",null,"2025-12-31",null,null,"gbadey@somerdale-nj.com"]
[432,"Stratford Borough","Camden","307 Union Avenue",null,"Stratford","NJ",8084,"(856) 783-0600",null,"Linda Hall",null,"2027-12-31",null,null,"johnkeenan@stratfordnj.org"]
[433,"Tavistock Borough","Camden","Post Office Box 218",null,"Barrington","NJ",8007,"(856) 429-0039",null,"Joseph DelDuca",null,"2025-12-31",null,null,"tavistockboro@yahoo.com"]
[434,"Voorhees Township","Camden","2400 Voorhees Town Center",null,"Voorhees","NJ","08043-1493","(856) 429-7174",null,"Michael Mignogna","2025-01-01","2027-12-31",null,null,"mmignogna@voorheesnj.com"]
[435,"Waterford Township","Camden","2131 Auburn Avenue",null,"Atco","NJ",8004,"(856) 768-2300",null,"Robert Doney",null,"2025-12-31",null,null,"rdoney@waterfordtwp.org"]
[436,"Winslow Township","Camden","125 South Route 73",null,"Braddock","NJ","08037-9422","(609) 567-0700",null,"Marie Lawrence",null,"2027-12-31",null,null,"mayorlawrence@winslowtownship.com"]
[437,"Woodlynne Borough","Camden","200 Cooper Avenue",null,"Woodlynne","NJ","08107-2108","(856) 962-8300",null,"Joseph Chukwueke ",null,"2027-12-31",null,null,"woodlynnemayor@comcast.net"]
[501,"Avalon Borough","Cape May","3100 Dune Drive",null,"Avalon","NJ","08202-1706","(609) 967-5924",null,"John M. McCorristin",null,"2027-06-30","Mayor/Council","4 year each","skeen@avalonboro.org"]
[502,"Cape May City","Cape May","643 Washington Street",null,"Cape May","NJ","08204-2397","(609) 884-9525",null,"Zachary Mullock",null,"2028-12-31",null,null,"zmullock@capemaycity.com"]
[503,"Cape May Point Borough","Cape May","215 Lighthouse Avenue","Post Office Box 490","Cape May Point","NJ","08212-0504","(609) 884-8468",null,"Anita vanHeeswyk",null,"2029-01-14",null,null,"avanheeswyk@capemaypoint.org"]
[504,"Dennis Township","Cape May","571 Petersburg Road","Post Office Box 204","Dennisville","NJ","08214-0204","(609) 861-9700","(609) 861-9719","Zeth A. Matalucci",null,"2025-12-31",null,null,"matalucci@dennistwp.org"]
[505,"Lower Township","Cape May","2600 Bayshore Road",null,"Villas","NJ","08251-1397","(609) 886-2005","(609) 886-1694","Frank Sippel",null,"2028-12-31",null,null,"fsippel@townshipoflower.org"]
[506,"Middle Township","Cape May","33 Mechanic Street",null,"Cape May Court House","NJ",8210,"(609) 465-8732","(609)-465-9659","Christopher Leusner",null,"2026-12-31","Mayor/Committee","3 year","chris.leusner@middletownship.com"]
[507,"North Wildwood City","Cape May","901 Atlantic Avenue",null,"North Wildwood","NJ",8260,"(609) 522-2030","(609) 523-8502","Patrick T. Rosenello",null,"2025-12-31",null,null,"prosenello@northwildwood.com"]
[508,"Ocean City","Cape May","861 Asbury Avenue",null,"Ocean City","NJ",8226,"(609) 525-9351","(609) 399-3697","Jay A. Gillian",null,"2026-06-30",null,null,"mayor@ocnj.us"]
[509,"Sea Isle City","Cape May","4416 Landis Avenue",null,"Sea Isle City","NJ","08243-1831","(609) 263-4461","(609) 263-2142","Leonard C Desiderio",null,"2027-06-30","Mayor/Council","4 year each","mayorlen@seaislecitynj.us"]
[510,"Stone Harbor Borough","Cape May","9508 Second Avenue",null,"Stone Harbor","NJ",8247,"(609) 368-5102",null,"Tim Carney",null,"2025-12-31",null,null,"carneyt@shnj.org"]
[511,"Upper Township","Cape May","Post Office Box 205",null,"Tuckahoe","NJ",8250,"(609) 628-2011","(609) 628-3092","Curtis T. Corson, Jr.",null,"2025-12-31",null,null,"ccorson@uppertownship.com"]
[512,"West Cape May Borough","Cape May","732 Broadway",null,"West Cape May","NJ","08204-1214","(609) 884-1005","(609) 898-0888","Carol Sabo",null,"2025-12-31",null,null,"csabo@westcapemay.us"]
[513,"West Wildwood Borough","Cape May","701 West Glenwood Avenue",null,"West Wildwood","NJ","08260-2221","(609) 522-4845",null,"Matthew J. Ksiazek",null,"2028-12-31","Commission","4 year","mksiazek@westwildwood.org"]
[514,"Wildwood City","Cape May","4400 New Jersey Avenue",null,"Wildwood","NJ","08260-1729","(609) 522-2444","(609) 523-9200","Ernest Troiano",null,"2027-12-31",null,null,"smaxwell@wildwoodnj.org"]
[515,"Wildwood Crest Borough","Cape May","6101 Pacific Avenue",null,"Wildwood Crest","NJ",8260,"(609) 522-5176","(609) 522-6692","Donald Cabrera",null,"2025-12-31",null,null,"dcabrera@wildwoodcrest.org"]
[516,"Woodbine Borough","Cape May","501 Washington Avenue",null,"Woodbine","NJ",8270,"(609) 861-2153","(609) 861-2529","William Pikolycky",null,"2026-12-31",null,null,"mayor@boroughofwoodbine.net"]
[601,"Bridgeton City","Cumberland","181 East Commerce Street",null,"Bridgeton","NJ","08302-2646","(856) 455-3230","(856) 455-7421","Albert B. Kelly",null,"2026-12-31",null,null,"mayor@cityofbridgeton.com"]
[602,"Commercial Township","Cumberland","1768 Main Street",null,"Port Norris","NJ","08349-3348","(856) 785-3100",null,"Joseph Klaudi",null,"2025-12-31",null,null,"Jklaudi@commercialtwp.com "]
[603,"Deerfield Township","Cumberland","Post Office Box 350",null,"Rosenhayn","NJ",8352,"(856) 455-3200","(856) 455-0025","Abigail P. O'Brien",null,"2025-12-31",null,null,"apobrien@deerfieldtownship.org"]
[604,"Downe Township","Cumberland","288 Main Street",null,"Newport","NJ","08345-2131","(856) 447-3100",null,"Michael L. Rothman",null,"2025-12-31",null,null,"MAYORROTHMAN@DOWNETWPNJ.ORG; ROTHMANDOWNE@GMAIL.COM"]
[605,"Fairfield Township","Cumberland","Post Office Box 240",null,"Fairton","NJ",8320,"(856) 451-9284",null,"Marvin Pierce, Jr.",null,"2025-12-31",null,null,"mpiercejr@fairfieldtownshipnj.org "]
[606,"Greenwich Township","Cumberland","1000 Ye Greate Street","Post Office Box 64","Greenwich","NJ","08323-0064","(856) 498-5352",null,"William Reinhart","2024-01-01","2026-12-31",null,null,"committeemanreinhart@gmail.com"]
[607,"Hopewell Township","Cumberland","590 Shiloh Pike",null,"Bridgeton","NJ","08302-1492","(856) 455-1230","(856) 455-3080","Robin Freitag",null,"2025-12-31","not since 2018","1 year","mayor@hopewelltwp-nj.com"]
[608,"Lawrence Township","Cumberland","357 Main Street","Post Office Box 697","Cedarville","NJ","08311-0697","(856) 447-4554","(856) 447-3055","Elmer \"Skip\" Bowman",null,"2026-12-31",null,null,"Mayor@lawrtwp.com "]
[609,"Maurice River Township","Cumberland","590 Main Street","Post Office Box 218","Leesburg","NJ",8327,"(856) 785-1120","(856) 785-1974","Ken Whildin ",null,"2025-12-31",null,null,"Kwhildin@mauricerivertwp.org"]
[610,"Millville City","Cumberland","12 South High Street","Post Office Box 609","Millville","NJ",8332,"(856) 825-7000",null,"Benjamin Romanik",null,"2025-12-31",null,null,"Benjamin.Romanik@millvillenj.gov; "]
[611,"Shiloh Borough","Cumberland","900 Main Street","Post Office Box 349","Shiloh","NJ",8353,"(856) 455-3054",null,"Brad E. Campbell",null,"2028-12-31",null,null,"mayor@shilohborough.com"]
[612,"Stow Creek Township","Cumberland","474 Macanippuck Road",null,"Bridgeton","NJ",8302,"(856) 451-8822",null,"Dale F. Cruzan, Jr.",null,"2025-12-31",null,null,"committemancruzan@stowcreektwp.com"]
[613,"Upper Deerfield Township","Cumberland","Post Office Box 5098","1325 State Highway 77","Seabrook","NJ",8302,"(856) 451-3811","(856) 451-1379","John Daddario",null,"2025-12-31",null,null,"jdaddario@upperdeerfield.com"]
[614,"Vineland City","Cumberland","640 East Wood Street","Post Office Box 1508","Vineland","NJ","08362-1508","(856) 794-4000",null,"Anthony R. Fanucci",null,"2028-12-31",null,null,"afanucci@vinelandcity.org"]
[701,"Belleville Township","Essex","152 Washington Avenue",null,"Belleville","NJ",7109,"(973) 450-3300",null,"Michael Melham",null,"2026-06-30",null,null,"mmelham@bellevillenj.org"]
[702,"Bloomfield Township","Essex","Law Enforcement Building","One Municipal Plaza","Bloomfield","NJ","07003-3470","(973) 680-4077","(973) 680-4040","Jenny Mundell",null,"2025-12-31","Mayor ","1 Year","jmundell@bloomfieldtwpnj.com"]
[703,"Caldwell Borough","Essex","24 Smull Avenue",null,"Caldwell","NJ","07006-5103","(973) 403-4634","(973) 403-1355","Garrett Jones",null,"2026-12-31",null,null,"gjones@caldwell-nj.com"]
[704,"Cedar Grove Township","Essex","525 Pompton Avenue",null,"Cedar Grove","NJ","07009-1796","(973) 239-1410",". ","Melissa Skabich",null,"2025-07-01",null,null,"skabich@cedargrovenj.org"]
[705,"East Orange City","Essex","44 City Hall Plaza",null,"East Orange","NJ",7019,"(973) 266-5151","(973) 266-5135","Teeodore R. Green",null,"2025-12-31",null,null,"Ted.Green@eastorange-nj.gov; constituentservices@eastorange-nj.gov"]
[706,"Essex Fells Borough","Essex","255 Roseland Avenue",null,"Essex Fells","NJ","07021-1312","(973) 226-3400","(973) 228-4439","Edward A,. Davis",null,"2025-12-31",null,null,"Mayor@essexfellsboro.com; Administrator@essexfellsboro.com"]
[707,"Fairfield Township","Essex","230 Fairfield Road",null,"Fairfield","NJ","07004-2425","(973) 882-2704","(973) 882-0365","William Galese",null,"2027-12-31",null,null,"bgalese@fairfieldnj.org"]
[708,"Glen Ridge Borough","Essex","825 Bloomfield Avenue",null,"Glen Ridge","NJ",7028,"(973) 748-8400",null,"Deborah Mans",null,"2027-12-31",null,null,"dmans@glenridgenj.org"]
[709,"Irvington Township","Essex","Municipal Building","1 Civic Square","Irvington","NJ","07111-2412","(973) 399-8111","(973) 399-7321","Anthony Vauss",null,"2026-06-30",null,null,"twalker@irvingtonnj.org"]
[710,"Livingston Township","Essex","357 South Livingston Avenue",null,"Livingston","NJ",7039,"(973) 992-5000","(973) 992-7531","Edward Meinhardt",null,"2025-12-31",null,null,"emeinhardt@livingstonnj.org"]
[711,"Maplewood Township","Essex","574 Valley Street",null,"Maplewood","NJ","07040-2669","(973) 762-8120",null,"Nancy Adams",null,"2025-12-31","Township","Mayor (1 Year)","Nadams@Maplewoodnj.gov","MaplewoodTWP on Instagram and Facebook"]
[712,"Millburn Township","Essex","375 Millburn Avenue",null,"Millburn","NJ",7041,"(973) 564-7075",null,"Annette Romano",null,"2025-12-31",null,null,"aromano@millburntwp.org"]
[713,"Montclair Township","Essex","205 Claremont Avenue",null,"Montclair","NJ","07042-3401","(973) 509-4900","(973) 509-3822","Renee Baskerville",null,"2028-06-30",null,null,"mayorbaskerville@montclairnjusa.org"]
[714,"Newark City","Essex","920 Broad Street",null,"Newark","NJ",7102,"(973) 733-6400",null,"Ras J. Babaka",null,"2026-06-30",null,null,"Barakar@ci.Newark.nj.us"]
[715,"North Caldwell Borough","Essex","Municipal Building","141 Gould Avenue","North Caldwell","NJ","07006-4213","(973) 228-6410",null,"Joshua H. Raymond","2023-01-01","2026-12-31","Mayor & Council","4 year","mayorraymond@northcaldwell.org"]
[716,"Nutley Township","Essex","One Kennedy Drive",null,"Nutley","NJ","07110-2786","(973) 284-4951","(973) 661-0972","John V. Kelly III ",null,"2028-05-16","Non Partisan",null,"mayorkelly@nutleynj.org "]
[717,"Orange City Township","Essex","29 North Day Street",null,"Orange","NJ",7050,"(973) 266-4005","(973) 676-7459","Dwayne D. Warren, Esq.",null,"6/302025",null,null,"dwarren@orangenj.gov"]
[718,"Roseland Borough","Essex","Roseland Borough Hall","19 Harrison Avenue","Roseland","NJ",7068,"(973) 403-6022",null,"James R. Spango",null,"2026-12-31",null,"4 year","jspango@roselandnj.org "]
[719,"South Orange Village","Essex","Village Hall","76 South Orange Avenue, Suite 302","South Orange","NJ",7079,"(973) 378-7715","(973) 763-6396","Sheena C. Collum",null,"2027-05-17",null,null,"scollum@southorange.org"]
[720,"Verona Township","Essex","600 Bloomfield Avenue",null,"Verona","NJ",7044,"(973) 857-4770","(973) 857-8551","Christopher Tamburro",null,"2025-06-30","Non Partisan","mayor-1yr Term -4yr","mayor@veronanj.org"]
[721,"West Caldwell Township","Essex","30 Clinton Road",null,"West Caldwell","NJ","07006-6704","(973) 226-3621",null,"Joseph Tempesta, Jr.",null,"2026-12-31",null,null,"jtemp41@westcaldwell.com"]
[722,"West Orange Township","Essex","Municipal Building","66 Main Street","West Orange","NJ","07052-5054","(973) 325-4100","(973) 669-0238","Susan McCartney",null,"2026-12-31",null,null,"mayor@westorange.org"]
[801,"Clayton Borough","Gloucester","125 North Delsea Drive",null,"Clayton","NJ","08312-1698","(856) 881-2882","(856) 881-0153","Thomas Bianco",null,"2027-12-31",null,null,"tbianco@claytonnj.com"]
[802,"Deptford Township","Gloucester","Municipal Building","1011 Cooper Street","Deptford","NJ",8096,"(856) 845-5300",null,"Paul Medany","2024-01-01","2025-12-31","Mayor Council Faulkner","2 years","mayor@deptford-nj.org"]
[803,"East Greenwich Township","Gloucester","159 Democrat Road",null,"Mickleton","NJ","08056-1232","(856) 423-0654",null,"James R. Philbin, Jr. ",null,"2025-12-31",null,null,"jphilbin@eastgreenwichnj.com"]
[804,"Elk Township","Gloucester","667 Whig Lane Road",null,"Monroeville","NJ","08343-2826","(856) 881-6525","(856) 881-5750","Carolyn D. K. Sammons",null,"2026-12-31",null,null,"csammons@elktownshipnj.gov"]
[805,"Franklin Township","Gloucester","1571 Delsea Drive",null,"Franklinville","NJ",8322,"(856) 694-1234",null,"John Bruno",null,"2025-12-31",null,null,"jbruno@franklintownship.com"]
[806,"Glassboro Borough","Gloucester","One South Main Street",null,"Glassboro","NJ","08028-2539","(856) 881-9230","(856) 881-9241","John E. Wallace, III",null,"2026-12-31",null,null,"Jwallace@glassboro.org"]
[807,"Greenwich Township","Gloucester","420 Washington Street",null,"Gibbstown","NJ",8027,"(856) 423-1038",null,"Vincent Giovannitti",null,"2026-12-31",null,null,"vgiovannitti@greenwichtwp.com"]
[808,"Harrison Township","Gloucester","114 Bridgeton Pike",null,"Mullica Hill","NJ",8062,"(856) 478-4111","(856) 478-2498","Adam Wingate",null,"2025-12-31",null,null,"awingate@harrisontwp.us"]
[809,"Logan Township","Gloucester","125 Main Street","Post Office Box 314","Bridgeport","NJ",8014,"(856) 467-3424",null,"Frank W Minor",null,"2027-12-31",null,null,"fminor@logan-twp.org"]
[810,"Mantua Township","Gloucester","401 Main Street",null,"Mantua","NJ",8051,"(856) 468-1500","(856) 464-1022","Robert T. Zimmerman ",null,"2027-12-31","Committee","3 year","Rzimmerman@mantuatownship.com"]
[811,"Monroe Township","Gloucester","125 Virginia Avenue",null,"Williamstown","NJ",8094,"(856) 728-9800","(856) 728-1240","Gregory A. Wolfe",null,"2026-12-31",null,null,"mayor@monroetownshipnj.org"]
[812,"National Park Borough","Gloucester","7 South Grove Avenue",null,"National Park","NJ",8063,"(856) 845-3891","(856) 845-0726","Denis Burke",null,"2025-12-31","Mayor & Council","4 & 3","dennisburkenp@gmail.com "]
[813,"Newfield Borough","Gloucester","18 Catawba Avenue","Post Office Box 856","Newfield","NJ",8344,"(856) 697-1100","(856) 697-3014","Charles D. Grova Jr",null,"2026-12-31",null,"4 year","MAYOR@NEWFIELDBORO.ORG"]
[814,"Paulsboro Borough","Gloucester","1211 Delaware Street",null,"Paulsboro","NJ",8066,"(856) 423-1500","(856) 423-9117","John Giovannitti",null,"2027-12-31","Mayor and Council","4 years","jgiovannitti@paulsboronj.org"]
[815,"Pitman Borough","Gloucester","110 South Broadway",null,"Pitman","NJ",8071,"(856) 589-3522",null,"Michael Razze",null,"2027-12-31",null,null,"Michael.Razze@pitman.org"]
[816,"South Harrison Township","Gloucester","664 Harrison Road",null,"Mullica Hill","NJ",8062,"(856) 769-3737",null,"Joseph Marino",null,"2025-12-31",null,null," jmarino@southharrison-nj.org"]
[817,"Swedesboro Borough","Gloucester","1500 Kings Highway",null,"Swedesboro","NJ","08085-1286","(856) 467-0202",null,"Thomas W. Fromm",null,"2027-12-31",null,null,"tfromm@swedesboro-nj.us "]
[818,"Washington Township","Gloucester","Post Office Box 1106",null,"Turnersville","NJ","08012-1106","(856) 589-0520","(856) 589-5419","Anthony DellaPia",null,"2025-12-30",null,null,"MayorDellaPia@twp.washington.nj.us"]
[819,"Wenonah Borough","Gloucester","One Southwest Avenue",null,"Wenonah","NJ","08090-1800","(856) 468-5228",null,"Jessica S. Doheny",null,"2026-12-31",null,null,"jdoheny@borougofwenonah.com"]
[820,"West Deptford Township","Gloucester","400 Crown Point Road",null,"West Deptford","NJ","08086-0089","(856) 845-4004","(856)384-4729","James P. Mehaffey",null,"2027-12-31",null,null,"jmehaffey@westdeptford.com"]
[821,"Westville Borough","Gloucester","165 Broadway",null,"Westville","NJ","08093-1148","(856) 456-0030","(856) 742-8190","Fritz H. Sims, Jr.",null,"2026-12-31",null,null,"fsims@westville-nj.com"]
[822,"Woodbury City","Gloucester","33 Delaware Street","Post Office Box 180","Woodbury","NJ",8096,"(856) 845-1300","(856) 845-1309","Kyle Miller",null,"2026-12-31","Mayor Council","2 Year ","kmiller@woodbury.nj.us"]
[823,"Woodbury Heights Borough","Gloucester","500 Elm Avenue",null,"Woodbury Heights","NJ",8097,"(856) 848-2832",null,"William C. Packer",null,"2026-12-31",null,"4 year","wpacker@bwhnj.com"]
[824,"Woolwich Township","Gloucester","120 Village Green Drive",null,"Woolwich Township","NJ","08085-3180","(856) 467-2666",null,"Natalie Matthias",null,"2025-12-31",null,null,"nmatthias@woolwichtwp.org"]
[901,"Bayonne City","Hudson","City Hall","630 Avenue C","Bayonne","NJ","07002-3878","(201) 858-6000",null,"James Davis",null,"2026-06-30",null,null,"mayors.office@baynj.org"]
[902,"East Newark Borough","Hudson","34 Sherman Avenue",null,"East Newark","NJ","07029-2718","(973) 481-2902",null,"Dina M. Grilo",null,"2025-12-31",null,null,"dgrilo@boroughofeastnewark.com"]
[903,"Guttenberg Town","Hudson","6808 Park Avenue",null,"Guttenberg","NJ",7093,"(201) 868-3489",null,"Wayne D. Zitt, Jr. ",null,"2025-12-31",null,null,"wzitt@myguttenberg.com "]
[904,"Harrison Town","Hudson","318 Harrison Avenue",null,"Harrison","NJ","07029-1752","(973) 268-2444",null,"James A. Fife",null,"2026-12-31",null,"4 year","jafife@townofharrison.com"]
[905,"Hoboken City","Hudson","94 Washington Street",null,"Hoboken","NJ","07030-4556","(201) 420-2013",null,"Ravinder  S. Bhalla",null,"2025-12-31",null,null,"rbhalla@hobokennj.gov"]
[906,"Jersey City","Hudson","280 Grove Street",null,"Jersey City","NJ","07302-3610","(201) 547-5150",null,"Steven Fulop",null,"2026-01-14",null,null,"fulops@jcnj.org"]
[907,"Kearny Town","Hudson","402 Kearny Avenue",null,"Kearny","NJ",7032,"(201) 955-7400",null,"CarolJEan Doyle",null,"2025-12-31",null,null,"mayordoyle@kearnynj.org"]
[908,"North Bergen Township","Hudson","4233 Kennedy Boulevard",null,"North Bergen","NJ","07047-2779","(201) 392-2005","(201) 330-7694","Nicholas Sacco",null,"2027-05-08",null,"4 year","surgelles@northbergen.org; ghernandez@northbergen.org "]
[909,"Secaucus Town","Hudson","1203 Paterson Plank Road",null,"Secaucus","NJ",7094,"(201) 330-2000",null,"Michael Gonnelli",null,"2025-12-31","since 2021",null,"mgonnelli@secaucus.net"]
[910,"Union City","Hudson","3715 Palisade Avenue",null,"Union City","NJ",7087,"(201) 348-5731",null,"Brian Stack",null,"2026-05-18",null,null,"mayorstack@ucnj.com"]
[911,"Weehawken Township","Hudson","400 Park Avenue",null,"Weehawken","NJ",7087,"(201) 319-6000","(201) 319-6112","Richard  F. Turner",null,"2026-06-30",null,null,"rfares@tow-nj.net"]
[912,"West New York Town","Hudson","428  60th Street",null,"West New York","NJ","07093-2222","(201) 295-5200",null,"Albio Sires ",null,"2027-05-16",null,null,"mayoroffice@westnewyorknj.org"]
[1001,"Alexandria Township","Hunterdon","782 Frenchtown Road",null,"Milford","NJ",8848,"(908) 996-7071",null,"Roberta Mortara",null,"2025-12-31","TOWNSHIP",3,"rmortara@alexandrianj.gov"]
[1002,"Bethlehem Township","Hunterdon","405 Mine Road",null,"Asbury","NJ",8802,"(908) 735-4107",null,"Paul Muir",null,"2025-12-31",null,null,"pmuir@bethlehemnj.org"]
[1003,"Bloomsbury Borough","Hunterdon","91 Brunswick Avenue",null,"Bloomsbury","NJ",8804,"(908) 479-4200",null,"Vicky Papics",null,"2027-12-31","Mayor Council","4 and 3","Mayor@Bloomsburyborough.com "]
[1004,"Califon Borough","Hunterdon","Post Office Box 368",null,"Califon","NJ",7830,"(908) 832-7150",null,"Charles Daniel",null,"2026-12-31",null,null,"cdaniel@califonboro.net"]
[1005,"Clinton Town","Hunterdon","43 Leigh Street","Post Office Box 5194","Clinton","NJ",8809,"(908) 735-8616",null,"Janice Kovach",null,"2027-12-31",null,null,"jkovach@clintonnj.gov"]
[1006,"Clinton Township","Hunterdon","1225 Route 31 South","Suite 411","Lebanon","NJ","08833-0000","(908) 735-8800",null,"Brain Mullay",null,"2025-12-31",null,null,"bmullay@clintontwpnj.com"]
[1007,"Delaware Township","Hunterdon","Post Office Box 500",null,"Sergeantsville","NJ",8557,"(609) 397-3240",null,"Joseph Vocke",null,"2025-12-31",null,null,"jvocke@delawaretwpnj.org"]
[1008,"East Amwell Township","Hunterdon","1070 Route 202/31",null,"Ringoes","NJ",8551,"(908) 782-8536",null,"Dante DiPirro",null,"2025-12-31",null,null,"ddipirro@eastamwelltownship.com"]
[1009,"Flemington Borough","Hunterdon","38 Park Avenue",null,"Flemington","NJ","08822-1321","(908) 782-8840",null,"Marcia A. Karrow",null,"2026-12-31",null,null,"mkarrow@historicflemington.com"]
[1010,"Franklin Township","Hunterdon","202 Sidney Road",null,"Pittstown","NJ",8867,"(908) 735-5215",null,"Sebastian Donaruma",null,"2025-12-31",null,null,"mhomulak@franklin-twp.org"]
[1011,"Frenchtown Borough","Hunterdon","29 Second Street",null,"Frenchtown","NJ","08825-1131","(908) 996-4524",null,"Brad Myhre",null,"2027-12-31",null,null,"mayor@frenchtownborough.com"]
[1012,"Glen Gardner Borough","Hunterdon","Post Office Box 307",null,"Glen Gardner","NJ",8826,"(908) 537-4748",null,"Mattias Schroeter",null,"2027-12-31",null,null,"mayorschroeter@glengardner.org"]
[1013,"Hampton Borough","Hunterdon","Post Office Box 418",null,"Hampton","NJ","08827-0418","(908) 537-2329",null,"Todd Shaner",null,"2027-12-31",null,null,"hamptonboromayor@gmail.com"]
[1014,"High Bridge Borough","Hunterdon","97 West Main Street",null,"High Bridge","NJ",8829,"(908) 638-6455",null,"Michele I. Lee",null,"2026-12-31",null,"4 year","mlee@highbridge.org"]
[1015,"Holland Township","Hunterdon","61 Church Road",null,"Milford","NJ",8848,"(908) 995-4847","(908) 995-7112","Daniel Bush",null,"2025-12-31",null,null,"d.bush@hollandtownship.org"]
[1016,"Kingwood Township","Hunterdon","599 Oak Grove Rd.",null,"Frenchtown","NJ",8825,"(908) 996-4276",null,"Lance Riggio",null,"2025-12-31",null,"4 year","lriggio@kingwoodtownship.com"]
[1017,"Lambertville City","Hunterdon","18 York Street",null,"Lambertville","NJ","08530-2038","(609) 397-0110","(609) 397-2203","Andrew J. Nowick",null,"2027-12-31",null,null,"mayornowick@lambertvillenj.org"]
[1018,"Lebanon Borough","Hunterdon","6 High Street",null,"Lebanon","NJ",8833,"(908) 236-2425",null,"James J. Pittinger",null,"2026-12-31",null,null,"mayor@lebanonboro.com"]
[1019,"Lebanon Township","Hunterdon","530 West Hill Road",null,"Glen Gardner","NJ",8826,"(908) 638-8523",null,"Brian Wunder",null,"2025-12-31",null,null,"bwunder@lebtwp.net"]
[1020,"Milford Borough","Hunterdon","Post Office Box 507",null,"Milford","NJ","08848-0507","(908) 995-4323","(908) 995-2343","Henry Schepens",null,"2027-12-31","mayor council","4yr 3 yr","schepensmilfordboro@gmail.com"]
[1021,"Raritan Township","Hunterdon","One Municipal Drive",null,"Flemington","NJ",8822,"(908) 806-6100",null,"Bob King",null,"2025-12-31",null,null,"bob.king@raritantwpnj.gov"]
[1022,"Readington Township","Hunterdon","509 Route 523",null,"Whitehouse Station","NJ",8889,"(908) 534-4051",null,"Juergen Huelsebusch",null,"2025-12-31",null,null,"jhuelsebusch@readingtontwp-nj.org; jheller@readingtontwp-nj.org"]
[1023,"Stockton Borough","Hunterdon","2 South Main Street","Post Office Box M","Stockton","NJ","08559-0377","(609) 397-0070",null,"Aaron R. Lipson",null,"2026-12-31",null,null,"alipsen@stocktonboronj.us"]
[1024,"Tewksbury Township","Hunterdon","169 Old Turnpike Road",null,"Califon","NJ",7830,"(908) 439-0022","908-439-0034","Peter Melick",null,"2025-12-31",null,null,"plmelick@tewksburytwp.net"]
[1025,"Union Township","Hunterdon","140 Perryville Road",null,"Hampton","NJ",8827,"(908) 735-8027",null,"David M. DeGiralamo",null,"2027-12-31",null,null,"ddegiralamo@uniontwp-hcnj.org"]
[1026,"West Amwell Township","Hunterdon","150 Rocktown-Lambertville Road",null,"Lambertville","NJ","08530-3203","(609) 397-2054","(609) 397-8634","Gary Hoyer",null,"2025-12-31",null,null,"clerk@westamwelltwp.org"]
[1101,"East Windsor Township","Mercer","16 Lanning Boulevard",null,"East Windsor","NJ",8520,"(609) 443-4000","(609) 443-8303","Janice S. Mironov",null,"2027-12-31",null,null,"mayor@east-windsor.nj.us"]
[1102,"Ewing Township","Mercer","2 Jake Garzio Drive",null,"Ewing","NJ",8628,"(609) 883-2900",null,"Bert Steinmann",null,"2026-12-31",null,null,"bsteinmann@ewingnj.org"]
[1103,"Hamilton Township","Mercer","2090 Greenwood Avenue","Post Office Box 0150","Hamilton","NJ","08650-0150","(609) 890-3500",null,"Jeffrey S. Martin",null,"2027-12-31",null,null,"mayor@hamiltonnj.com"]
[1104,"Hightstown Borough","Mercer","156 Bank Street",null,"Hightstown","NJ","08520-3249","(609) 490-5100",null,"Susan Bluth",null,"2026-12-31",null,"4 year","bluth@hightstownborough.com"]
[1105,"Hopewell Borough","Mercer","88 East Broad Street",null,"Hopewell","NJ","08525-1820","(609) 466-2636",null,"Ryan Kennedy",null,"2027-12-31",null,null,"ryan.kennedy@hopewellboro-nj.us"]
[1106,"Hopewell Township","Mercer","201 Washington Crossing-Pennington Road",null,"Titusville","NJ","08560-1410","(609) 737-0605",null,"Courtney Peters-Manning",null,"2025-12-31",null,null,"cpmhopewelltwp@gmail.com"]
[1107,"Lawrence Township","Mercer","2207 Lawrence Road","Post Office Box 6006","Lawrenceville","NJ",8648,"(609) 844-7000","(609)883-8067","Patricia Hendricks Farmer",null,"2027-12-31",null,null,"pfarmer@lawrencetwp.com"]
[1108,"Pennington Borough","Mercer","30 North Main Street",null,"Pennington","NJ",8534,"(609) 737-0276",null,"James Davy",null,"2025-12-31",null,null,"jdavy@penningtonboro.org"]
[1111,"Trenton City","Mercer","319 East State Street",null,"Trenton","NJ",8608,"(609) 989-3030",null,"Reed Gusciora",null,"2026-06-30",null,null,"mayorsoffice@trentonnj.org"]
[1112,"Robbinsville Township","Mercer","2298 Route 33",null,"Robbinsville","NJ",8691,"(609) 259-3600","609-259-3645","David Fried",null,"2025-12-31",null,null,"mayor@robbinsville.net"]
[1113,"West Windsor Township","Mercer","271 Clarksville Road","Post Office Box 38","West Windsor","NJ","08550-5333","(609) 799-2400",null,"Hemant Marathe",null,"2025-12-31",null,null,"hmarathe@westwindsortwp.com"]
[1114,"Princeton","Mercer","400 Witherspoon Street",null,"Princeton","NJ","08540-3400","(609) 924-5176",null,"Mark Freda",null,"2028-12-31",null,null,"mfreda@princetonnj.gov"]
[1201,"Carteret Borough","Middlesex","61 Cooke Avenue",null,"Carteret","NJ","07008-3046","(732) 541-3835","(732) 541-1192","Daniel J. Reiman",null,"2026-12-31",null,null,"mayor@carteret.net"]
[1202,"Cranbury Township","Middlesex","23-A North Main Street",null,"Cranbury","NJ","08512-3257","(609) 395-0900",null,"Lisa Knierim",null,"2025-12-31",null,null,"lknierim@cranbury-nj.com"]
[1203,"Dunellen Borough","Middlesex","355 North Avenue",null,"Dunellen","NJ","08812-1203","(732) 968-3033","(732) 968-8605","Jason F. Cilento",null,"2027-12-31",null,null,"jcilento@dunellen-nj.gov"]
[1204,"East Brunswick Township","Middlesex","One Jean Walling Civic Center","Post Office Box 1081","East Brunswick","NJ","08816-1081","(732) 390-6810","(732) 390-6818","Brad J. Cohen",null,"2028-12-31",null,null,"mayor@eastbrunswick.org"]
[1205,"Edison Township","Middlesex","100 Municipal Boulevard",null,"Edison","NJ",8817,"(732) 248-7200",null,"Samip Joshi",null,"2025-12-31",null,null,"MayorJoshi@edisonnj.org "]
[1206,"Helmetta Borough","Middlesex","51 Main Street","Post Office Box 378","Helmetta","NJ",8828,"(732) 521-4946",null,"Christopher Slavicek","2024-01-01","2027-12-31",null,null,"mayor@helmettaboro.com"]
[1207,"Highland Park Borough","Middlesex","221 S. Fifth Avenue",null,"Highland Park","NJ","08904-2608","732-427-8806",null,"Elsie Fosrer",null,"2027-12-31",null,"4 year","efoster@hpboro.com"]
[1208,"Jamesburg Borough","Middlesex","131 Perrineville Road",null,"Jamesburg","NJ","08831-1672","(732) 521-2222",null,"Marlene Lowande",null,"2025-12-31",null,null,"mlowande@jamesburgborough.org"]
[1209,"Metuchen Borough","Middlesex","500 Main St.",null,"Metuchen","NJ",8840,"(732) 632-8540","(732) 632-8114","Jonathan M. Busch",null,"2027-12-31",null,null,"jbusch@metuchen.com"]
[1210,"Middlesex Borough","Middlesex","1200 Mountain Avenue",null,"Middlesex","NJ",8846,"(732) 356-7400","(732) 356-7954","Jack Mikolajczyk",null,"2027-12-31","Mayor/Council",43924,"mayor@middlesexboro-nj.gov"]
[1211,"Milltown Borough","Middlesex","39 Washington Avenue",null,"Milltown","NJ",8850,"(732) 828-2100",null,"George Murray","2024-01-01","2027-12-31","Mayor Council","4 and 3","gmurray@milltownboro.com"]
[1212,"Monroe Township","Middlesex","One Municipal Plaza",null,"Monroe","NJ","08831-1900","(732) 521-4400",null,"Stephen  Dalina",null,"2027-12-31",null,null,"sdalina@monroetwp.com"]
[1213,"New Brunswick City","Middlesex","City Hall","78 Bayard Street","New Brunswick","NJ","08901-2113","(732) 745-5004",null,"James M . Cahill",null,"2026-12-31",null,"4 year","jsmith@cityofnewbrunswick.org"]
[1214,"North Brunswick Township","Middlesex","710 Hermann Road","Post Office Box 6019","North Brunswick","NJ",8902,"(732) 247-0922","(732) 220-0761","Francis Womack,  III","2024-01-01","2027-12-31","Mayor/Council/Administrator","4 year","mayorwomack@northbrunswicknj.gov"]
[1215,"Old Bridge Township","Middlesex","One Old Bridge Plaza",null,"Old Bridge","NJ",8857,"(732) 721-5600","(732) 607-7957","Eleanor \"Debbie\" Walker","1/0/1900","2027-12-31",null,null,"mayor@oldbridge.com"]
[1216,"Perth Amboy City","Middlesex","City Hall","260 High Street","Perth Amboy","NJ",8861,"(732) 826-0290","(732) 826-4205","Helmin J. Caba",null,"2025-12-31",null,null,"hcaba@perthamboynj.org"]
[1217,"Piscataway Township","Middlesex","455 Hoes Lane",null,"Piscataway","NJ",8854,"(732) 562-2300",null,"Brian C. Wahler",null,"2025-12-31",null,null,"bwahler@piscatawaynj.org"]
[1218,"Plainsboro Township","Middlesex","641 Plainsboro Road",null,"Plainsboro","NJ",8536,"(609) 799-0909","(609) 799-7076","Edmund C. Yates",null,"2025-12-31",null,null,"eyates@plainsboronj.com"]
[1219,"Sayreville Borough","Middlesex","167 Main Street",null,"Sayreville","NJ",8872,"(732) 390-7007","(732) 390-0509","Kennedy O'Brien",null,"2027-12-31",null,null,"mayor@sayreville.com"]
[1220,"South Amboy City","Middlesex","140 North Broadway",null,"South Amboy","NJ","08879-1647","(732) 525-5923",null,"Fred A. Henry",null,"2026-12-31",null,null,"mayor@southamboynj.gov "]
[1221,"South Brunswick Township","Middlesex","540 Ridge Road","Post Office Box 190","Monmouth Junction","NJ","08852-0190","(732) 329-4000","(732) 821-2811","Charles Carley",null,"2026-12-31",null,null,"chascarley@msn.com"]
[1222,"South Plainfield Borough","Middlesex","2480 Plainfield Avenue",null,"South Plainfield","NJ","07080-3531","(908) 226-7604","(908) 754-9091","Matthew P. Anesh",null,"2026-12-31",null,"4 year","manesh@southplainfieldnj.com"]
[1223,"South River Borough","Middlesex","48 Washington Street",null,"South River","NJ","08882-1247","(732) 257-1999",null,"Peter Guindi","2024-01-01","2027-12-31",null,null,"pguindi@southrivernj.org "]
[1224,"Spotswood Borough","Middlesex","77 Summerhill Road",null,"Spotswood","NJ",8884,"(732) 251-0700","(732) 251-1359","Rich O'Brien",null,"2025-12-31",null,null,"robrien@spotswoodboro.com "]
[1225,"Woodbridge Township","Middlesex","One Main Street",null,"Woodbridge","NJ",7095,"(732) 634-4500","(732) 602-6016","John Mccormac",null,"2027-12-31",null,null,"john.mccormac@twp.woodbridge.nj.us"]
[1302,"Allenhurst Borough","Monmouth","125 Corlies Avenue",null,"Allenhurst","NJ","07711-1049","(732) 531-2757",null,"Frieda O. Adjmi",null,"2028-05-28","Non Partisan",null,"fadjmi@allenhurstnj.org"]
[1303,"Allentown Borough","Monmouth","8 North Main Street","Post Office Box 487","Allentown","NJ","08501-1607","(609) 259-3151",null,"Thomas C. Fritts",null,"2027-12-31","Mayor/Council",4,"TFritts@allentownboronj.com"]
[1304,"Asbury Park City","Monmouth","One Municipal Plaza",null,"Asbury Park","NJ",7712,"(732) 775-2100",null,"John B. Moor",null,"2026-12-31",null,null,"john.moor@cityofasburypark.com"]
[1305,"Atlantic Highlands Borough","Monmouth","100 First Avenue",null,"Atlantic Highlands","NJ","07716-2913","(732) 291-1444","(732) 291-9725","Lori Hohenleitner",null,"2027-12-31","Mayor/Council","4, 3","mayor@ahnj.com"]
[1306,"Avon-By-The-Sea Borough","Monmouth","301 Main Street",null,"Avon","NJ","07717-1013","(732) 502-4510","(732) 774-0605","Edward  R. Bonanno",null,"2027-12-31","Commission",4,"ebonanno@avonbytheseanj.com"]
[1307,"Belmar Borough","Monmouth","601 Main Street","Post Office Box A","Belmar","NJ",7719,"(732) 681-3700",null,"Gerald Buccafusco",null,"2026-12-31",null,null,"gbuccafusco@belmar.com"]
[1308,"Bradley Beach ","Monmouth","701 Main Street",null,"Bradley Beach","NJ",7720,"(732) 776-2999",null,"Al Gubitosi",null,"2028-12-31",null,null,"agubitosi@bradleybeachnj.gov"]
[1309,"Brielle Borough","Monmouth","601 Union Lane","Post Office Box 445","Brielle","NJ","08730-1448","(732) 528-6600",null,"Frank A. Garruzzo",null,"2027-12-31",null,null,"mayor@briellenj.gov"]
[1310,"Colts Neck Township","Monmouth","124 Cedar Drive",null,"Colts Neck","NJ","07722-1673","(732) 462-5470","(732) 431-3173","Tara Torchia Buss",null,"2025-12-31",null,null,"tbuss@colts-neck.nj.us"]
[1311,"Deal Borough","Monmouth","Post Office Box 56","190 NORWOOD AVENUE","Deal","NJ","07723-0056","(732) 531-1454",null,"Samuel Cohen","2024-04-16","2028-05-16","Non Partisan","4 years","Mayor@dealborough.com"]
[1312,"Eatontown Borough","Monmouth","47 Broad Street",null,"Eatontown","NJ","07724-1571","(732) 389-7623",null,"Anthony Talerico, Jr.",null,"2026-12-31",null,null,"atalerico@eatontownnj.com"]
[1313,"Englishtown Borough","Monmouth","15 Main Street",null,"Englishtown","NJ",7726,"(732) 446-9235","(732) 446-4979","Daniel Francisco","2024-01-01","2027-12-31",null,"4 year","clerk@englishtownnj.com"]
[1314,"Fair Haven Borough","Monmouth","748 River Road",null,"Fair Haven","NJ",7704,"(732) 747-0241","(732) 747-6962","Joshua Halpern",null,"2026-12-31",null,null,"jhalpern@fhboro.net"]
[1315,"Farmingdale Borough","Monmouth","11 Asbury Avenue",null,"Farmingdale","NJ","07727-1202","(732) 938-4077","(732) 938-2023","James A. Daly","2024-01-01","2027-12-31",null,null,"jimdaly@farmingdaleborough.org"]
[1316,"Freehold Borough","Monmouth","51 West Main Street",null,"Freehold","NJ","07728-2114","(732) 462-1410",null,"Kevin A. Kane",null,"2027-12-31",null,"4 year ","kkane@freeholdboro.org"]
[1317,"Freehold Township","Monmouth","One Municipal Plaza",null,"Freehold","NJ","07728-3064","(732) 294-2000",null,"Maureen Fasano","`","2025-12-31",null,null,"Mfasano@twp.freehold.nj.us "]
[1318,"Hazlet Township","Monmouth","1766 Union Avenue","P.O. Box 371","Hazlet","NJ","07730-0371","(732) 264-1700","(732) 264-1785","Michael Sachs","2024-01-01","2026-12-31",null,null,"msachs@hazletnj.org"]
[1319,"Highlands Borough","Monmouth","151 Navesink Avenue",null,"Highlands","NJ",7732,"(732) 872-1224",null,"Carolyn Broullon",null,"2025-12-31",null,null,"cbroullon@highlandsborough.org"]
[1320,"Holmdel Township","Monmouth","4 Crawfords Corner Road",null,"Holmdel","NJ",7733,"(732) 946-2820",null,"Brian Foster","2023-01-01","2025-12-31",null,null,"bfoster@holmdeltownship.com "]
[1321,"Howell Township","Monmouth","4567 Route 9 North","Post Office Box 580","Howell","NJ",7731,"(732) 938-4500","(732) 938-6945","John Leggio",null,"2028-12-31",null,null,"jleggio@twp.howell.nj.us"]
[1322,"Interlaken Borough","Monmouth","100 Grasmere Avenue",null,"Interlaken","NJ",7712,"(732) 531-7405",null,"Michael J. Nohilly",null,"2025-12-31",null,null,"mnohilly@interlakenboro.com"]
[1323,"Keansburg Borough","Monmouth","29 Church Street",null,"Keansburg","NJ","07734-1441","(732) 787-0215",null,"George Hoff",null,"2025-06-30","Mayor-Council",null,"huferunt23@verizon.net"]
[1324,"Keyport Borough","Monmouth","70 W Front Street",null,"Keyport","NJ","07735-1241","(732) 739-3900","(732) 739-8738","Rose P. Araneo",null,"2026-12-31",null,null," mayoraraneo@keyportonline.com"]
[1325,"Little Silver Borough","Monmouth","480 Prospect Avenue",null,"Little Silver","NJ",7739,"(732) 842-2400",null,"Robert C Neff, Jr.",null,"2027-12-31",null,null,"rneff@littlesilver.org"]
[1326,"Loch Arbour Village","Monmouth","550 Main Street",null,"Loch Arbour","NJ",7711,"(732) 531-4740",null,"Saul M. Tawil",null,"2028-12-31",null,null,"mayor@locharbour.us "]
[1327,"Long Branch City","Monmouth","344 Broadway",null,"Long Branch","NJ",7740,"(732) 222-7000",null,"John Pallone",null,"2026-06-30",null,null,"johnpallone@longbranch.org"]
[1328,"Manalapan Township","Monmouth","120 Route 522",null,"Manalapan","NJ","07726-3417","(732) 446-8307",null,"Eric Nelson",null,"2025-12-31",null,null,"mayor@mtnj.org"]
[1329,"Manasquan Borough","Monmouth","201 East Main Street",null,"Manasquan","NJ","08736-3004","(732) 223-0544",null,"Michael W. Mangan",null,"2027-12-31",null,null,"mmangan@manasquan-nj.gov"]
[1330,"Aberdeen Township","Monmouth","One Aberdeen Square",null,"Aberdeen","NJ","07747-2300","(732) 275-7612",null,"Fred Tagliarini",null,"2025-12-31","COUNCIL-MANAGER",4,"fred.tagliarini@aberdeennj.org"]
[1330,"Marlboro Township","Monmouth","1979 Township Drive",null,"Marlboro","NJ",7746,"(732) 536-0200",null,"Jonathan L Hornik",null,"2027-12-31",null,null,"mayor@marlboro-nj.gov"]
[1331,"Matawan Borough","Monmouth","201 Broad Street",null,"Matawan","NJ",7747,"(732) 566-3898",null,"Joseph Altomonte",null,"2027-12-31",null,null,"joseph.altomonte@matawanborough.com"]
[1332,"Middletown Township","Monmouth","One Kings Highway",null,"Middletown","NJ",7748,"(732) 615-2000","(732) 671-6211","Anthony S. Perry",null,"2025-12-31",null,null,"mayorsoffice@middletownnj.org"]
[1333,"Millstone Township","Monmouth","470 Stage Coach Road",null,"Millstone Township","NJ",8535,"(732) 446-4249",null,"Al Ferro",null,"2025-12-31",null,null,"a-ferro@millstonenj.gov"]
[1334,"Monmouth Beach Borough","Monmouth","22 Beach Road",null,"Monmouth Beach","NJ",7750,"(732) 229-2204",null,"David F. Stickle ",null,"2025-05-17",null,null,"dstickle@monmouthbeach.org"]
[1335,"Neptune Township","Monmouth","Post Office Box 1125","25 Neptune Boulevard","Neptune","NJ","07754-1125","(732) 988-5200","(732) 775-7600","Robert Lane, Jr.",null,"2025-12-31",null,null,"rlane@neptunetownship.org"]
[1336,"Neptune City","Monmouth","106 West Sylvania Avenue",null,"Neptune City","NJ","07753-6428","(732) 776-7224","(732) 776-8906","Rachel McGreevy",null,"2025-12-31",null,null,"rmcgreevy@neptunecitynj.com"]
[1337,"Ocean Township","Monmouth","399 Monmouth Road",null,"Oakhurst","NJ","07755-1550","(732) 531-5000",null,"John P. Napolitani, Sr.",null,"2027-06-30",null,null,"Jnapolitani@oceantwp.og"]
[1338,"Oceanport Borough","Monmouth","910 Oceanport Way","Post Office Box 370","Oceanport","NJ",7757,"(732) 222-8221",null,"Thomas J. Tvrdik",null,"2027-12-31",null,"4 year","mayor@oceanportboro.com "]
[1339,"Red Bank Borough","Monmouth","90 Monmouth Street",null,"Red Bank","NJ",7701,"(732) 530-2750",null,"William Portman",null,"2026-12-31",null,null,"wportman@redbanknj.org"]
[1340,"Roosevelt Borough","Monmouth","Post Office Box 128",null,"Roosevelt","NJ",8555,"(609) 448-0539",null,"Peggy Malkin",null,"2027-12-31",null,null," mayor@rooseveltnj.us"]
[1341,"Rumson Borough","Monmouth","Borough Hall","80 East River Road","Rumson","NJ",7760,"(732) 842-3300","732-219-0714","Joseph K. Hemphill",null,"2027-12-31",null,null,"Mayor@rumsonnj.gov"]
[1342,"Sea Bright Borough","Monmouth","1167 Ocean Avenue",null,"Sea Bright","NJ","07760-2286","(732) 842-0099","(732) 741-3116","Brian P. Kelly",null,"2027-12-31",null,null,"bkelly@seabrightnj.org"]
[1343,"Sea Girt Borough","Monmouth","321 Baltimore Blvd.",null,"Sea Girt","NJ","08750-2604","(732) 449-9433",null,"Donald E. Fetzer",null,"2025-12-31",null,null,"dfetzer@seagirtboro.com"]
[1344,"Shrewsbury Borough","Monmouth","419 Sycamore Avenue","Post Office Box 7420","Shrewsbury","NJ",7702,"(732) 741-4200",null,"KIM EULNER",null,"2026-12-31",null,null,"KEULNER@SHREWSBURYBORO.COM"]
[1345,"Shrewsbury Township","Monmouth","1979 Crawford Street",null,"Shrewsbury Township","NJ","07724-2964","(732) 542-0572",null,"Lester J. Jennings ",null,"2025-12-31",null,null,"ljennings@townshipofshrewsbury.com"]
[1346,"Lake Como Borough","Monmouth","1740 Main Street",null,"Lake Como","NJ",7719,"(732) 681-3232",null,"Kevin Higgins",null,"2026-12-31",null,null,"khiggins@boro.lake-como.nj.us"]
[1347,"Spring Lake Borough","Monmouth","423 Warren Avenue",null,"Spring Lake","NJ",7762,"(732) 449-0800",null,"Jennifer Naughton",null,"2027-12-31","Mayor & Council","4 & 2","jnaughton@springlakeboro.org"]
[1348,"Spring Lake Heights Borough","Monmouth","555 Brighton Avenue",null,"Spring Lake Heights","NJ","07762-2093","(732) 449-3500",null,"Christopher M. Campion, Jr.",null,"2025-12-31",null,null,"Mayor@springlakehts.com"]
[1349,"Tinton Falls Borough","Monmouth","556 Tinton Avenue",null,"Tinton Falls","NJ",7724,"(732) 542-3400",null,"Vito P. Perillo",null,"2025-12-31",null,null,"vperillo@tintonfalls.com"]
[1350,"Union Beach Borough","Monmouth","Municipal Building","650 Poole Avenue","Union Beach","NJ",7735,"(732) 264-2277",null,"Charles W. Cocuzza",null,"2027-12-31",null,null,"charlie@unionbeachnj.gov"]
[1351,"Upper Freehold Township","Monmouth","314 Route 539","PO Box 89                                   ","Cream Ridge","NJ",8514,"(609) 758-7738","(609) 758-1183","Dr. Robert A. Frascella",null,"2025-12-31",null,null,"\trfrascella@uftnj.com"]
[1352,"Wall Township","Monmouth","2700 Allaire Road",null,"Wall","NJ","07719-9570","(732) 449-8444",null,"Timothy J. Clayton",null,"2025-12-31",null,null,"tclayton@wallnj.gov"]
[1353,"West Long Branch Borough","Monmouth","965 Broadway",null,"West Long Branch","NJ","07764-1504","(732) 229-1756","(732) 571-9185","Janet W. Tucci",null,"2026-12-31",null,null," jtucci@westlongbranch.org"]
[1401,"Boonton Town","Morris","100 Washington Street",null,"Boonton","NJ",7005,"(973) 402-9410","ext 624","James Lynch",null,"2027-12-31",null,"4 year","jlynch@boonton.org"]
[1402,"Boonton Township","Morris","155 Powerville Road",null,"Boonton Township","NJ",7005,"(973) 402-4012",null,"Brian Honan",null,"2025-12-31",null,null,"mayor@boontontownship.com"]
[1403,"Butler Borough","Morris","One Ace Road",null,"Butler","NJ","07405-1348","(973) 838-7200","(973) 838-3762","Ryan Martinez",null,"2026-12-31",null,null,"RMartinez@butlerborough.com"]
[1404,"Chatham Borough","Morris","54 Fairmount Avenue",null,"Chatham","NJ",7928,"(973) 635-0674",null,"Carolyn Dempsey ",null,"2027-12-31",null,null,"cdempsey@chathamborough.org"]
[1405,"Chatham Township","Morris","58 Meyersville Road",null,"Chatham","NJ",7928,"(973) 635-4600",null,"Stacey Ewald",null,"2025-12-31",null,null,"sewald@chathamtownship.org"]
[1406,"Chester Borough","Morris","50 North Road",null,"Chester","NJ",7930,"(908) 879-3600","(908) 879-0122","Janet G. Hoven",null,"2026-12-31",null,"4 year","JHoven@ChesterBorough.org"]
[1407,"Chester Township","Morris","One Parker Road",null,"Chester","NJ",7930,"(908) 879-5100","(908) 879-8281","Timothy Drag",null,"2025-12-31",null,null,"tdrag@chestertownship.org"]
[1408,"Denville Township","Morris","One Saint Mary's Place",null,"Denville","NJ","07834-2122","(973) 625-8300",null,"Thomas W. Andes",null,"2027-12-31",null,null,"mayor@denvillenj.org"]
[1409,"Dover Town","Morris","37 North Sussex Street",null,"Dover","NJ","07801-0798","(973) 366-2200","(973) 328-6604","James P. Dodd",null,"2027-12-31",null,null,"jdodd@dover.nj.us"]
[1410,"East Hanover Township","Morris","411 Ridgedale Avenue",null,"East Hanover","NJ",7936,"(973) 428-3000",null,"Joseph Pannullo",null,"2027-12-31",null,null,"township.clerk@easthanovertownship.com"]
[1411,"Florham Park Borough","Morris","111 Ridgedale Avenue",null,"Florham Park","NJ","07932-1799","(973) 410-5300",null,"Mark Taylor",null,"2027-12-31",null,null,"mtaylor@fpboro.net"]
[1412,"Hanover Township","Morris","1000 Route 10","Post Office Box 250","Whippany","NJ","07981-0250","(973) 428-2467","(973) 515-6681","Thomas \"Ace\" Gallagher",null,"2025-12-31","Township","3 year","Tgallagher@hanovertownship.com"]
[1413,"Harding Township","Morris","21 Blue Mill Road","Post Office Box 666","New Vernon","NJ","07976-0666","(973) 267-8000",null,"Timothy Jones",null,"2027-12-31",null,null,"tjones@hardingnj.org"]
[1414,"Jefferson Township","Morris","1033 Weldon Road",null,"Lake Hopatcong","NJ",7849,"(973) 208-6100",null,"Eric F. Wilsusen",null,"2026-12-31",null,"4 year","Addressmayor@jeffersontownship.net"]
[1415,"Kinnelon Borough","Morris","130 Kinnelon Road",null,"Kinnelon","NJ","07405-2336","(973) 838-5401",null,"James J. Freda",null,"2026-12-31",null,null,"jfreda@kinnelonboro.org; rcollins@kinnelonboro.org"]
[1416,"Lincoln Park Borough","Morris","34 Chapel Hill Road",null,"Lincoln Park","NJ",7035,"(973) 694-6100",null,"David A Runfeldt",null,"2026-12-31",null,null,"MayorRunfeldt@bolp.org"]
[1417,"Madison Borough","Morris","Hartley Dodge Memorial","50 Kings Road","Madison","NJ","07940-2575","(973) 593-3042",null,"Robert H Conley",null,"2027-12-31",null,null,"mayor@rosenet.org"]
[1418,"Mendham Borough","Morris","2 West Main Street",null,"Mendham","NJ",7945,"(973) 543-7152",null,"Christine Serrano-Glassner",null,"2026-12-31",null,"4 year","cglassner@mendhamnj.org"]
[1419,"Mendham Township","Morris","Post Office Box 520",null,"Brookside","NJ",7926,"(973) 543-4555",null,"Sarah Neibart",null,"2025-12-31",null,null,"sneibart@mendhamtownship.org"]
[1420,"Mine Hill Township","Morris","10 Baker Street",null,"Mine Hill","NJ",7803,"(973) 366-9031","(973) 366-1626","Sam Morris",null,"2027-12-31",null,"4 year","MayorSamMorris@MineHill.com"]
[1421,"Montville Township","Morris","195 Changebridge Road",null,"Montville","NJ","07045-8934","(973) 331-3304","(973) 402-0787","Matthew S. Kayne",null,"2025-12-31",null,"1 year","mkayne@montvillenj.org"]
[1422,"Morris Township","Morris","50 Woodland Avenue","Post Office Box 7603","Convent Station","NJ","07961-6075","(973) 326-7430",null,"Donna J. Guariglia",null,"2027-12-31",null,null,"dguariglia@morristwp.com"]
[1423,"Morris Plains Borough","Morris","531 Speedwell Avenue",null,"Morris Plains","NJ",7950,"(973) 538-2224",null,"Jason C. Karr",null,"2026-12-31",null,"4 year","jkarr@morrisplainsboro.org"]
[1424,"Morristown Town","Morris","200 South Street","Post Office Box 914","Morristown","NJ","07963-0914","(973) 292-6629","(973) 267-2726","Timothy P. Dougherty",null,"2025-12-31",null,null,"Mayor@townofmorristown.org"]
[1425,"Mountain Lakes Borough","Morris","400 Boulevard",null,"Mountain Lakes","NJ","07046-1527","(973) 334-3131",null,"Lauren Barnett",null,"2025-12-31",null,null,"lbarnett@mtnlakes.org"]
[1426,"Mount Arlington Borough","Morris","419 Howard Boulevard",null,"Mount Arlington","NJ","07856-1004","(973) 398-6832",null,"Michael Stanzilis",null,"2026-12-31",null,"4 year","mbansch@mtarlingtonboro.com"]
[1427,"Mount Olive Township","Morris","Post Office Box 450","204 Flanders-Drakestown Road","Budd Lake","NJ","07828-0450","(973) 691-0900","(973) 691-2080","Joe Nicastro",null,"2027-12-31","Mayor Council (Faulkner)","4 year","jnicastro@mtolivetwp.org"]
[1428,"Netcong Borough","Morris","23 Maple Avenue",null,"Netcong","NJ",7857,"(973) 347-0252",null,"Elmer Still",null,"2027-12-31",null,null,"\testill@netcong.org"]
[1429,"Parsippany-Troy Hills Township","Morris","1001 Parsippany Boulevard",null,"Parsippany","NJ","07054-1277","(973) 263-4297",null,"James R. Barberio",null,"2025-12-31",null,null,"jrbarberio@parsippany.net"]
[1430,"Long Hill Township","Morris","915 Valley Road",null,"Gillette","NJ",7933,"(908) 647-8000",null,"Matthew Dorsi ",null,"2025-12-31",null,null,"Guyd@longhillnj.gov"]
[1431,"Pequannock Township","Morris","530 Newark Pompton Turnpike",null,"Pompton Plains","NJ","07444-1744","(973) 835-5700",null,"John Driesse",null,"2025-12-31",null,null,"jdriesse@peqtwp.org"]
[1432,"Randolph Township","Morris","502 Millbrook Avenue",null,"Randolph","NJ",7869,"(973) 989-7100",null,"Joseph Hathaway",null,"2025-12-31",null,null,"jhathaway@randolphnj.org"]
[1433,"Riverdale Borough","Morris","91 Newark Pompton Turnpike","Post Office Box 6","Riverdale","NJ",7457,"(973) 835-4060",null,"Paul M. Carelli",null,"2027-12-31",null,null,"pcarelli@riverdalenj.gov"]
[1434,"Rockaway Borough","Morris","One East Main Street",null,"Rockaway","NJ",7866,"(973) 627-2000",null,"Thomas Mulligan",null,"2027-12-31",null,null,"mayormulligan@rockawayborough.org"]
[1435,"Rockaway Township","Morris","65 Mount Hope Road",null,"Rockaway","NJ",7866,"(973) 983-2800",null,"Thomas Mulligan",null,"2027-12-31",null,null,"tmulligan@rockawaytownship.org"]
[1436,"Roxbury Township","Morris","1715 Route 46",null,"Ledgewood","NJ","07852-9726","(973) 448-2002",null,"Shawn Potillo",null,"2025-12-31",null,null,"potillos@roxburynj.us"]
[1437,"Victory Gardens Borough","Morris","337 South Salem Street",null,"Dover","NJ",7801,"(973) 366-5312",null,"David Holeman, Jr.",null,"2025-12-31",null,null,"gardensvg@optonline.net"]
[1438,"Washington Township","Morris","43 Schooley's Mountain Road",null,"Long Valley","NJ","07853-3199","(908) 876-3315",null,"Matthew T. Murello",null,"2025-12-31",null,null,"mmurello@wtmorris.net"]
[1439,"Wharton Borough","Morris","10 Robert Street",null,"Wharton","NJ",7885,"(973) 361-8444",null,"William J. Chegwidden",null,"2026-12-31",null,"4 year","wchegwidden@whartonnj.com"]
[1501,"Barnegat Township","Ocean","900 West Bay Avenue",null,"Barnegat","NJ","08005-1298","(609) 698-0080",null,"Alfonso Cirulli",null,"2025-12-31",null,null,"acirulli@barnegat.net"]
[1502,"Barnegat Light Borough","Ocean","Post Office Box 576",null,"Barnegat Light","NJ",8006,"(609) 494-9196","(609) 494-4827","Kirk O. Larson",null,"2026-12-31",null,null,"mayor@barnegatlight.org; borohall@comcast.net "]
[1503,"Bay Head Borough","Ocean","83 Bridge Avenue","PO Box 248","Bay Head","NJ",8742,"(732) 892-0636","(732) 899-6494","William W. Curtis",null,"2027-12-31",null,null,"bcurtis@bayheadnj.us"]
[1504,"Beach Haven Borough","Ocean","300 Engleside Avenue",null,"Beach Haven","NJ",8008,"(609) 492-0111",null,"Colleen Lambert",null,"2026-12-31",null,null,"clambert@beachhaven-nj.gov"]
[1505,"Beachwood Borough","Ocean","1600 Pinewald Road",null,"Beachwood","NJ",8722,"(732) 286-6000",null,"William J. Cairns",null,"2027-12-31",null,null,"mayorcairns@beachwoodusa.com "]
[1506,"Berkeley Township","Ocean","627 Pinewald Keswick Road","P O Box B","Bayville","NJ","08721-2778","(732) 244-7400","(732) 341-8968","John A. Bacchione","2024-01-01","2028-12-31",null,null,"mayor@twp.berkeley.nj.us"]
[1507,"Brick Township","Ocean","401 Chambers Bridge Road",null,"Brick","NJ","08723-2807","(732) 262-1000",null,"Lisa Crate ",null,"2025-12-31",null,null,"mayor@twp.brick.nj.us"]
[1508,"Toms River Township","Ocean","33 Washington Street","Post Office Box 728","Toms River","NJ",8754,"(732) 341-1000",null,"Daniel T. Rodrick",null,"2025-12-31",null,null,"trodrick@tomsrivertownship.com"]
[1509,"Eagleswood Township","Ocean","Post Office Box 409",null,"West Creek","NJ",8092,"(609) 296-3040",null,"Michael J. Pasternak ",null,"2025-12-31",null,null,"mpasternak_eagleswood@comcast.net"]
[1510,"Harvey Cedars Borough","Ocean","Post Office Box 3185",null,"Harvey Cedars","NJ","08008-0319","(609) 361-6000","(609) 494-2335","Jonathan M. Imperiale",null,"2027-12-31",null,null,"jimperiale@harveycedars.org"]
[1511,"Island Heights Borough","Ocean","Post Office Box 797",null,"Island Heights","NJ",8732,"(732) 270-6415",null,"E. Steven Doyle",null,"2026-12-31",null,null,"mayorcouncil@islandheights.com; mayordoyle@islandheightsborough.gov"]
[1512,"Jackson Township","Ocean","95 West Veterans Highway",null,"Jackson","NJ",8527,"(732) 928-1200",null,"Michael Reina",null,"2026-12-31",null,null,"mikereina@jacksontwpnj.net"]
[1513,"Lacey Township","Ocean","818 Lacey Road",null,"Forked River","NJ",8731,"(609) 693-1100",null,"Peter Curatolo",null,"2025-12-31",null,null,"pcuratolo@laceytownship.org "]
[1514,"Lakehurst Borough","Ocean","5 Union Avenue",null,"Lakehurst","NJ","08733-3017","(732) 657-4141","(732) 657-8272","Harry Robbins",null,"2025-12-31",null,null,"hrobbins@lakehurst-nj.gov"]
[1515,"Lakewood Township","Ocean","Municipal Building","231 Third Street","Lakewood","NJ","08701-0000","(732) 364-2500",null,"Raymond G. Coles",null,"2026-12-31",null,null,"rcoles@lakewoodnj.gov "]
[1516,"Lavallette Borough","Ocean","1306 Grand Central Avenue",null,"Lavallette","NJ","08735-2336","(732) 793-7477",null,"Walter LaCicero",null,"2026-12-31",null,null,"damico@lavallette.org"]
[1517,"Little Egg Harbor Township","Ocean","665 Radio Road",null,"Little Egg Harbor","NJ","08087-1885","(609) 296-7241",null,"Dan Maxwell",null,"2025-12-31",null,null,"dmaxwell@leht.com"]
[1518,"Long Beach Township","Ocean","6805 Long Beach Boulevard",null,"Brant Beach","NJ",8008,"(609) 361-1000",null,"Joseph H. Mancini",null,"2025-12-31",null,null,"mancini@longbeachtownship.com; mayor@longbeachtownship.com"]
[1519,"Manchester Township","Ocean","One Colonial Drive",null,"Manchester","NJ",8759,"(732) 657-8121","(732) 657-8085","Joseph Hankins",null,"2026-12-31",null,null,"jhankins@manchestertwp.com"]
[1520,"Mantoloking Borough","Ocean","202 Downer Avenue","P.O. Box 247","Mantoloking","NJ","08738-0247","(732) 475-6983)","(732-475-7671)","E. Laurence (Lance) White",null,"2026-12-31",null,null,"lwhite@mantoloking.org"]
[1521,"Ocean Township","Ocean","50 Railroad Avenue",null,"Waretown","NJ",8758,"(609) 693-3302",null,"Ben LoParo",null,"2025-12-31",null,null,"mayor@twpoceannj.gov"]
[1522,"Ocean Gate Borough","Ocean","801 Ocean Gate Avenue","CN 100","Ocean Gate","NJ",8740,"(732) 269-3166",null,"Robert Curtin ",null,"2026-12-31",null,null,"rcurtin101@comcast.net"]
[1523,"Pine Beach Borough","Ocean","499 Pennsylvania Avenue","Post Office Box 425","Pine Beach","NJ",8741,"(732) 349-6425",null,"Lawrence W. Cuneo",null,"2027-12-31",null,null,"mayor@pinebeachnj.gov"]
[1524,"Plumsted Township","Ocean","121 Evergreen Road",null,"New Egypt","NJ","08533-1207","(609) 758-2241","(609) 758-0123","Robert Bowen",null,"2025-12-31",null,null,"rbowen@plumsted.org"]
[1525,"Point Pleasant Borough","Ocean","2233 Bridge Avenue","Post Office Box 25","Point Pleasant","NJ","08742-4998","(732) 892-3434",null,"Robert A Sabosik",null,"2026-12-31",null,"4 year","Mayorsabosik@ptboro.com"]
[1526,"Point Pleasant Beach Borough","Ocean","416 New Jersey Avenue",null,"Point Pleasant Beach","NJ",8742,"(732) 892-1118","(732) 892-1270","Douglas R. Vitale",null,"2027-12-31",null,"4 year","dvitale@pointbeach.org"]
[1527,"Seaside Heights Borough","Ocean","901 Boulevard","Post Office Box 38","Seaside Heights","NJ","08751-2127","(732) 793-9100","(732) 793-0319","Anthony Yaz",null,"2027-12-31",null,null,"mayor@seaside-heightsnj.org"]
[1528,"Seaside Park Borough","Ocean","Post Office Box B",null,"Seaside Park","NJ",8752,"(732) 793-3700",null,"John A. Peterson Jr. ",null,"2027-12-31",null,null,"Mayorpeterson@seasideparknj.org"]
[1529,"Ship Bottom Borough","Ocean","1621 Long Beach Boulevard",null,"Ship Bottom","NJ",8008,"(609) 494-2171",null,"William Huelsenbeck",null,"2026-12-31",null,null,"whuelsenbeck@shipbottom.org"]
[1530,"South Toms River Borough","Ocean","144 Mill Street",null,"South Toms River","NJ",8757,"(732) 349-0403",null,"Oscar Cradle ",null,"2026-12-31",null,"4 year","oscar.cradle@boroughofsouthtomsriver.com"]
[1531,"Stafford Township","Ocean","260 East Bay Avenue",null,"Manahawkin","NJ","08050-3329","(609) 597-1000",null,"Robert Henken ",null,"2027-12-31",null,null,"RHenken@staffordnj.gov"]
[1532,"Surf City","Ocean","813 Long Beach Boulevard",null,"Surf City","NJ",8008,"(609) 494-3064",null,"Francis R. Hodgson","2028-12-31",null,"Borough",null,"boroughclerk@surfcitynj.org"]
[1533,"Tuckerton Borough","Ocean","140 East Main Street",null,"Tuckerton","NJ","08087-2618","(609) 296-2701",null,"Susan R. Marshall",null,"2026-12-31",null,null,"mayor@tuckertonborough.com"]
[1601,"Bloomingdale Borough","Passaic","101 Hamburg Turnpike",null,"Bloomingdale","NJ","07403-1236","(973) 838-0778","(973) 838-5115","John D'Amato",null,"2026-12-31",null,null,"jdamato@bloomingdalenj.net"]
[1602,"Clifton City","Passaic","900 Clifton Avenue",null,"Clifton","NJ",7013,"(973) 470-5757",null,"Raymond Grabowski",null,"2026-12-30",null,null,"rgrabowski@cliftonnj.org"]
[1603,"Haledon Borough","Passaic","510 Belmont Avenue",null,"(973) 942-8549","NJ",7508,null,null,"Michael Johnson Sr",null,"2025-12-31",null,null,"mjohnson@haledonboronj.com"]
[1604,"Hawthorne Borough","Passaic","445 Lafayette Avenue",null,"Hawthorne","NJ",7506,"(973) 427-5555",null,"John V. Lane",null,"2025-12-31",null,null,"jlane@hawthornenj.org"]
[1605,"Little Falls Township","Passaic","225 Main Street",null,"Little Falls","NJ",7424,"(973) 890-4500","(973) 890-4501","James Belford Damiano",null,"2025-12-31",null,null,"jdamiano@lfnj.com"]
[1606,"North Haledon Borough","Passaic","103 Overlook Avenue",null,"North Haledon","NJ",7508,"(973) 427-7793",null,"Randolph George",null,"2026-12-31",null,null,"mayor@northhaledon.com"]
[1607,"Passaic City","Passaic","330 Passaic Street",null,"Passaic","NJ","07055-5815","(973) 365-5510",null,"Hector C. Lora",null,"2025-06-30",null,null,"mayor@cityofpassaicnj.gov"]
[1608,"Paterson City","Passaic","125 Ellison Street, 1st Floor",null,"Paterson","NJ","07505-1414","(973) 321-1235","(973) 321-1224","Andre Sayegh",null,"2026-06-30",null,null,"mayorsayegh@patersonnj.gov;  asayegh@patersonnj.gov"]
[1609,"Pompton Lakes Borough","Passaic","25 Lenox Avenue",null,"Pompton Lakes","NJ","07442-1729","(973) 835-0143","(973) 839-8132","Michael Serra",null,"2027-12-31",null,null,"mserra@pomptonlakes-nj.gov"]
[1610,"Prospect Park Borough","Passaic","106 Brown Avenue",null,"Prospect Park","NJ","07508-2041","(973) 790-7902",null,"Mohamed T. Khairullah",null,"2026-12-31",null,null,"mayorkhairullah@prospectpark.net"]
[1611,"Ringwood Borough","Passaic","60 Margaret King Avenue",null,"Ringwood","NJ","07456-1703","(973) 475-7100","(973) 962-1594","Sean T. Noonan",null,"2025-12-31",null,null,"snoonan@ringwoodnj.net"]
[1612,"Totowa Borough","Passaic","537 Totowa Road","at Cherba Place","Totowa","NJ",7512,"(973) 956-1009",null,"John Coiro",null,"2026-12-31",null,null,"mayorcoiro@totowanj.org"]
[1613,"Wanaque Borough","Passaic","579 Ringwood Avenue",null,"Wanaque","NJ",7465,"(973) 839-3000","(973) 839-4959","Daniel Mahler",null,"2026-12-31",null,null,"mayor@wanaqueborough.com"]
[1614,"Wayne Township","Passaic","475 Valley Road",null,"Wayne","NJ",7470,"(973) 694-1800","(973) 872-0586","Christopher P. Vergano",null,"2025-12-31",null,null,"mayor@waynetownship.com"]
[1615,"West Milford Township","Passaic","1480 Union Valley Road",null,"West Milford","NJ","07480-1338","(973) 728-7000","(973) 728-2884","Michele Dale",null,"2027-12-31",null,null,"Dale@WestMilford.org"]
[1616,"Woodland Park Borough","Passaic","5 Brophy Lane",null,"Woodland Park","NJ","07424-2945","(973) 345-8100",null,"Tracy Kallert",null,"2026-12-31",null,"3 year","tkallert@wpnj.us"]
[1701,"Alloway Township","Salem","49 South Greenwich Street","Post Office Box 425","Alloway","NJ","08001-0425","(856) 935-4080",null,"P. Ed McCkelvey",null,"2025-12-31",null,null,"pemckelvey@gmail.com"]
[1702,"Carneys Point Township","Salem","303 Harding Highway",null,"Carneys Point","NJ",8069,"(856) 299-0070",null,"Kenneth Brown",null,"2026-12-31",null,null,"k.brown@carneyspointtwp.org"]
[1703,"Elmer Borough","Salem","120 South Main Street","Post Office Box 882","Elmer","NJ","08318-0882","(856) 358-4010 x112","856-358-8019","Joseph P. Stemberger",null,"2027-12-31","Borough","4 year","mayor@elmerboroughnj.com"]
[1704,"Elsinboro Township","Salem","619 Salem-Fort Elfsborg Road",null,"Salem","NJ",8079,"(856) 935-2200",null,"Sean M. Elwell",null,"2025-12-31",null,null,"Sean@seanelwell.com "]
[1705,"Lower Alloways Creek Township","Salem","Post Office Box 157","PO Box 157","Hancock's Bridge","NJ",8038,"(856) 935-1549","(856) 935-7666","Paul M. Collier",null,"2025-12-31",null,null,"mayor@lowerallowayscreek-nj.gov"]
[1706,"Mannington Township","Salem","491 Route 45",null,"Mannington","NJ",8079,"(856) 935-2359","(856) 935-6557","Donald C. Asay",null,"2025-12-31",null,null,"dasay@manningtontwp.com"]
[1707,"Oldmans Township","Salem","Post Office Box 416",null,"Pedricktown","NJ",8067,"(856) 299-0780",null,"William Ferrell III",null,"2025-12-31",null,null,"Committee1@oldmanstownship.com"]
[1708,"Penns Grove Borough","Salem","Post Office Box 527",null,"Penns Grove","NJ",8069,"(856) 299-0098","(856) 299-0975","Ladaena D. Londo",null,"2027-12-31",null,null,"mayorlondo@pennsgrove-nj.org"]
[1709,"Pennsville Township","Salem","90 North Broadway",null,"Pennsville","NJ","08070-1750","(856) 678-3089",null,"Robert E. McDade",null,"2025-12-31",null,null,"rbrt_mcdade@yahoo.com"]
[1710,"Pilesgrove Township","Salem","1180 Route 40",null,"Pilesgrove","NJ",8098,"(856) 769-3222","(856) 769-5490","Kevin Eachus",null,"2027-12-31",null,null,"Keachus@pilesgrovenj.gov"]
[1711,"Pittsgrove Township","Salem","989 Centerton Road",null,"Pittsgrove","NJ","08318-3031","(856) 358-2300","(856) 358-3055","Fiore J. Copare ",null,"2026-12-31",null,null,"fcopare@pittsgrovetownship.com"]
[1712,"Quinton Township","Salem","885 Quinton Road","Post Office Box 65","Quinton","NJ","08072-0065","(856) 935-2325",null,"Marjorie Sperry",null,"2028-12-31",null,null,"msperry@quintonnj.com"]
[1713,"Salem City","Salem","17 New Market Street",null,"Salem","NJ","08079-1408","(856) 935-0373","(856) 935-4095","Jody Veler ",null,"2025-12-31",null,null,"mayorveler@cityofsalemnj.gov"]
[1714,"Upper Pittsgrove Township","Salem","431 Route 77",null,"Elmer","NJ","08318-2756","(856) 358-8500",null,"Edward J. Meschi",null,"2025-12-31",null,null,"ejmeschi@verizon.net"]
[1715,"Woodstown Borough","Salem","Post Office Box 286",null,"Woodstown","NJ",8098,"(856) 769-2200",null,"Joseph Hiles",null,"2027-12-31",null,null,"jhiles@historicwoodstown.org"]
[1801,"Bedminster Township","Somerset","One Miller Lane",null,"Bedminster","NJ","07921-2587","(908) 212-7000",null,"Lawrence F. Jacobs",null,"2027-12-31","Township",null,"mayor@bedminster.us"]
[1802,"Bernards Township","Somerset","One Collyer Lane",null,"Basking Ridge","NJ","07920-1442","(908) 204-3001",null,"Janice M. Fields",null,"2025-12-31",null,null,"jfields@bernards.org "]
[1803,"Bernardsville Borough","Somerset","166 Mine Brook Road",null,"Bernardsville","NJ",7924,"(908) 766-3000","(908) 766-2401","Mary Jane Canose",null,"2026-12-31",null,null,"mayor@bernardsvilleboro.org"]
[1804,"Bound Brook Borough","Somerset","230 Hamilton Street",null,"Bound Brook","NJ","08805-2017","(732) 356-0833",null,"Domenic Longo",null,"2025-12-31",null,null,"dlongo@boundbrook-nj.org"]
[1805,"Branchburg Township","Somerset","1077 Route 202 N",null,"Branchburg","NJ","08876-3924","(908) 526-1300",null,"Thomas Young",null,"2025-12-31","Township Committee","1 year","thomas.young@branchburg.nj.us"]
[1806,"Bridgewater Township","Somerset","100 Commons Way",null,"Bridgewater","NJ","08807-2801","(908) 725-6300","(908) 707-1235","Matthew C. Moench",null,"2027-12-31",null,"4years","mayor@bridgewaternj.gov"]
[1807,"Far Hills Borough","Somerset","6 Prospect Street",null,"Far Hills","NJ",7931,"(908) 234-0611",null,"Kevin P. Welsh",null,"2026-12-31",null,null,"KWELSH@FARHILLSNJ.ORG"]
[1808,"Franklin Township","Somerset","475 DeMott Lane",null,"Somerset","NJ","08873-7700","(732) 873-2500",null,"Phillip Kramer","2024-01-01","2027-12-31",null,null," mayor.kramer@franklinnj.gov"]
[1809,"Green Brook Township","Somerset","111 Greenbrook Road",null,"Green Brook","NJ","08812-2501","(732) 968-1023","(732) 968-4088","Jim Van Arsdale",null,"2025-12-31","Township","1 yr mayor/3 year Committee","jvanarsdale@greenbrooktwp.org"]
[1810,"Hillsborough Township","Somerset","379 South Branch Road",null,"Hillsborough","NJ",8844,"(908) 369-3535","(908) 369-3981","John Ciccarelli",null,"2025-12-31",null,null,"jciccarelli@hillsborough-nj.org"]
[1811,"Manville Borough","Somerset","325 North Main Street",null,"Manville","NJ","08835-1346","(908) 725-9478","(908) 231-8620","Richard Onderko",null,"2025-12-31",null,"4 year","mayoronderko@manvillenj.org"]
[1812,"Millstone Borough","Somerset","1353 Main Street",null,"Millstone","NJ",8844,"(908) 359-5783",null,"Raymond Heck",null,"2025-12-31","since 2005",null,"mayor@millstoneboro.org"]
[1813,"Montgomery Township","Somerset","100 Community Drive",null,"Belle Mead","NJ","08502-4012","(908) 359-8211",null,"Neena Singh",null,"2025-12-31",null,null,"nsingh@montgomerynj.gov "]
[1814,"North Plainfield Borough","Somerset","263 Somerset Street",null,"North Plainfield","NJ","07060-4895","(908) 769-2902",null,"Lawrence La Ronde","4 year term","2028-12-31",null,null,"llronde@npmail.org"]
[1815,"Peapack & Gladstone Borough","Somerset","One School Street",null,"Peapack","NJ",7977,"(908) 234-2252",null,"Mark A. Corigliano",null,"2026-12-31",null,"4 year","mcorigliano@peapackgladstone.org"]
[1816,"Raritan Borough","Somerset","22 First Street",null,"Raritan","NJ","08869-1809","(908) 231-1300","(908) 231-0810","Nicolas J. Carra ",null,"2027-12-31",null,null,"ncarra@raritan-nj.org"]
[1817,"Rocky Hill Borough","Somerset","Post Office Box 188",null,"Rocky Hill","NJ",8553,"(609) 924-4062",null,"Robert Uhrik",null,"2026-12-31",null,null,"ruhrik@rockyhill-nj.gov"]
[1818,"Somerville Borough","Somerset","25 West End Avenue",null,"Somerville","NJ",8876,"(908) 704-6983",null,"Brian G. Gallagher",null,"2025-12-31",null,null,"mayor@somervillenj.org"]
[1819,"South Bound Brook Borough","Somerset","12 Main Street",null,"South Bound Brook","NJ","08880-1407","(732) 356-0258",null,"Caryl A. Shoffner",null,"2025-12-31",null,null,"CShoffner@southboundbrook.com"]
[1820,"Warren Township","Somerset","46 Mountain Boulevard",null,"Warren","NJ",7059,"(908) 753-8000",null,"Lisa Lontai",null,"2025-12-31",null,null,"llontai@warrennj.org"]
[1821,"Watchung Borough","Somerset","15 Mountain Boulevard",null,"Watchung","NJ",7069,"(908) 756-0080",null,"Ronald Jubin, Ph.D.",null,"2026-12-31",null,null,"rjubin@watchungnj.gov"]
[1901,"Andover Borough","Sussex","137 Main Street",null,"Andover","NJ",7821,"(973) 786-6688","973-786-7231","John M. Morgan",null,"2027-12-31",null,null,"j.morgan@andoverboroughnj.org"]
[1902,"Andover Township","Sussex","134 Newton-Sparta Road",null,"Newton","NJ","07860-2746","(973) 383-4280",null,"John A. Morgan ",null,"2027-12-31",null,null,"jmorgan@andovertwp.org"]
[1903,"Branchville Borough","Sussex","Post Office Box 840",null,"Branchville","NJ","07826-0840","(973) 948-4626",null,"Anthony Frato, Sr.",null,"2025-12-31",null,null,"branchvilleclerk@yahoo.com"]
[1904,"Byram Township","Sussex","10 Mansfield Drive",null,"Stanhope","NJ",7874,"(973) 347-2500",null,"Alexander Rubenstein",null,"2025-12-31",null,null,"arubenstein@byramtwp.org"]
[1905,"Frankford Township","Sussex","151 U.S. Highway 206",null,"Augusta","NJ",7822,"(973) 948-5566",null,"David Silverthorne",null,"2026-12-31",null,"1 year","mayor@frankfordtwp-nj.com"]
[1906,"Franklin Borough","Sussex","46 Main Street",null,"Franklin","NJ",7416,"(973) 827-9280",null,"John M. Sowden, IV",null,"2027-12-31",null,null,"mayor@franklinborough.org "]
[1907,"Fredon Township","Sussex","443 Route 94",null,"Newton","NJ","07860-5158","(973) 383-7025",null,"Glenn M Deitz","2024-01-01","2026-12-31",null,null,"ddeitz@fredonnj.gov"]
[1908,"Green Township","Sussex","150 Kennedy Road","Post Office Box 65","Tranquility","NJ",7879,"(908) 852-9333",null,"Virginia \"Ginnie\" Raffay",null,"2025-12-31",null,null,"clerk_admin@greentwp.com"]
[1909,"Hamburg Borough","Sussex","16 Wallkill Avenue",null,"Hamburg","NJ","07419-1414","(973) 827-9230","(973) 827-0466","Richard Krasnomowitz","2023-01-01","2026-12-31",null,null,"rkrasnomowitz@hamburgnj.org"]
[1910,"Hampton Township","Sussex","One Rumsey Way",null,"Newton","NJ",7860,"(973) 383-5570",null,"Timothy Dooley",null,"2025-12-31",null,null,"timothydooley495@gmail.com"]
[1911,"Hardyston Township","Sussex","149 Wheatsworth Road","Suite A","Hardyston","NJ","07419-2607","(973) 823-7020","(973) 823-7021","Brian J. Kaminski",null,"2025-12-31",null,null,"bkaminski@hardyston.com"]
[1912,"Hopatcong Borough","Sussex","111 River Styx Road",null,"Hopatcong","NJ",7843,"(973) 770-1200",null,"Marie Galate",null,"2027-12-31",null,null,"mgalate@hopatcong.org"]
[1913,"Lafayette Township","Sussex","33 Morris Farm Road",null,"Lafayette","NJ","07848-4605","(973) 383-1817","(973) 383-0567","Kevin O'Leary",null,"2027-12-31",null,null," clerk@lafayettetwp.org"]
[1914,"Montague Township","Sussex","277 Clove Road",null,"Montague","NJ","07827-3122","(973) 293-7300","(973) 293-7467","George Zitone",null,"2025-12-31",null,null,"mayor@montaguenj.org"]
[1915,"Newton Town","Sussex","39 Trinity Street",null,"Newton","NJ","07860-1823","(973) 383-3521","(973) 383-8961","Helen R. Le Frois",null,"2025-12-31",null,null,"mayor@newtontownhall.com"]
[1916,"Ogdensburg Borough","Sussex","14 Highland Avenue",null,"Ogdensburg","NJ","07439-1254","(973) 827-3444",null,"George P. Hutnick",null,"2026-12-31",null,null,"oburgmayor@gmail.com"]
[1917,"Sandyston Township","Sussex","133 Route 645",null,"Branchville","NJ",7851,"(973) 948-3520",null,"George B. Harper, Jr.",null,"2025-12-31",null,"1 year","mayor@sandystontownship.com"]
[1918,"Sparta Township","Sussex","65 Main Street",null,"Sparta","NJ","07871-1903","(973) 729-4493","(973) 729-0063","Daniel Chiariello",null,"2026-12-31",null,"4 year","daniel.chiariello@spartanj.net"]
[1919,"Stanhope Borough","Sussex","77 Main Street",null,"Stanhope","NJ","07874-2626","(973) 347-0159","(973) 347-6058","Eugene Wronko",null,"2027-12-31",null,null,"gwronko@stanhopenj.gov"]
[1920,"Stillwater Township","Sussex","964 Stillwater Road",null,"Newton","NJ",7860,"(973) 383-9484",null,"Lisa Chammings",null,"2026-12-31",null,null,"lchammings@stillwatertwp.com"]
[1921,"Sussex Borough","Sussex","2 Main Street",null,"Sussex","NJ","07461-2305","(973) 875-4831","(973) 875-6261","Robert Holowach",null,"2027-12-31",null,"4 year","rholowach@sussexboro.com"]
[1922,"Vernon Township","Sussex","21 Church Street",null,"Vernon","NJ","07462-0343","(973) 764-4055","(973) 764-4799","Anthony Rossi",null,"2028-12-31",null,null,"arossi@vernontwp.com"]
[1923,"Walpack Township","Sussex","PO Box 813",null,"Sussex","NJ",7461,"(908) 841-9576",null,"Victor J. Maglio",null,"2025-12-31",null,"1 year","walpackmayor@gmail.com"]
[1924,"Wantage Township","Sussex","Wantage Municipal Building","888 Route 23","Wantage","NJ","07461-3327","(973) 875-7192",null,"Ron Bassani",null,"2025-12-31","Mayor/Committee","1 yearCommittee 3 yrs","rbassani@wantagetwp-nj.org"]
[2001,"Berkeley Heights Township","Union","29 Park Avenue",null,"Berkeley Heights","NJ",7922,"(908) 464-2700","(908) 464-8150","Angie D. Devanney","2023-01-01","2026-12-31",null,null,"adevanney@bhtwp.com"]
[2002,"Clark Township","Union","430 Westfield Avenue",null,"Clark","NJ","07066-1704","(732) 388-3600","(732) 388-1241","Angel Albanese ",null,"2025-12-31",null,null,"mayor@ourclark.com"]
[2003,"Cranford Township","Union","8 Springfield Avenue",null,"Cranford","NJ","07016-0000","(908) 709-7200",null,"Terrence Curran",null,"2025-12-31","Mayor/Committee","3 year Committee term 1 year Mayor term","t-curran@cranfordnj.org"]
[2004,"Elizabeth City","Union","50 Winfield Scott Plaza",null,"Elizabeth","NJ",7201,"(908) 820-4000","(908) 352-2275","J. Christian Bollwage",null,"2028-12-31",null,null,"cityclerk@elizabethnj.org"]
[2005,"Fanwood Borough","Union","75 North Martine Avenue",null,"Fanwood","NJ",7023,"(908) 322-8236","(908) 322-7178","Colleen Mahr",null,"2027-12-31","Mayor/Council","4 year & 3 Year","mayor@fanwoodnj.org"]
[2006,"Garwood Borough","Union","403 South Avenue",null,"Garwood","NJ",7027,"(908) 789-0710","(908) 789-7978","Jen Blumenstock",null,"2026-12-31",null,"4 year"," jblumenstock@garwood.org"]
[2007,"Hillside Township","Union","JFK Plaza","Liberty & Hillside Avenues","Hillside","NJ",7205,"(973) 926-3002","(973) 926-9232","Dahlia Vertreese",null,"2025-12-31",null,null,"mayordvertreese@hillsidenj.us"]
[2008,"Kenilworth Borough","Union","567 Boulevard",null,"Kenilworth","NJ","07033-1696","(908) 276-9090",null,"Linda Karlovitch",null,"2025-12-31",null,null,"l.karlovitch@kenilworthnj.org"]
[2009,"Linden City","Union","301 North Wood Avenue",null,"Linden","NJ","07036-4296","(908) 474-8493","(908) 474-8497","Derek Armstead",null,"2026-12-31",null,"4 year","darmstead@linden-nj.org"]
[2010,"Mountainside Borough","Union","1385 Route 22",null,"Mountainside","NJ","07092-2605","(908) 232-2400",null,"Paul N. Mirabelli",null,"2027-12-31",null,null,"pmirabelli@mountainside-nj.com"]
[2011,"New Providence Borough","Union","360 Elkwood Avenue",null,"New Providence","NJ",7974,"(908) 665-1400",null,"Allen Morgan",null,"2026-12-31",null,null,"amorgan@newprov.us"]
[2012,"Plainfield City","Union","515 Watchung Avenue",null,"Plainfield","NJ","07060-1720","(908) 753-3310",null,"Adrian O. Mapp",null,"2025-12-31",null,null,"mayormapp@plainfieldnj.gov"]
[2013,"Rahway City","Union","One City Hall Plaza",null,"Rahway","NJ","07065-5022","(732) 827-2000",null,"Raymond A. Giacobbe Jr.",null,"2026-12-31",null,null,"rgiacobbe@cityofrahway.com"]
[2014,"Roselle Borough","Union","210 Chestnut Street",null,"Roselle","NJ","07203-1218","(908) 245-5600",null,"Donald  Shaw",null,"2027-12-31",null,null,"dshaw@boroughofroselle.com"]
[2015,"Roselle Park Borough","Union","110 East Westfield Avenue",null,"Roselle Park","NJ",7204,"(908) 245-6180","908-245-5598","Joseph Signorello III","2023-01-01","2026-12-31","Mayor & Council","4 year","mayorsig@rosellepark.net"]
[2016,"Scotch Plains Township","Union","430 Park Avenue",null,"Scotch Plains","NJ",7076,"(908) 322-6700","(908) 322-5021","Joshua Losardo",null,"2028-12-31","Faulkner Act","4 year","jlosardo@scotchplainsnj.com"]
[2017,"Springfield Township","Union","100 Mountain Avenue",null,"Springfield","NJ",7081,"(973) 912-2200","(973) 912-2277","Richard Huber",null,"2025-12-31",null,null,"richard.huber@springfield-nj.us"]
[2018,"Summit City","Union","512 Springfield Avenue",null,"Summit","NJ","07901-2607","(908) 522-3600","(908) 273-2977","Elizabeth Fagan",null,"2027-12-31",null,null,"efagant@cityofsummit.org"]
[2019,"Union Township","Union","Municipal Building","1976 Morris Avenue","Union","NJ","07083-3597","(908) 851-8500",null,"James Bowser, Jr.",null,"2025-12-31",null,null,"jbowserjr@uniontownship.com"]
[2020,"Westfield Town","Union","425 East Broad Street",null,"Westfield","NJ",7090,"(908) 789-4040",null,"Michelle (Shelley) Brindle",null,"2025-12-31",null,null,"mayorbrindle@westfieldnj.gov"]
[2021,"Winfield Township","Union","12 Gulfstream Avenue",null,"Winfield","NJ","07036-6608","(908) 925-3850",null,"Adam D. Koomer",null,"2026-12-31",null,null,"akoomer@winfield-nj.org"]
[2101,"Allamuchy Township","Warren","Post Office Box A",null,"Allamuchy","NJ",7820,"(908) 852-5132",null,"Rosemary Tuohy",null,"2028-12-31",null,null,"mayor@allamuchynj.org"]
[2102,"Alpha Borough","Warren","1001 East Boulevard",null,"Alpha","NJ",8865,"(908) 454-0088",null,"Joseph Schocko, III",null,"2027-12-31","Mayor/Council","4, 3 ","alphamayor@alphaboronj.org"]
[2103,"Belvidere Township","Warren","691 Water Street",null,"Belvidere","NJ","07823-1321","(908) 475-5331",null,"Kathleen Miers",null,"2027-12-31",null,"4 year","clerk@belvidere-nj.org"]
[2104,"Blairstown Township","Warren","106 Route 94",null,"Blairstown","NJ","07825-9624","(908) 362-6663",null,"Rob Moorhead",null,"2025-12-31",null,null,"rmoorhead@blairstowntwp-nj.com"]
[2105,"Franklin Township","Warren","2093 Rt. 57","P.O. Box 547","Broadway","NJ","08808-0547","(908) 689-3994","908-689-5803","David Guth",null,"2025-12-31",null,null,"mayor@franklintwpwarren.org"]
[2106,"Frelinghuysen Township","Warren","210 Main Street",null,"Johnsonburg","NJ","07825-0000","(908) 852-4121",null,"Sharon Drylie",null,"2025-12-31",null,null,"sharondryieftc@gmail.com"]
[2107,"Greenwich Township","Warren","321 Greenwich Street",null,"Stewartsville","NJ",8886,"(908) 859-0909",null,"Robert Barsony",null,"2027-12-31",null,null,"bbarsony@greenwichtownship.org"]
[2108,"Hackettstown Town","Warren","215 Stiger Street",null,"Hackettstown","NJ",7840,"(908) 852-3130","(908) 852-5278","Gerald Dimaio, Jr.",null,"2026-12-31",null,"3 year","mayor@hackettstown.net"]
[2109,"Hardwick Township","Warren","40 Spring Valley Road",null,"Hardwick","NJ","07825-3324","(908) 362-6528",null,"Chris Jacksic ",null,"2025-12-31",null,null,"cjacksic@hardwick-nj.us"]
[2110,"Harmony Township","Warren","3003 Belvidere Road",null,"Phillipsburg","NJ",8865,"(908) 213-1600",null,"Brian Tipton",null,"2025-12-31",null,null,"btipton@fpsflawfirm.com"]
[2111,"Hope Township","Warren","Post Office Box 284",null,"Hope","NJ","07844-0284","(908) 459-5011",null,"Tiimothy C. McDonough",null,"2025-12-31",null,null,"timothymcdonough@embarqmail.com"]
[2112,"Independence Township","Warren","286-B Route 46","Post Office Box 164","Great Meadows","NJ",7838,"(908) 637-4133","(908) 637-8844","Robert E. Giordano",null,"2027-12-31",null,null,"bobgnj@comcast.net"]
[2113,"Knowlton Township","Warren","Municipal Building","628 Route 94","Columbia","NJ","07832-2526","(908) 496-4816",null,"Debra Shipps",null,"2027-12-31",null,null,"debrashipps@aol.com "]
[2114,"Liberty Township","Warren","349 Mountain Lake Road",null,"Great Meadows","NJ","07838-2355","(908) 637-4579",null,"John Inscho",null,"2027-12-31",null,null," j.inscho@libertytownship.org"]
[2115,"Lopatcong Township","Warren","232 South Third Street",null,"Phillipsburg","NJ",8865,"(908) 859-3355",null,"William D. Wright","2024-01-01","2026-12-31","Small Municipality/Faulkner Act","3 year","wrightb@lopatcongtwp.com"]
[2116,"Mansfield Township","Warren","100 Port Murray Road",null,"Port Murray","NJ","07865-4020","(908) 689-6151",null,"Joseph Watters",null,"2026-12-31",null,null,"jwatters@mansfieldtownship-nj.gov"]
[2117,"Oxford Township","Warren","11 Green Street",null,"Oxford","NJ",7863,"(908) 453-3098",null,"Gerald Norton",null,"2027-12-31",null,null,"gnorton@oxfordtwpnj.org"]
[2119,"Phillipsburg Town","Warren","675 Corliss Avenue",null,"Phillipsburg","NJ","08865-1698","(908) 454-5500",null,"Randy Piazza, Jr. ",null,"2025-12-31",null,null,"rpiazza@phillipsburgnj.org"]
[2120,"Pohatcong Township","Warren","50 Municipal Drive",null,"Phillipsburg","NJ",8865,"(908) 454-6121","(908) 454-5911","David S. Slack",null,"2027-12-31",null,null,"slackfarmsnj@yahoo.com"]
[2121,"Washington Borough","Warren","100 Belvidere Avenue",null,"Washington","NJ","07882-1417","(908) 689-3600","(908) 689-9485","Louann Cox",null,"2028-12-31",null,null,"lcox@washingtonboro-nj.org"]
[2122,"Washington Township","Warren","211 Route 31 North",null,"Washington","NJ",7882,"(908) 689-7200","(908) 689-9234","Robert J. Klingel",null,"2025-12-31",null,"every year","mayor@washington-twp-warren.org"]
[2123,"White Township","Warren","555 County Route 519",null,"Belvidere","NJ",7823,"(908) 475-2093",null,"Jeff Herb",null,"2025-12-31",null,3,"jherb@whitetwp-nj.com"]

{"sheet":"Key Inputs","index":3,"n_rows":9,"n_cols":9,"rows_kept":9,"cut":false,"hidden":false,"merged":[[1,1,1,11],[2,1,2,11],[4,1,4,11],[6,6,6,11]]}
[]
[null,"State of New Jersey"]
[null,"Department of Community Affairs"]
[]
[null,"Municipal Contact List and Mayors List Update"]
[]
[null,"     Please choose your municipality:",null,null,null,null,"Allentown Borough, Monmouth County"]
[]
[null,"     Muni Code:",null,{"$f":"VLOOKUP(G7,Muni!B1:D588,2,FALSE)","v":"1302"},null,null,"County:",null,{"$f":"VLOOKUP(G7,Muni!B1:E586, 3, FALSE)","v":"Monmouth"}]

{"sheet":"MUNICIPAL CONTACT LIST UPDATE ","index":4,"n_rows":40,"n_cols":17,"rows_kept":40,"cut":false,"hidden":false,"merged":[[0,0,0,16]]}
["                                                                                                                              2025 MUNICIPAL CONTACT LIST UPDATE"]
[]
[]
["MUNI CODE","TITLE ","MUNI NAME","FIRST NAME ","LAST NAME ","EMAIL ","PHONE NUMBER ","EXTENSION","COUNTY","ADDRESS 1","ADDRESS 2","CITY","STATE","ZIP","MAYORS TERM START","MAYORS TERM END","FORM OF GOVERNMENT "]
[{"$f":"'Key Inputs'!$D$9","v":"1302"},"Mayor ",{"$f":"'Key Inputs'!$G$7","v":"Allentown Borough, Monmouth County"}]
[{"$f":"'Key Inputs'!$D$9","v":"1302"},"Business Administrator or Manager ",{"$f":"'Key Inputs'!$G$7","v":"Allentown Borough, Monmouth County"}]
[{"$f":"'Key Inputs'!$D$9","v":"1302"},"Assistant Business Administrator or Manager",{"$f":"'Key Inputs'!$G$7","v":"Allentown Borough, Monmouth County"}]
[{"$f":"'Key Inputs'!$D$9","v":"1302"},"Clerk",{"$f":"'Key Inputs'!$G$7","v":"Allentown Borough, Monmouth County"}]
[{"$f":"'Key Inputs'!$D$9","v":"1302"},"Deputy Clerk",{"$f":"'Key Inputs'!$G$7","v":"Allentown Borough, Monmouth County"}]
[{"$f":"'Key Inputs'!$D$9","v":"1302"},"Finance Officer ",{"$f":"'Key Inputs'!$G$7","v":"Allentown Borough, Monmouth County"}]
[{"$f":"'Key Inputs'!$D$9","v":"1302"},"Assistant Finance Officer",{"$f":"'Key Inputs'!$G$7","v":"Allentown Borough, Monmouth County"}]
[{"$f":"'Key Inputs'!$D$9","v":"1302"},"Municipal Auditor",{"$f":"'Key Inputs'!$G$7","v":"Allentown Borough, Monmouth County"}]
[{"$f":"'Key Inputs'!$D$9","v":"1302"},"Public Works Manager",{"$f":"'Key Inputs'!$G$7","v":"Allentown Borough, Monmouth County"}]
[{"$f":"'Key Inputs'!$D$9","v":"1302"},"Tax Collector",{"$f":"'Key Inputs'!$G$7","v":"Allentown Borough, Monmouth County"}]
[{"$f":"'Key Inputs'!$D$9","v":"1302"},"Purchasing Agent/QPA 1",{"$f":"'Key Inputs'!$G$7","v":"Allentown Borough, Monmouth County"}]
[{"$f":"'Key Inputs'!$D$9","v":"1302"},"Purchasing Agent/QPA 2",{"$f":"'Key Inputs'!$G$7","v":"Allentown Borough, Monmouth County"}]
[{"$f":"'Key Inputs'!$D$9","v":"1302"},"Purchasing Agent/QPA 3",{"$f":"'Key Inputs'!$G$7","v":"Allentown Borough, Monmouth County"}]
[{"$f":"'Key Inputs'!$D$9","v":"1302"},"Fire District",{"$f":"'Key Inputs'!$G$7","v":"Allentown Borough, Monmouth County"}]
[{"$f":"'Key Inputs'!$D$9","v":"1302"},"Housing Authority (if applicable) ",{"$f":"'Key Inputs'!$G$7","v":"Allentown Borough, Monmouth County"}]
[{"$f":"'Key Inputs'!$D$9","v":"1302"},"Utility Authority - MUA (if applicable) ",{"$f":"'Key Inputs'!$G$7","v":"Allentown Borough, Monmouth County"}]
[{"$f":"'Key Inputs'!$D$9","v":"1302"},"School Business Administrator ",{"$f":"'Key Inputs'!$G$7","v":"Allentown Borough, Monmouth County"}]
[{"$f":"'Key Inputs'!$D$9","v":"1302"},"School Business Administrator  1 (If needed) ",{"$f":"'Key Inputs'!$G$7","v":"Allentown Borough, Monmouth County"}]
[{"$f":"'Key Inputs'!$D$9","v":"1302"},"School Business Administrator  2 (If needed) ",{"$f":"'Key Inputs'!$G$7","v":"Allentown Borough, Monmouth County"}]
[{"$f":"'Key Inputs'!$D$9","v":"1302"},"School Business Administrator 3 (If needed) ",{"$f":"'Key Inputs'!$G$7","v":"Allentown Borough, Monmouth County"}]
[{"$f":"'Key Inputs'!$D$9","v":"1302"},"School Business Administrator 4 (If needed) ",{"$f":"'Key Inputs'!$G$7","v":"Allentown Borough, Monmouth County"}]
[{"$f":"'Key Inputs'!$D$9","v":"1302"},"School Business Administrator 5 (If needed) ",{"$f":"'Key Inputs'!$G$7","v":"Allentown Borough, Monmouth County"}]
[{"$f":"'Key Inputs'!$D$9","v":"1302"},"School Business Administrator 6 (If needed) ",{"$f":"'Key Inputs'!$G$7","v":"Allentown Borough, Monmouth County"}]
[{"$f":"'Key Inputs'!$D$9","v":"1302"},"School Business Administrator 7 (If needed) ",{"$f":"'Key Inputs'!$G$7","v":"Allentown Borough, Monmouth County"}]
[{"$f":"'Key Inputs'!$D$9","v":"1302"},"School Business Administrator 8 (If needed) ",{"$f":"'Key Inputs'!$G$7","v":"Allentown Borough, Monmouth County"}]
[{"$f":"'Key Inputs'!$D$9","v":"1302"},"School Business Administrator 9 (If needed) ",{"$f":"'Key Inputs'!$G$7","v":"Allentown Borough, Monmouth County"}]
[{"$f":"'Key Inputs'!$D$9","v":"1302"},"School Business Administrator 10 (If needed) ",{"$f":"'Key Inputs'!$G$7","v":"Allentown Borough, Monmouth County"}]
[{"$f":"'Key Inputs'!$D$9","v":"1302"},"School Business Administrator 11 (If needed) ",{"$f":"'Key Inputs'!$G$7","v":"Allentown Borough, Monmouth County"}]
[{"$f":"'Key Inputs'!$D$9","v":"1302"},"School Business Administrator 12 (If needed) ",{"$f":"'Key Inputs'!$G$7","v":"Allentown Borough, Monmouth County"}]
[{"$f":"'Key Inputs'!$D$9","v":"1302"},"School Business Administrator 13 (If needed) ",{"$f":"'Key Inputs'!$G$7","v":"Allentown Borough, Monmouth County"}]
[]
[]
[]
[]
[null,"Current Mayors List  2025"]
[null,"NJ Mayors Directory | NJOIT Open Data Center"]